{"text_format":"1","workbook":"xlsx","n_sheets":3,"sheets":["Barème","Calcul-Subv-CPE","Divisions régionales"],"not_rendered":{"charts":0,"images":2,"macros":1,"external_links":0,"defined_names":3,"comments":0,"pivot_tables":0},"unopened":[],"bounds":{"document_bytes":16777216,"sheet_cells":100000,"rows_first":2000,"rows_last":500,"rows_between":2000,"halvings":0,"cell_chars":16384,"cell_head_chars":4096},"cells_cut":0,"cells_raw":0,"read":"whole","date_system":"1900"}

{"sheet":"Barème","index":0,"n_rows":205,"n_cols":6,"rows_kept":205,"cut":false,"hidden":true,"merged":[[1,1,1,3],[2,1,2,3],[45,1,45,3]]}
["Information et note pour les formules","L'information provieent du fichier des paramètres de financement"]
["Pour la formule d'index parfois c'est la colonne A qui est utilisé et parfois la colonne B, pour facilité les formule aurait tout mis dans la même colonne - Phase 2","ANNEXE À LA DEMANDE D'APPROBATION DES RÈGLES BUDGÉTAIRES\n BARÈMES"]
[null,"CENTRES DE LA PETITE ENFANCE"]
["Cette ligne sert au formule, les années ne doivent pas changé de lignes"," ","2023-2024","2024-2025"]
[null,"Services directs / jour d'occupation"," "," "]
["0-17 mois - CPE","0-17 mois",66.86,66.86]
["18-47 mois - CPE","18-47 mois",42.09,42.089999999999996]
["48-59 mois - CPE","48-59 mois",33.83,33.83]
[null,"Services auxiliaires / jour d'occupation",null," "]
[null,"Volet A",8.68,8.9899999999999984]
[null,"Volet B ",1.1200000000000001,1.1200000000000001]
[null,"Services administratifs / place annualisée ",null," "]
[null,"Services administratifs (moins 60 places)",2358.1999999999998,2387.0500000000002]
[null,"Services administratifs (61 places et plus)",2078.42,2122.0700000000002]
[null,"Coûts d'occupation des locaux / place annualisée",null," "]
[null,"Volet A",587.83000000000004,625.45000000000005]
[null,"Volet B (CPE locataire seulement) : dépense admissible 2021-2022 moins le montant du volet A plus indexation de 6,46 %. Ne peut dépasser le maximum établi pour la région. L'indexation de 2022-2023 était de 3,8 %.",null,"S.O"]
[null," ",null," "]
[null,"Contribution parentale de base",null," "]
[null,"1er avril au 31 décembre",8.85,9.1]
[null,"1er janvier au 31 mars ",9.1,9.35]
[null," ",null," "]
[null,"Allocations supplémentaires\n(par jour d'occupation à moins indication contraire)",null," "]
[null," ",null," "]
[null,"Exemption de la contribution de base ",null," "]
[null,"1er avril au 31 décembre",8.85,9.1]
[null,"1er janvier au 31 mars",9.1,9.35]
[null,"Intégration des enfants AISG",null," "]
["AISG - volet A (forfaitaire pour gestion du dossier et équipement)","Inscription AISG - Volet A - CPE",2200,2200]
["AISG - volet B (fonctionnement)","AISG ( récurrent) -  Volet B - CPE",50.77,51.08]
[null,"Allocation compensatoire liée au protocole CPE-CISSS/CIUSSS",null," "]
[null,"0-17 mois (protocole) - CPE",75.540000000000006,75.849999999999994]
[null,"18 mois et plus (protocole) - CPE",50.77,51.08]
[null,"Mesure transitoire enfants AISG âgés de 5 ans **",null," "]
[null,"1er avril au 31 août*",null," "]
[null,"1er janvier au 31 mars",null," "]
[null,"PCRS** / jour classe ",null," "]
[null,"1er avril au 31 août*",null," "]
[null,"1er janvier au 31 mars",null," "]
[null,"PCRS**/ jour pédagogique",null," "]
[null,"1er avril au 31 août*",null," "]
[null,"1er janvier au 31 mars",null," "]
["Allocation pour la garde à temps partiel","Barème (CPE)",3.72,3.87]
[null,"Allocation pour une petite installation - Volet B",2358.1999999999998,2387.0500000000002]
[null," ",null," "]
[null,"GARDERIES SUBVENTIONNÉES"]
[null," ","2023-2024","2024-2025"]
[null,"Services directs / jour d'occupation"," "," "]
["0-17 mois - GS","0-17 mois",64,64]
["18-47 mois - GS","18-47 mois",40.299999999999997,40.299999999999997]
["48-59 mois - GS","48-59 mois",32.4,32.4]
[null,"Services auxiliaires / jour d'occupation",null," "]
[{"$f":"_xlfn.CONCAT(LEFT($B$52,20),\" - \",B53)","v":"Services auxiliaires - Volet A"},"Volet A",8.68,8.9899999999999984]
[{"$f":"_xlfn.CONCAT(LEFT($B$52,20),\" - \",LEFT(B54,7))","v":"Services auxiliaires - Volet B"},"Volet B (montant accordé pour les jours d'occupation inférieur à 20 880)",1.1200000000000001,1.1200000000000001]
[null,"Services administratifs/ place annualisée ",null," "]
["Services administratifs (moins 60 places)","Services administratifs (moins 60 places)",2358.1999999999998,2387.0500000000002]
["Services administratifs (61 places et plus)","Services administratifs (61 places et plus)",2078.42,2122.0700000000002]
[null,"Coûts d'occupation des locaux / place annualisée",null," "]
[null,"Barème de référence/PSA",822.98,875.65]
[null,"Contribution parentale de base",null," "]
[null,"1er avril au 31 décembre",8.85,9.1]
[null,"1er janvier au 31 mars ",9.1,9.35]
[null," ",null," "]
[null,"Allocations supplémentaires\n(par jour d'occupation sauf indication contraire)",null," "]
[null," ",null," "]
[null,"Exemption de la contribution de base",null," "]
[null,"1er avril au 31 décembre",8.85,9.1]
[null,"1er janvier au 31 mars",9.1,9.35]
["AISG - volet A (forfaitaire pour gestion du dossier et équipement)","Inscription AISG - Volet A",2200,2200]
["AISG - volet B (fonctionnement)","AISG ( récurrent) -  Volet B",48.98,49.289999999999992]
[null,"Allocation compensatoire liée au protocole CPE-CISSS/CIUSSS",null," "]
[null,"0-17 mois (protocole)",72.680000000000007,72.989999999999995]
[null,"18 mois et plus (protocole)",48.98,49.289999999999992]
[null,"Mesure transitoire enfants AISG âgés de 5 ans**",null," "]
[null,"1er avril au 31 août*",null," "]
[null,"1er janvier au 31 mars",null," "]
[null,"PCRS / jour classe",null," "]
[null,"1er avril au 31  août*",null," "]
[null,"1er janvier au 31 mars",null," "]
[null,"PCRS/ jour pédagogique",null," "]
[null,"1er avril au 31  août*",null," "]
[null,"1er janvier au 31 mars",null," "]
["Allocation pour la garde à temps partiel","Barème (GS)",3.72,3.87]
[null,"Allocation pour une petite installation - Volet B",2358.1999999999998,2387.0500000000002]
[null,"Autres paramètres de financement "]
[null,"Pondération des jours d'occupation"]
[null,"Jours d'occupation pondérés moins de 18 mois",1.6,1.6]
[null,"Jours d'occupation pondérés 18-47 mois",1,1]
[null,"Jours d'occupation pondérés 48 mois et plus",0.8,0.8]
[null,"Facteurs d'ajustement :"]
[null,"Rémunération du personnel de garde :"]
[null,"Taux horaire de référence",26.62,26.62]
[null,"Taux d'ajustement de la rémunération (CPE)",1.51,1.5088999999999999]
[null,"Taux d'ajustement de la rémunération (GS)",1.0111000000000001,1.0103]
[null,"Facteur d'ajust Rem pour une nouvelle ouverture",-2.5,-2.5]
[null,"Absences rémunérées :"]
[null,"Seuil minimal (abs)",0.15,0.15]
[null,"Prop. Applicable (CPE)",1,1]
[null,"Prop. Applicable (abs)",0.7,0.7]
[null,"Facteur d'ajust. absences pour nouvelle GS",-4.0899999999999999E-2,-4.0899999999999999E-2]
[null,"Qualification : "]
[null,"Seuil minimal (qualif)",0.33339999999999997,0.33339999999999997]
[null,"Prop. Applicable (qualif)",0.2,0.2]
[null,"Heures travaillées"]
[null,"Seuil minimal (H.T)",1.02,1.02]
[null,"Prop. Applicable (H.T)",0.4,0.4]
[null,"Coûts d'occupation des locaux (COL/GS)"]
[null,"Dépense reconnue",1790,1886]
[null,"Borne min",0.57999999999999996,0.57999999999999996]
[null,"Borne max",1.39,1.39]
[null,"Montant minimal",15275,16252]
[null,"Coûts d'occupation des locaux (COL/CPE)"]
[null,"Volet A :",587.83000000000004,625.45000000000005]
[null,"Montant minimum",18810.560000000001,20014.400000000001]
[null,"Volet B :"]
[null,"Taux d'indexation",6.4600000000000005E-2,6.4000000000000001E-2]
[null,"Montant maximum régional par place annualisée :"]
["Menu déroulant Région - Montréal","Montréal",1941,2065,null,{"$f":"+A118&\" - \"&B118","v":"Menu déroulant Région - Montréal - Montréal"}]
["Menu déroulant Région - Communauté métropolitaine de Québec","Communauté métropolitaine de Québec",1665,1772,null,{"$f":"+A119&\" - \"&B119","v":"Menu déroulant Région - Communauté métropolitaine de Québec - Communauté métropolitaine de Québec"}]
["Menu déroulant Région - Régions urbaines","Régions urbaines",1665,1772,null,"Menu déroulant Région - Régions urbaines - Régions urbaines"]
["Menu déroulant Région - Régions centrales","Régions centrales",935,995,null,"Menu déroulant Région - Régions centrales - Régions centrales"]
["Menu déroulant Région - Régions ressources","Régions ressources",821,874,null,"Menu déroulant Région - Régions ressources - Régions ressources"]
[null,"Optimisation des services"]
[null,"Seuil d'occupation",0.9,0.9]
[null,"Seuil de présence",0.7,0.7]
[null,"Prop. Applicable (présence)",0.5,0.5]
[null,"Allocations supplémentaires"]
[null,"Allocation Protocole Gard-CISSS/CIUSSS"]
[null,"Seuil du taux d'occupation (min)",0.9,0.9]
[null,"Max de places annualisées",0.05,0.05]
[null,"Allocation pour une installation recevant des enfants issus d’un milieu défavorisé (ECP)"]
[null,"Seuil de ECP (Min)",0.08,0.08]
[null,"Seuil de ECP (Max)",0.25,0.25]
[null,"Norme de base",0.03,0.03]
[null,"Norme additionnelle",5.0000000000000001E-3,5.0000000000000001E-3]
[null,"Allocation pour la garde à horaire non usuels (GHNU)"]
[null,"Proportion appliquée",0.5,0.5]
[null,"Allocation pour une petite installation"]
[null,"Barème volet A - petite installation",0.05,0.05]
[null,"Barème volet B - petite installation",2358.1999999999998,2387.0500000000002]
[null,"Nombre de places subventionnées",33,33]
[]
[]
[]
[]
[]
[]
[]
[]
[]
[]
[]
["Menu déroulant Oui/Non","oui","na","na"]
["Menu déroulant Oui/Non","non","na","na"]
[]
["Menu déroulant Ouverture cette année ","1re année d'ouverture","na","na"]
["Menu déroulant Ouverture cette année T-1","2e année d'ouverture","na","na"]
["Menu déroulant Ouverture cette année T-2 et avant","Plus de 2 années d'ouverture","na","na"]
[]
[]
["Menu déroulant Région","Montréal","na","na"]
["Menu déroulant Région","Québec","na","na"]
["Menu déroulant Région","Urbaine","na","na"]
["Menu déroulant Région","Centrale","na","na"]
["Menu déroulant Région","Ressource","na","na"]
[]
[]
[]
[]
[]
[null,"Formule"]
[]
[null,"Année1",{"$f":"+LEFT(C$4,4)","v":"2023"},{"$f":"+LEFT(D$4,4)","v":"2024"}]
[null,"Année2",{"$f":"+RIGHT(C$4,4)","v":"2024"},{"$f":"+RIGHT(D$4,4)","v":"2025"}]
[null,"Nombre de jours d'ouverture considéré",{"$f":"NETWORKDAYS(DATE(C173,4,1),DATE(C174,3,31))","v":260},{"$f":"NETWORKDAYS(DATE(D173,4,1),DATE(D174,3,31))","v":261}]
[]
[]
[]
["Menu déroulant nombre d'installation",1,"na","na"]
["Menu déroulant nombre d'installation",2,"na","na"]
["Menu déroulant nombre d'installation",3,"na","na"]
["Menu déroulant nombre d'installation",4,"na","na"]
["Menu déroulant nombre d'installation",5,"na","na"]
["Menu déroulant nombre d'installation",6,"na","na"]
["Menu déroulant nombre d'installation",7,"na","na"]
["Menu déroulant nombre d'installation",8,"na","na"]
["Menu déroulant nombre d'installation",9,"na","na"]
["Menu déroulant nombre d'installation",10,"na","na"]
["Menu déroulant nombre d'installation",11,"na","na"]
["Menu déroulant nombre d'installation",12,"na","na"]
["Menu déroulant nb instal - Laisser espace libre"]
["Menu déroulant nb instal - Laisser espace libre"]
["Menu déroulant nb instal - Laisser espace libre"]
["Menu déroulant nb instal - Laisser espace libre"]
["Menu déroulant nb instal - Laisser espace libre"]
["Menu déroulant nb instal - Laisser espace libre"]
["Menu déroulant nb instal - Laisser espace libre"]
["Menu déroulant nb instal - Laisser espace libre"]
[]
["Menu déroulant Propriétaire ou locataire","Propriétaire","na","na"]
["Menu déroulant Propriétaire ou locataire","Locataire","na","na"]
["Menu déroulant Prop ou loc laisser espace libre",null,"na","na"]
["Menu déroulant Prop ou loc laisser espace libre",null,"na","na"]
["Menu déroulant Prop ou loc laisser espace libre",null,"na","na"]
["Menu déroulant Prop ou loc laisser espace libre"]

{"sheet":"Calcul-Subv-CPE","index":1,"n_rows":268,"n_cols":59,"rows_kept":268,"cut":false,"hidden":false,"merged":[[205,2,205,4],[204,2,204,4],[138,2,138,4],[187,49,192,49],[28,6,28,7],[117,6,117,7],[28,10,28,11],[90,11,94,11],[28,18,28,19],[90,19,94,19],[28,26,28,27],[90,27,94,27],[28,34,28,35],[117,10,117,11],[28,14,28,15],[90,15,94,15],[1,2,1,8],[90,7,94,7],[81,4,82,4],[99,4,101,4],[69,2,69,4],[28,54,28,55],[117,54,117,55],[28,50,28,51],[117,50,117,51],[90,55,94,55],[90,51,94,51],[117,14,117,15],[117,18,117,19],[28,22,28,23],[90,23,94,23],[117,22,117,23],[117,26,117,27],[28,30,28,31],[90,31,94,31],[117,30,117,31],[90,35,94,35],[117,34,117,35],[28,38,28,39],[90,39,94,39],[117,38,117,39],[28,42,28,43],[90,43,94,43],[117,42,117,43],[28,46,28,47],[90,47,94,47],[117,46,117,47],[187,45,192,45],[187,41,192,41],[187,37,192,37],[187,33,192,33],[187,29,192,29],[144,2,144,4],[187,25,192,25],[187,21,192,21],[187,13,192,13],[187,9,192,9],[187,17,192,17]]}
["Masqué","non","non","non","non","non","oui","oui","non","non","oui","oui","non","non","oui","oui","non","non","oui","oui","non","non","oui","oui","non","non","oui","oui","non","non","oui","oui","non","non","oui","oui","non","non","oui","oui","non","non","oui","oui","non","non","oui","oui","non","non","oui","oui","non","non","oui","oui","non","non","non"]
["non",null,"Estimation d'une subvention de fonctionnement \npour un centre de la petite enfance (CPE)"]
["non"]
["non",null,"Cet outil sert à produire une estimation selon certaines hypothèses. Il ne reflète pas le montant réel de votre subvention de fonctionnement."]
["non"]
["non",null,"Par exemple, le calcul prend uniquement en compte les principaux paramètres sur un exercice financier complet de 12 mois."]
["non"]
["non",null,"Toutes les informations et le détail du calcul se trouvent dans les règles budgétaires des centres de la petite enfance (CPE)."]
["non",null,"La subvention sera octroyée sur la base des particularités de chaque service de garde."]
["non"]
["non",null,"Vous devez remplir les cases bleues selon votre situation."]
["non",null,"Il y a une colonne par installation, une colonne pour les calculs effectués par division et une dernière colonne pour le total."]
["non",null,"Pour vous aider, vous pouvez consulter la promesse de subvention déposée dans votre dossier en ligne."]
["non",null,"Par contre, vous devrez estimer vous-même les jours de présence annuels."]
["non",null,"Pour les nouveaux CPE n'ayant pas de promesse de subvention, vous pouvez indiquer vos prévisions à l'aide des explications et des règles budgétaires des CPE."]
["non"]
["non",null,"Veuillez sélectionner l'exercice financier",null,"2023-2024"]
["non"]
["non",null,"Veuillez indiquer le nombre d'installations",null,3]
["non"]
["non",null,"Identification des installations à chacune des colonnes",null,null,null,null,null,1,null,null,null,2,null,null,null,3,null,null,null,4,null,null,null,5,null,null,null,6,null,null,null,7,null,null,null,8,null,null,null,9,null,null,null,10,null,null,null,11,null,null,null,12,null,null,null,"Taux pour l'ensemble des installations",null,"Total de la division"]
["non",null,"Allocation de base"]
["oui",null,"Places annualisées de 0 à 17 mois"]
["oui"]
["oui",null,"Places annualisées de 18 à 47 mois NON REQUIS",null,null,null,"non nécessaire de distinguer 18-47 et 48 et plus",null,null,null,"non nécessaire de distinguer 18-47 et 48 et plus",null,null,null,"non nécessaire de distinguer 18-47 et 48 et plus",null,null,null,"non nécessaire de distinguer 18-47 et 48 et plus",null,null,null,"non nécessaire de distinguer 18-47 et 48 et plus",null,null,null,"non nécessaire de distinguer 18-47 et 48 et plus",null,null,null,"non nécessaire de distinguer 18-47 et 48 et plus",null,null,null,"non nécessaire de distinguer 18-47 et 48 et plus",null,null,null,"non nécessaire de distinguer 18-47 et 48 et plus",null,null,null,"non nécessaire de distinguer 18-47 et 48 et plus",null,null,null,"non nécessaire de distinguer 18-47 et 48 et plus",null,null,null,"non nécessaire de distinguer 18-47 et 48 et plus"]
["oui"]
["oui",null,"Places annualisées de 18 mois et plus",null,null,null,"car on y va avec le JO, objectif alléger le texte",null,null,null,"car on y va avec le JO, objectif alléger le texte",null,null,null,"car on y va avec le JO, objectif alléger le texte",null,null,null,"car on y va avec le JO, objectif alléger le texte",null,null,null,"car on y va avec le JO, objectif alléger le texte",null,null,null,"car on y va avec le JO, objectif alléger le texte",null,null,null,"car on y va avec le JO, objectif alléger le texte",null,null,null,"car on y va avec le JO, objectif alléger le texte",null,null,null,"car on y va avec le JO, objectif alléger le texte",null,null,null,"car on y va avec le JO, objectif alléger le texte",null,null,null,"car on y va avec le JO, objectif alléger le texte",null,null,null,"car on y va avec le JO, objectif alléger le texte"]
["non",null,"Nombre de places subventionnées annualisées",null,null,null,null,null,null,null,null,null,null,null,null,null,null,null,null,null,null,null,null,null,null,null,null,null,null,null,null,null,null,null,null,null,null,null,null,null,null,null,null,null,null,null,null,null,null,null,null,null,null,null,null,null,null,null,{"$f":"+IF(BE28<>0,+BE28,+I28+M28+Q28+U28+Y28+AC28+AG28+AK28+AO28+AS28+AW28+BA28)","v":0}]
["oui"]
["oui",null,"Nombre de jours d'ouverture considéré",null,null,null,null,null,{"$f":"INDEX(Barème!$C$5:$XFD$9234,_xlfn.XMATCH('Calcul-Subv-CPE'!$C30,Barème!$B$5:$B$9234),_xlfn.XMATCH('Calcul-Subv-CPE'!$E$17,Barème!$C$4:$XFD$4))","v":260},null,null,null,{"$f":"INDEX(Barème!$C$5:$XFD$9234,_xlfn.XMATCH('Calcul-Subv-CPE'!$C30,Barème!$B$5:$B$9234),_xlfn.XMATCH('Calcul-Subv-CPE'!$E$17,Barème!$C$4:$XFD$4))","v":260},null,null,null,{"$f":"INDEX(Barème!$C$5:$XFD$9234,_xlfn.XMATCH('Calcul-Subv-CPE'!$C30,Barème!$B$5:$B$9234),_xlfn.XMATCH('Calcul-Subv-CPE'!$E$17,Barème!$C$4:$XFD$4))","v":260},null,null,null,{"$f":"INDEX(Barème!$C$5:$XFD$9234,_xlfn.XMATCH('Calcul-Subv-CPE'!$C30,Barème!$B$5:$B$9234),_xlfn.XMATCH('Calcul-Subv-CPE'!$E$17,Barème!$C$4:$XFD$4))","v":260},null,null,null,{"$f":"INDEX(Barème!$C$5:$XFD$9234,_xlfn.XMATCH('Calcul-Subv-CPE'!$C30,Barème!$B$5:$B$9234),_xlfn.XMATCH('Calcul-Subv-CPE'!$E$17,Barème!$C$4:$XFD$4))","v":260},null,null,null,{"$f":"INDEX(Barème!$C$5:$XFD$9234,_xlfn.XMATCH('Calcul-Subv-CPE'!$C30,Barème!$B$5:$B$9234),_xlfn.XMATCH('Calcul-Subv-CPE'!$E$17,Barème!$C$4:$XFD$4))","v":260},null,null,null,{"$f":"INDEX(Barème!$C$5:$XFD$9234,_xlfn.XMATCH('Calcul-Subv-CPE'!$C30,Barème!$B$5:$B$9234),_xlfn.XMATCH('Calcul-Subv-CPE'!$E$17,Barème!$C$4:$XFD$4))","v":260},null,null,null,{"$f":"INDEX(Barème!$C$5:$XFD$9234,_xlfn.XMATCH('Calcul-Subv-CPE'!$C30,Barème!$B$5:$B$9234),_xlfn.XMATCH('Calcul-Subv-CPE'!$E$17,Barème!$C$4:$XFD$4))","v":260},null,null,null,{"$f":"INDEX(Barème!$C$5:$XFD$9234,_xlfn.XMATCH('Calcul-Subv-CPE'!$C30,Barème!$B$5:$B$9234),_xlfn.XMATCH('Calcul-Subv-CPE'!$E$17,Barème!$C$4:$XFD$4))","v":260},null,null,null,{"$f":"INDEX(Barème!$C$5:$XFD$9234,_xlfn.XMATCH('Calcul-Subv-CPE'!$C30,Barème!$B$5:$B$9234),_xlfn.XMATCH('Calcul-Subv-CPE'!$E$17,Barème!$C$4:$XFD$4))","v":260},null,null,null,{"$f":"INDEX(Barème!$C$5:$XFD$9234,_xlfn.XMATCH('Calcul-Subv-CPE'!$C30,Barème!$B$5:$B$9234),_xlfn.XMATCH('Calcul-Subv-CPE'!$E$17,Barème!$C$4:$XFD$4))","v":260},null,null,null,{"$f":"INDEX(Barème!$C$5:$XFD$9234,_xlfn.XMATCH('Calcul-Subv-CPE'!$C30,Barème!$B$5:$B$9234),_xlfn.XMATCH('Calcul-Subv-CPE'!$E$17,Barème!$C$4:$XFD$4))","v":260},null,null,null,{"$f":"INDEX(Barème!$C$5:$XFD$9234,_xlfn.XMATCH('Calcul-Subv-CPE'!$C30,Barème!$B$5:$B$9234),_xlfn.XMATCH('Calcul-Subv-CPE'!$E$17,Barème!$C$4:$XFD$4))","v":260},null,{"$f":"INDEX(Barème!$C$5:$XFD$9234,_xlfn.XMATCH('Calcul-Subv-CPE'!$C30,Barème!$B$5:$B$9234),_xlfn.XMATCH('Calcul-Subv-CPE'!$E$17,Barème!$C$4:$XFD$4))","v":260}]
["oui",null,"Pourcentage d'ouverture pendant l'année ",null,null,null,"Pour l'instant on met 100%",null,1,null,"Pour l'instant on met 100%",null,1,null,"Pour l'instant on met 100%",null,1,null,"Pour l'instant on met 100%",null,1,null,"Pour l'instant on met 100%",null,1,null,"Pour l'instant on met 100%",null,1,null,"Pour l'instant on met 100%",null,1,null,"Pour l'instant on met 100%",null,1,null,"Pour l'instant on met 100%",null,1,null,"Pour l'instant on met 100%",null,1,null,"Pour l'instant on met 100%",null,1,null,"Pour l'instant on met 100%",null,1,null,"Pour l'instant on met 100%",null,1,null,1]
["oui"]
["non"]
["non",null,"Jours d'occupation annuels 0 à 17 mois",null,"\"Jours d'occupation\" représente les",null,null,null,null,null,null,null,null,null,null,null,null,null,null,null,null,null,null,null,null,null,null,null,null,null,null,null,null,null,null,null,null,null,null,null,null,null,null,null,null,null,null,null,null,null,null,null,null,null,"Somme des installations",null,null,null,{"$f":"+IF(BE34<>0,+BE34,+I34+M34+Q34+U34+Y34+AC34+AG34+AK34+AO34+AS34+AW34+BA34)","v":0}]
["non"]
["non",null,"Jours d'occupation annuels 18 à 47 mois ",null,"jours associés aux ententes de ",null,null,null,null,null,null,null,null,null,null,null,null,null,null,null,null,null,null,null,null,null,null,null,null,null,null,null,null,null,null,null,null,null,null,null,null,null,null,null,null,null,null,null,null,null,null,null,null,null,"Somme des installations",null,null,null,{"$f":"+IF(BE36<>0,+BE36,+I36+M36+Q36+U36+Y36+AC36+AG36+AK36+AO36+AS36+AW36+BA36)","v":0}]
["non"]
["non",null,"Jours d'occupation annuels 48 mois et plus",null,"service conclues avec les parents",null,null,null,null,null,null,null,null,null,null,null,null,null,null,null,null,null,null,null,null,null,null,null,null,null,null,null,null,null,null,null,null,null,null,null,null,null,null,null,null,null,null,null,null,null,null,null,null,null,"Somme des installations",null,null,null,{"$f":"+IF(BE38<>0,+BE38,+I38+M38+Q38+U38+Y38+AC38+AG38+AK38+AO38+AS38+AW38+BA38)","v":0}]
["non",null,"Total des jours d'occupation annuels",null,null,null,null,null,{"$f":"I34+I36+I38","v":0},null,null,null,{"$f":"M34+M36+M38","v":0},null,null,null,{"$f":"Q34+Q36+Q38","v":0},null,null,null,{"$f":"U34+U36+U38","v":0},null,null,null,{"$f":"Y34+Y36+Y38","v":0},null,null,null,{"$f":"AC34+AC36+AC38","v":0},null,null,null,{"$f":"AG34+AG36+AG38","v":0},null,null,null,{"$f":"AK34+AK36+AK38","v":0},null,null,null,{"$f":"AO34+AO36+AO38","v":0},null,null,null,{"$f":"AS34+AS36+AS38","v":0},null,null,null,{"$f":"AW34+AW36+AW38","v":0},null,null,null,{"$f":"BA34+BA36+BA38","v":0},null,null,null,null,null,{"$f":"+IF(BE39<>0,+BE39,+I39+BA39)","v":0}]
["oui",null,null,null,null,null,"Pondération",null,null,null,"Pondération",null,null,null,"Pondération",null,null,null,"Pondération",null,null,null,"Pondération",null,null,null,"Pondération",null,null,null,"Pondération",null,null,null,"Pondération",null,null,null,"Pondération",null,null,null,"Pondération",null,null,null,"Pondération",null,null,null,"Pondération",null,null,null,"Pondération"]
["oui",null,"Jours d'occupation pondérés moins de 18 mois",null,null,null,{"$f":"INDEX(Barème!$C$5:$XFD$9234,_xlfn.XMATCH('Calcul-Subv-CPE'!$C41,Barème!$B$5:$B$9234),_xlfn.XMATCH('Calcul-Subv-CPE'!$E$17,Barème!$C$4:$XFD$4))","v":1.6},null,{"$f":"ROUND(+I34*G41,1)","v":0},null,{"$f":"INDEX(Barème!$C$5:$XFD$9234,_xlfn.XMATCH('Calcul-Subv-CPE'!$C41,Barème!$B$5:$B$9234),_xlfn.XMATCH('Calcul-Subv-CPE'!$E$17,Barème!$C$4:$XFD$4))","v":1.6},null,{"$f":"ROUND(+M34*K41,1)","v":0},null,{"$f":"INDEX(Barème!$C$5:$XFD$9234,_xlfn.XMATCH('Calcul-Subv-CPE'!$C41,Barème!$B$5:$B$9234),_xlfn.XMATCH('Calcul-Subv-CPE'!$E$17,Barème!$C$4:$XFD$4))","v":1.6},null,{"$f":"ROUND(+Q34*O41,1)","v":0},null,{"$f":"INDEX(Barème!$C$5:$XFD$9234,_xlfn.XMATCH('Calcul-Subv-CPE'!$C41,Barème!$B$5:$B$9234),_xlfn.XMATCH('Calcul-Subv-CPE'!$E$17,Barème!$C$4:$XFD$4))","v":1.6},null,{"$f":"ROUND(+U34*S41,1)","v":0},null,{"$f":"INDEX(Barème!$C$5:$XFD$9234,_xlfn.XMATCH('Calcul-Subv-CPE'!$C41,Barème!$B$5:$B$9234),_xlfn.XMATCH('Calcul-Subv-CPE'!$E$17,Barème!$C$4:$XFD$4))","v":1.6},null,{"$f":"ROUND(+Y34*W41,1)","v":0},null,{"$f":"INDEX(Barème!$C$5:$XFD$9234,_xlfn.XMATCH('Calcul-Subv-CPE'!$C41,Barème!$B$5:$B$9234),_xlfn.XMATCH('Calcul-Subv-CPE'!$E$17,Barème!$C$4:$XFD$4))","v":1.6},null,{"$f":"ROUND(+AC34*AA41,1)","v":0},null,{"$f":"INDEX(Barème!$C$5:$XFD$9234,_xlfn.XMATCH('Calcul-Subv-CPE'!$C41,Barème!$B$5:$B$9234),_xlfn.XMATCH('Calcul-Subv-CPE'!$E$17,Barème!$C$4:$XFD$4))","v":1.6},null,{"$f":"ROUND(+AG34*AE41,1)","v":0},null,{"$f":"INDEX(Barème!$C$5:$XFD$9234,_xlfn.XMATCH('Calcul-Subv-CPE'!$C41,Barème!$B$5:$B$9234),_xlfn.XMATCH('Calcul-Subv-CPE'!$E$17,Barème!$C$4:$XFD$4))","v":1.6},null,{"$f":"ROUND(+AK34*AI41,1)","v":0},null,{"$f":"INDEX(Barème!$C$5:$XFD$9234,_xlfn.XMATCH('Calcul-Subv-CPE'!$C41,Barème!$B$5:$B$9234),_xlfn.XMATCH('Calcul-Subv-CPE'!$E$17,Barème!$C$4:$XFD$4))","v":1.6},null,{"$f":"ROUND(+AO34*AM41,1)","v":0},null,{"$f":"INDEX(Barème!$C$5:$XFD$9234,_xlfn.XMATCH('Calcul-Subv-CPE'!$C41,Barème!$B$5:$B$9234),_xlfn.XMATCH('Calcul-Subv-CPE'!$E$17,Barème!$C$4:$XFD$4))","v":1.6},null,{"$f":"ROUND(+AS34*AQ41,1)","v":0},null,{"$f":"INDEX(Barème!$C$5:$XFD$9234,_xlfn.XMATCH('Calcul-Subv-CPE'!$C41,Barème!$B$5:$B$9234),_xlfn.XMATCH('Calcul-Subv-CPE'!$E$17,Barème!$C$4:$XFD$4))","v":1.6},null,{"$f":"ROUND(+AW34*AU41,1)","v":0},null,{"$f":"INDEX(Barème!$C$5:$XFD$9234,_xlfn.XMATCH('Calcul-Subv-CPE'!$C41,Barème!$B$5:$B$9234),_xlfn.XMATCH('Calcul-Subv-CPE'!$E$17,Barème!$C$4:$XFD$4))","v":1.6},null,{"$f":"ROUND(+BA34*AY41,1)","v":0},null,{"$f":"INDEX(Barème!$C$5:$XFD$9234,_xlfn.XMATCH('Calcul-Subv-CPE'!$C41,Barème!$B$5:$B$9234),_xlfn.XMATCH('Calcul-Subv-CPE'!$E$17,Barème!$C$4:$XFD$4))","v":1.6},null,{"$f":"ROUND(+BE34*BC41,1)","v":0},null,{"$f":"+IF(BE41<>0,+BE41,+I41+M41+Q41+U41+Y41+AC41+AG41+AK41+AO41+AS41+AW41+BA41)","v":0}]
["oui",null,"Jours d'occupation pondérés 18-47 mois",null,null,null,{"$f":"INDEX(Barème!$C$5:$XFD$9234,_xlfn.XMATCH('Calcul-Subv-CPE'!$C42,Barème!$B$5:$B$9234),_xlfn.XMATCH('Calcul-Subv-CPE'!$E$17,Barème!$C$4:$XFD$4))","v":1},null,{"$f":"ROUND(+I36*G42,1)","v":0},null,{"$f":"INDEX(Barème!$C$5:$XFD$9234,_xlfn.XMATCH('Calcul-Subv-CPE'!$C42,Barème!$B$5:$B$9234),_xlfn.XMATCH('Calcul-Subv-CPE'!$E$17,Barème!$C$4:$XFD$4))","v":1},null,{"$f":"ROUND(+M36*K42,1)","v":0},null,{"$f":"INDEX(Barème!$C$5:$XFD$9234,_xlfn.XMATCH('Calcul-Subv-CPE'!$C42,Barème!$B$5:$B$9234),_xlfn.XMATCH('Calcul-Subv-CPE'!$E$17,Barème!$C$4:$XFD$4))","v":1},null,{"$f":"ROUND(+Q36*O42,1)","v":0},null,{"$f":"INDEX(Barème!$C$5:$XFD$9234,_xlfn.XMATCH('Calcul-Subv-CPE'!$C42,Barème!$B$5:$B$9234),_xlfn.XMATCH('Calcul-Subv-CPE'!$E$17,Barème!$C$4:$XFD$4))","v":1},null,{"$f":"ROUND(+U36*S42,1)","v":0},null,{"$f":"INDEX(Barème!$C$5:$XFD$9234,_xlfn.XMATCH('Calcul-Subv-CPE'!$C42,Barème!$B$5:$B$9234),_xlfn.XMATCH('Calcul-Subv-CPE'!$E$17,Barème!$C$4:$XFD$4))","v":1},null,{"$f":"ROUND(+Y36*W42,1)","v":0},null,{"$f":"INDEX(Barème!$C$5:$XFD$9234,_xlfn.XMATCH('Calcul-Subv-CPE'!$C42,Barème!$B$5:$B$9234),_xlfn.XMATCH('Calcul-Subv-CPE'!$E$17,Barème!$C$4:$XFD$4))","v":1},null,{"$f":"ROUND(+AC36*AA42,1)","v":0},null,{"$f":"INDEX(Barème!$C$5:$XFD$9234,_xlfn.XMATCH('Calcul-Subv-CPE'!$C42,Barème!$B$5:$B$9234),_xlfn.XMATCH('Calcul-Subv-CPE'!$E$17,Barème!$C$4:$XFD$4))","v":1},null,{"$f":"ROUND(+AG36*AE42,1)","v":0},null,{"$f":"INDEX(Barème!$C$5:$XFD$9234,_xlfn.XMATCH('Calcul-Subv-CPE'!$C42,Barème!$B$5:$B$9234),_xlfn.XMATCH('Calcul-Subv-CPE'!$E$17,Barème!$C$4:$XFD$4))","v":1},null,{"$f":"ROUND(+AK36*AI42,1)","v":0},null,{"$f":"INDEX(Barème!$C$5:$XFD$9234,_xlfn.XMATCH('Calcul-Subv-CPE'!$C42,Barème!$B$5:$B$9234),_xlfn.XMATCH('Calcul-Subv-CPE'!$E$17,Barème!$C$4:$XFD$4))","v":1},null,{"$f":"ROUND(+AO36*AM42,1)","v":0},null,{"$f":"INDEX(Barème!$C$5:$XFD$9234,_xlfn.XMATCH('Calcul-Subv-CPE'!$C42,Barème!$B$5:$B$9234),_xlfn.XMATCH('Calcul-Subv-CPE'!$E$17,Barème!$C$4:$XFD$4))","v":1},null,{"$f":"ROUND(+AS36*AQ42,1)","v":0},null,{"$f":"INDEX(Barème!$C$5:$XFD$9234,_xlfn.XMATCH('Calcul-Subv-CPE'!$C42,Barème!$B$5:$B$9234),_xlfn.XMATCH('Calcul-Subv-CPE'!$E$17,Barème!$C$4:$XFD$4))","v":1},null,{"$f":"ROUND(+AW36*AU42,1)","v":0},null,{"$f":"INDEX(Barème!$C$5:$XFD$9234,_xlfn.XMATCH('Calcul-Subv-CPE'!$C42,Barème!$B$5:$B$9234),_xlfn.XMATCH('Calcul-Subv-CPE'!$E$17,Barème!$C$4:$XFD$4))","v":1},null,{"$f":"ROUND(+BA36*AY42,1)","v":0},null,{"$f":"INDEX(Barème!$C$5:$XFD$9234,_xlfn.XMATCH('Calcul-Subv-CPE'!$C42,Barème!$B$5:$B$9234),_xlfn.XMATCH('Calcul-Subv-CPE'!$E$17,Barème!$C$4:$XFD$4))","v":1},null,{"$f":"ROUND(+BE36*BC42,1)","v":0},null,{"$f":"+IF(BE42<>0,+BE42,+I42+M42+Q42+U42+Y42+AC42+AG42+AK42+AO42+AS42+AW42+BA42)","v":0}]
["oui",null,"Jours d'occupation pondérés 48 mois et plus",null,null,null,{"$f":"INDEX(Barème!$C$5:$XFD$9234,_xlfn.XMATCH('Calcul-Subv-CPE'!$C43,Barème!$B$5:$B$9234),_xlfn.XMATCH('Calcul-Subv-CPE'!$E$17,Barème!$C$4:$XFD$4))","v":0.8},null,{"$f":"ROUND(+I38*G43,1)","v":0},null,{"$f":"INDEX(Barème!$C$5:$XFD$9234,_xlfn.XMATCH('Calcul-Subv-CPE'!$C43,Barème!$B$5:$B$9234),_xlfn.XMATCH('Calcul-Subv-CPE'!$E$17,Barème!$C$4:$XFD$4))","v":0.8},null,{"$f":"ROUND(+M38*K43,1)","v":0},null,{"$f":"INDEX(Barème!$C$5:$XFD$9234,_xlfn.XMATCH('Calcul-Subv-CPE'!$C43,Barème!$B$5:$B$9234),_xlfn.XMATCH('Calcul-Subv-CPE'!$E$17,Barème!$C$4:$XFD$4))","v":0.8},null,{"$f":"ROUND(+Q38*O43,1)","v":0},null,{"$f":"INDEX(Barème!$C$5:$XFD$9234,_xlfn.XMATCH('Calcul-Subv-CPE'!$C43,Barème!$B$5:$B$9234),_xlfn.XMATCH('Calcul-Subv-CPE'!$E$17,Barème!$C$4:$XFD$4))","v":0.8},null,{"$f":"ROUND(+U38*S43,1)","v":0},null,{"$f":"INDEX(Barème!$C$5:$XFD$9234,_xlfn.XMATCH('Calcul-Subv-CPE'!$C43,Barème!$B$5:$B$9234),_xlfn.XMATCH('Calcul-Subv-CPE'!$E$17,Barème!$C$4:$XFD$4))","v":0.8},null,{"$f":"ROUND(+Y38*W43,1)","v":0},null,{"$f":"INDEX(Barème!$C$5:$XFD$9234,_xlfn.XMATCH('Calcul-Subv-CPE'!$C43,Barème!$B$5:$B$9234),_xlfn.XMATCH('Calcul-Subv-CPE'!$E$17,Barème!$C$4:$XFD$4))","v":0.8},null,{"$f":"ROUND(+AC38*AA43,1)","v":0},null,{"$f":"INDEX(Barème!$C$5:$XFD$9234,_xlfn.XMATCH('Calcul-Subv-CPE'!$C43,Barème!$B$5:$B$9234),_xlfn.XMATCH('Calcul-Subv-CPE'!$E$17,Barème!$C$4:$XFD$4))","v":0.8},null,{"$f":"ROUND(+AG38*AE43,1)","v":0},null,{"$f":"INDEX(Barème!$C$5:$XFD$9234,_xlfn.XMATCH('Calcul-Subv-CPE'!$C43,Barème!$B$5:$B$9234),_xlfn.XMATCH('Calcul-Subv-CPE'!$E$17,Barème!$C$4:$XFD$4))","v":0.8},null,{"$f":"ROUND(+AK38*AI43,1)","v":0},null,{"$f":"INDEX(Barème!$C$5:$XFD$9234,_xlfn.XMATCH('Calcul-Subv-CPE'!$C43,Barème!$B$5:$B$9234),_xlfn.XMATCH('Calcul-Subv-CPE'!$E$17,Barème!$C$4:$XFD$4))","v":0.8},null,{"$f":"ROUND(+AO38*AM43,1)","v":0},null,{"$f":"INDEX(Barème!$C$5:$XFD$9234,_xlfn.XMATCH('Calcul-Subv-CPE'!$C43,Barème!$B$5:$B$9234),_xlfn.XMATCH('Calcul-Subv-CPE'!$E$17,Barème!$C$4:$XFD$4))","v":0.8},null,{"$f":"ROUND(+AS38*AQ43,1)","v":0},null,{"$f":"INDEX(Barème!$C$5:$XFD$9234,_xlfn.XMATCH('Calcul-Subv-CPE'!$C43,Barème!$B$5:$B$9234),_xlfn.XMATCH('Calcul-Subv-CPE'!$E$17,Barème!$C$4:$XFD$4))","v":0.8},null,{"$f":"ROUND(+AW38*AU43,1)","v":0},null,{"$f":"INDEX(Barème!$C$5:$XFD$9234,_xlfn.XMATCH('Calcul-Subv-CPE'!$C43,Barème!$B$5:$B$9234),_xlfn.XMATCH('Calcul-Subv-CPE'!$E$17,Barème!$C$4:$XFD$4))","v":0.8},null,{"$f":"ROUND(+BA38*AY43,1)","v":0},null,{"$f":"INDEX(Barème!$C$5:$XFD$9234,_xlfn.XMATCH('Calcul-Subv-CPE'!$C43,Barème!$B$5:$B$9234),_xlfn.XMATCH('Calcul-Subv-CPE'!$E$17,Barème!$C$4:$XFD$4))","v":0.8},null,{"$f":"ROUND(+BE38*BC43,1)","v":0},null,{"$f":"+IF(BE43<>0,+BE43,+I43+M43+Q43+U43+Y43+AC43+AG43+AK43+AO43+AS43+AW43+BA43)","v":0}]
["oui",null,"Total des jours d'occupation pondéré",null,null,null,null,null,{"$f":"SUM(I41:I43)","v":0},null,null,null,{"$f":"SUM(M41:M43)","v":0},null,null,null,{"$f":"SUM(Q41:Q43)","v":0},null,null,null,{"$f":"SUM(U41:U43)","v":0},null,null,null,{"$f":"SUM(Y41:Y43)","v":0},null,null,null,{"$f":"SUM(AC41:AC43)","v":0},null,null,null,{"$f":"SUM(AG41:AG43)","v":0},null,null,null,{"$f":"SUM(AK41:AK43)","v":0},null,null,null,{"$f":"SUM(AO41:AO43)","v":0},null,null,null,{"$f":"SUM(AS41:AS43)","v":0},null,null,null,{"$f":"SUM(AW41:AW43)","v":0},null,null,null,{"$f":"SUM(BA41:BA43)","v":0},null,null,null,{"$f":"SUM(BE41:BE43)","v":0},null,{"$f":"SUM(BG41:BG43)","v":0}]
["oui"]
["oui",null,"Jours de présence de 0 à 18 mois",null,null,null,"non nécessaire avec le calcul de la promesse",null,null,null,"non nécessaire avec le calcul de la promesse",null,null,null,"non nécessaire avec le calcul de la promesse",null,null,null,"non nécessaire avec le calcul de la promesse",null,null,null,"non nécessaire avec le calcul de la promesse",null,null,null,"non nécessaire avec le calcul de la promesse",null,null,null,"non nécessaire avec le calcul de la promesse",null,null,null,"non nécessaire avec le calcul de la promesse",null,null,null,"non nécessaire avec le calcul de la promesse",null,null,null,"non nécessaire avec le calcul de la promesse",null,null,null,"non nécessaire avec le calcul de la promesse",null,null,null,"non nécessaire avec le calcul de la promesse",null,null,null,"non nécessaire avec le calcul de la promesse"]
["oui"]
["oui",null,"Jours de présence de 18 à 47 mois",null,null,null,"non nécessaire avec le calcul de la promesse",null,null,null,"non nécessaire avec le calcul de la promesse",null,null,null,"non nécessaire avec le calcul de la promesse",null,null,null,"non nécessaire avec le calcul de la promesse",null,null,null,"non nécessaire avec le calcul de la promesse",null,null,null,"non nécessaire avec le calcul de la promesse",null,null,null,"non nécessaire avec le calcul de la promesse",null,null,null,"non nécessaire avec le calcul de la promesse",null,null,null,"non nécessaire avec le calcul de la promesse",null,null,null,"non nécessaire avec le calcul de la promesse",null,null,null,"non nécessaire avec le calcul de la promesse",null,null,null,"non nécessaire avec le calcul de la promesse",null,null,null,"non nécessaire avec le calcul de la promesse"]
["oui"]
["oui",null,"Jours de présence de 48 mois et plus",null,null,null,"non nécessaire avec le calcul de la promesse",null,null,null,"non nécessaire avec le calcul de la promesse",null,null,null,"non nécessaire avec le calcul de la promesse",null,null,null,"non nécessaire avec le calcul de la promesse",null,null,null,"non nécessaire avec le calcul de la promesse",null,null,null,"non nécessaire avec le calcul de la promesse",null,null,null,"non nécessaire avec le calcul de la promesse",null,null,null,"non nécessaire avec le calcul de la promesse",null,null,null,"non nécessaire avec le calcul de la promesse",null,null,null,"non nécessaire avec le calcul de la promesse",null,null,null,"non nécessaire avec le calcul de la promesse",null,null,null,"non nécessaire avec le calcul de la promesse",null,null,null,"non nécessaire avec le calcul de la promesse"]
["non",null,"Total des jours de présence annuels",null,"Représente la présence physique des enfants",null,null,null,null,null,null,null,null,null,null,null,null,null,null,null,null,null,null,null,null,null,null,null,null,null,null,null,null,null,null,null,null,null,null,null,null,null,null,null,null,null,null,null,null,null,null,null,null,null,null,null,null,null,{"$f":"+IF(BE51<>0,+BE51,+I51+M51+Q51+U51+Y51+AC51+AG51+AK51+AO51+AS51+AW51+BA51)","v":0}]
["non"]
["oui",null,"Taux d'occupation moins de 18 mois",null,null,null,"Ne sert pas dans les formules",null,{"$f":"ROUND(I34/(I23*$I$30),4)","v":{"$error":"#DIV/0!"}},null,"Ne sert pas dans les formules",null,{"$f":"ROUND(M34/(M23*$I$30),4)","v":{"$error":"#DIV/0!"}},null,"Ne sert pas dans les formules",null,{"$f":"ROUND(Q34/(Q23*$I$30),4)","v":{"$error":"#DIV/0!"}},null,"Ne sert pas dans les formules",null,{"$f":"ROUND(U34/(U23*$I$30),4)","v":{"$error":"#DIV/0!"}},null,"Ne sert pas dans les formules",null,{"$f":"ROUND(Y34/(Y23*$I$30),4)","v":{"$error":"#DIV/0!"}},null,"Ne sert pas dans les formules",null,{"$f":"ROUND(AC34/(AC23*$I$30),4)","v":{"$error":"#DIV/0!"}},null,"Ne sert pas dans les formules",null,{"$f":"ROUND(AG34/(AG23*$I$30),4)","v":{"$error":"#DIV/0!"}},null,"Ne sert pas dans les formules",null,{"$f":"ROUND(AK34/(AK23*$I$30),4)","v":{"$error":"#DIV/0!"}},null,"Ne sert pas dans les formules",null,{"$f":"ROUND(AO34/(AO23*$I$30),4)","v":{"$error":"#DIV/0!"}},null,"Ne sert pas dans les formules",null,{"$f":"ROUND(AS34/(AS23*$I$30),4)","v":{"$error":"#DIV/0!"}},null,"Ne sert pas dans les formules",null,{"$f":"ROUND(AW34/(AW23*$I$30),4)","v":{"$error":"#DIV/0!"}},null,"Ne sert pas dans les formules",null,{"$f":"ROUND(BA34/(BA23*$I$30),4)","v":{"$error":"#DIV/0!"}},null,"Ne sert pas dans les formules",null,{"$f":"ROUND(BE34/(BE23*$I$30),4)","v":{"$error":"#DIV/0!"}},null,{"$f":"ROUND(BG34/(BG23*$I$30),4)","v":{"$error":"#DIV/0!"}}]
["oui",null,"Taux d'occupation 18-47 mois",null,null,null,"Ne sert pas dans les formules",null,{"$f":"ROUND(I36/(I25*$I$30),4)","v":{"$error":"#DIV/0!"}},null,"Ne sert pas dans les formules",null,{"$f":"ROUND(M36/(M25*$I$30),4)","v":{"$error":"#DIV/0!"}},null,"Ne sert pas dans les formules",null,{"$f":"ROUND(Q36/(Q25*$I$30),4)","v":{"$error":"#DIV/0!"}},null,"Ne sert pas dans les formules",null,{"$f":"ROUND(U36/(U25*$I$30),4)","v":{"$error":"#DIV/0!"}},null,"Ne sert pas dans les formules",null,{"$f":"ROUND(Y36/(Y25*$I$30),4)","v":{"$error":"#DIV/0!"}},null,"Ne sert pas dans les formules",null,{"$f":"ROUND(AC36/(AC25*$I$30),4)","v":{"$error":"#DIV/0!"}},null,"Ne sert pas dans les formules",null,{"$f":"ROUND(AG36/(AG25*$I$30),4)","v":{"$error":"#DIV/0!"}},null,"Ne sert pas dans les formules",null,{"$f":"ROUND(AK36/(AK25*$I$30),4)","v":{"$error":"#DIV/0!"}},null,"Ne sert pas dans les formules",null,{"$f":"ROUND(AO36/(AO25*$I$30),4)","v":{"$error":"#DIV/0!"}},null,"Ne sert pas dans les formules",null,{"$f":"ROUND(AS36/(AS25*$I$30),4)","v":{"$error":"#DIV/0!"}},null,"Ne sert pas dans les formules",null,{"$f":"ROUND(AW36/(AW25*$I$30),4)","v":{"$error":"#DIV/0!"}},null,"Ne sert pas dans les formules",null,{"$f":"ROUND(BA36/(BA25*$I$30),4)","v":{"$error":"#DIV/0!"}},null,"Ne sert pas dans les formules",null,{"$f":"ROUND(BE36/(BE25*$I$30),4)","v":{"$error":"#DIV/0!"}},null,{"$f":"ROUND(BG36/(BG25*$I$30),4)","v":{"$error":"#DIV/0!"}}]
["oui",null,"Taux d'occupation 48 mois et plus",null,null,null,"Ne sert pas dans les formules",null,{"$f":"ROUND(I38/(I27*$I$30),4)","v":{"$error":"#DIV/0!"}},null,"Ne sert pas dans les formules",null,{"$f":"ROUND(M38/(M27*$I$30),4)","v":{"$error":"#DIV/0!"}},null,"Ne sert pas dans les formules",null,{"$f":"ROUND(Q38/(Q27*$I$30),4)","v":{"$error":"#DIV/0!"}},null,"Ne sert pas dans les formules",null,{"$f":"ROUND(U38/(U27*$I$30),4)","v":{"$error":"#DIV/0!"}},null,"Ne sert pas dans les formules",null,{"$f":"ROUND(Y38/(Y27*$I$30),4)","v":{"$error":"#DIV/0!"}},null,"Ne sert pas dans les formules",null,{"$f":"ROUND(AC38/(AC27*$I$30),4)","v":{"$error":"#DIV/0!"}},null,"Ne sert pas dans les formules",null,{"$f":"ROUND(AG38/(AG27*$I$30),4)","v":{"$error":"#DIV/0!"}},null,"Ne sert pas dans les formules",null,{"$f":"ROUND(AK38/(AK27*$I$30),4)","v":{"$error":"#DIV/0!"}},null,"Ne sert pas dans les formules",null,{"$f":"ROUND(AO38/(AO27*$I$30),4)","v":{"$error":"#DIV/0!"}},null,"Ne sert pas dans les formules",null,{"$f":"ROUND(AS38/(AS27*$I$30),4)","v":{"$error":"#DIV/0!"}},null,"Ne sert pas dans les formules",null,{"$f":"ROUND(AW38/(AW27*$I$30),4)","v":{"$error":"#DIV/0!"}},null,"Ne sert pas dans les formules",null,{"$f":"ROUND(BA38/(BA27*$I$30),4)","v":{"$error":"#DIV/0!"}},null,"Ne sert pas dans les formules",null,{"$f":"ROUND(BE38/(BE27*$I$30),4)","v":{"$error":"#DIV/0!"}},null,{"$f":"ROUND(BG38/(BG27*$I$30),4)","v":{"$error":"#DIV/0!"}}]
["oui",null,"Taux d'occupation global (Tx d'occ brut)",null,null,null,null,null,{"$f":"ROUND((+I23/I$28*I53)+(+I25/I$28*I54)+(+I27/I$28*I55),4)","v":{"$error":"#DIV/0!"}},null,null,null,{"$f":"ROUND((+M23/M$28*M53)+(+M25/M$28*M54)+(+M27/M$28*M55),4)","v":{"$error":"#DIV/0!"}},null,null,null,{"$f":"ROUND((+Q23/Q$28*Q53)+(+Q25/Q$28*Q54)+(+Q27/Q$28*Q55),4)","v":{"$error":"#DIV/0!"}},null,null,null,{"$f":"ROUND((+U23/U$28*U53)+(+U25/U$28*U54)+(+U27/U$28*U55),4)","v":{"$error":"#DIV/0!"}},null,null,null,{"$f":"ROUND((+Y23/Y$28*Y53)+(+Y25/Y$28*Y54)+(+Y27/Y$28*Y55),4)","v":{"$error":"#DIV/0!"}},null,null,null,{"$f":"ROUND((+AC23/AC$28*AC53)+(+AC25/AC$28*AC54)+(+AC27/AC$28*AC55),4)","v":{"$error":"#DIV/0!"}},null,null,null,{"$f":"ROUND((+AG23/AG$28*AG53)+(+AG25/AG$28*AG54)+(+AG27/AG$28*AG55),4)","v":{"$error":"#DIV/0!"}},null,null,null,{"$f":"ROUND((+AK23/AK$28*AK53)+(+AK25/AK$28*AK54)+(+AK27/AK$28*AK55),4)","v":{"$error":"#DIV/0!"}},null,null,null,{"$f":"ROUND((+AO23/AO$28*AO53)+(+AO25/AO$28*AO54)+(+AO27/AO$28*AO55),4)","v":{"$error":"#DIV/0!"}},null,null,null,{"$f":"ROUND((+AS23/AS$28*AS53)+(+AS25/AS$28*AS54)+(+AS27/AS$28*AS55),4)","v":{"$error":"#DIV/0!"}},null,null,null,{"$f":"ROUND((+AW23/AW$28*AW53)+(+AW25/AW$28*AW54)+(+AW27/AW$28*AW55),4)","v":{"$error":"#DIV/0!"}},null,null,null,{"$f":"ROUND((+BA23/BA$28*BA53)+(+BA25/BA$28*BA54)+(+BA27/BA$28*BA55),4)","v":{"$error":"#DIV/0!"}},null,null,null,{"$f":"ROUND((+BE23/BE$28*BE53)+(+BE25/BE$28*BE54)+(+BE27/BE$28*BE55),4)","v":{"$error":"#DIV/0!"}},null,{"$f":"ROUND((+BG23/BG$28*BG53)+(+BG25/BG$28*BG54)+(+BG27/BG$28*BG55),4)","v":{"$error":"#DIV/0!"}}]
["oui",null,"Taux d'occupation ajusté par AISG (Tx d'occupation selon les RB)",null,null,null,null,null,{"$f":"ROUND((I39+I193)/(I28*I30),4)","v":{"$error":"#DIV/0!"}},null,null,null,{"$f":"ROUND((M39+M193)/(M28*M30),4)","v":{"$error":"#DIV/0!"}},null,null,null,{"$f":"ROUND((Q39+Q193)/(Q28*Q30),4)","v":{"$error":"#DIV/0!"}},null,null,null,{"$f":"ROUND((U39+U193)/(U28*U30),4)","v":{"$error":"#DIV/0!"}},null,null,null,{"$f":"ROUND((Y39+Y193)/(Y28*Y30),4)","v":{"$error":"#DIV/0!"}},null,null,null,{"$f":"ROUND((AC39+AC193)/(AC28*AC30),4)","v":{"$error":"#DIV/0!"}},null,null,null,{"$f":"ROUND((AG39+AG193)/(AG28*AG30),4)","v":{"$error":"#DIV/0!"}},null,null,null,{"$f":"ROUND((AK39+AK193)/(AK28*AK30),4)","v":{"$error":"#DIV/0!"}},null,null,null,{"$f":"ROUND((AO39+AO193)/(AO28*AO30),4)","v":{"$error":"#DIV/0!"}},null,null,null,{"$f":"ROUND((AS39+AS193)/(AS28*AS30),4)","v":{"$error":"#DIV/0!"}},null,null,null,{"$f":"ROUND((AW39+AW193)/(AW28*AW30),4)","v":{"$error":"#DIV/0!"}},null,null,null,{"$f":"ROUND((BA39+BA193)/(BA28*BA30),4)","v":{"$error":"#DIV/0!"}},null,null,null,{"$f":"ROUND((BE39+BE193)/(BE28*BE30),4)","v":{"$error":"#DIV/0!"}},null,{"$f":"ROUND((BG39+BG193)/(BG28*BG30),4)","v":{"$error":"#DIV/0!"}}]
["oui",null,"Taux de présence 0-17 mois",null,null,null,"Ne sert pas dans les formules",null,{"$f":"ROUND(I46/I34,4)","v":{"$error":"#DIV/0!"}},null,"Ne sert pas dans les formules",null,{"$f":"ROUND(M46/M34,4)","v":{"$error":"#DIV/0!"}},null,"Ne sert pas dans les formules",null,{"$f":"ROUND(Q46/Q34,4)","v":{"$error":"#DIV/0!"}},null,"Ne sert pas dans les formules",null,{"$f":"ROUND(U46/U34,4)","v":{"$error":"#DIV/0!"}},null,"Ne sert pas dans les formules",null,{"$f":"ROUND(Y46/Y34,4)","v":{"$error":"#DIV/0!"}},null,"Ne sert pas dans les formules",null,{"$f":"ROUND(AC46/AC34,4)","v":{"$error":"#DIV/0!"}},null,"Ne sert pas dans les formules",null,{"$f":"ROUND(AG46/AG34,4)","v":{"$error":"#DIV/0!"}},null,"Ne sert pas dans les formules",null,{"$f":"ROUND(AK46/AK34,4)","v":{"$error":"#DIV/0!"}},null,"Ne sert pas dans les formules",null,{"$f":"ROUND(AO46/AO34,4)","v":{"$error":"#DIV/0!"}},null,"Ne sert pas dans les formules",null,{"$f":"ROUND(AS46/AS34,4)","v":{"$error":"#DIV/0!"}},null,"Ne sert pas dans les formules",null,{"$f":"ROUND(AW46/AW34,4)","v":{"$error":"#DIV/0!"}},null,"Ne sert pas dans les formules",null,{"$f":"ROUND(BA46/BA34,4)","v":{"$error":"#DIV/0!"}},null,"Ne sert pas dans les formules",null,{"$f":"ROUND(BE46/BE34,4)","v":{"$error":"#DIV/0!"}},null,{"$f":"ROUND(BG46/BG34,4)","v":{"$error":"#DIV/0!"}}]
["oui",null,"Taux de présence 18-47 mois",null,null,null,"Ne sert pas dans les formules",null,{"$f":"ROUND(I48/I36,4)","v":{"$error":"#DIV/0!"}},null,"Ne sert pas dans les formules",null,{"$f":"ROUND(M48/M36,4)","v":{"$error":"#DIV/0!"}},null,"Ne sert pas dans les formules",null,{"$f":"ROUND(Q48/Q36,4)","v":{"$error":"#DIV/0!"}},null,"Ne sert pas dans les formules",null,{"$f":"ROUND(U48/U36,4)","v":{"$error":"#DIV/0!"}},null,"Ne sert pas dans les formules",null,{"$f":"ROUND(Y48/Y36,4)","v":{"$error":"#DIV/0!"}},null,"Ne sert pas dans les formules",null,{"$f":"ROUND(AC48/AC36,4)","v":{"$error":"#DIV/0!"}},null,"Ne sert pas dans les formules",null,{"$f":"ROUND(AG48/AG36,4)","v":{"$error":"#DIV/0!"}},null,"Ne sert pas dans les formules",null,{"$f":"ROUND(AK48/AK36,4)","v":{"$error":"#DIV/0!"}},null,"Ne sert pas dans les formules",null,{"$f":"ROUND(AO48/AO36,4)","v":{"$error":"#DIV/0!"}},null,"Ne sert pas dans les formules",null,{"$f":"ROUND(AS48/AS36,4)","v":{"$error":"#DIV/0!"}},null,"Ne sert pas dans les formules",null,{"$f":"ROUND(AW48/AW36,4)","v":{"$error":"#DIV/0!"}},null,"Ne sert pas dans les formules",null,{"$f":"ROUND(BA48/BA36,4)","v":{"$error":"#DIV/0!"}},null,"Ne sert pas dans les formules",null,{"$f":"ROUND(BE48/BE36,4)","v":{"$error":"#DIV/0!"}},null,{"$f":"ROUND(BG48/BG36,4)","v":{"$error":"#DIV/0!"}}]
["oui",null,"Taux de présence 48 mois et plus",null,null,null,"Ne sert pas dans les formules",null,{"$f":"ROUND(I50/I38,4)","v":{"$error":"#DIV/0!"}},null,"Ne sert pas dans les formules",null,{"$f":"ROUND(M50/M38,4)","v":{"$error":"#DIV/0!"}},null,"Ne sert pas dans les formules",null,{"$f":"ROUND(Q50/Q38,4)","v":{"$error":"#DIV/0!"}},null,"Ne sert pas dans les formules",null,{"$f":"ROUND(U50/U38,4)","v":{"$error":"#DIV/0!"}},null,"Ne sert pas dans les formules",null,{"$f":"ROUND(Y50/Y38,4)","v":{"$error":"#DIV/0!"}},null,"Ne sert pas dans les formules",null,{"$f":"ROUND(AC50/AC38,4)","v":{"$error":"#DIV/0!"}},null,"Ne sert pas dans les formules",null,{"$f":"ROUND(AG50/AG38,4)","v":{"$error":"#DIV/0!"}},null,"Ne sert pas dans les formules",null,{"$f":"ROUND(AK50/AK38,4)","v":{"$error":"#DIV/0!"}},null,"Ne sert pas dans les formules",null,{"$f":"ROUND(AO50/AO38,4)","v":{"$error":"#DIV/0!"}},null,"Ne sert pas dans les formules",null,{"$f":"ROUND(AS50/AS38,4)","v":{"$error":"#DIV/0!"}},null,"Ne sert pas dans les formules",null,{"$f":"ROUND(AW50/AW38,4)","v":{"$error":"#DIV/0!"}},null,"Ne sert pas dans les formules",null,{"$f":"ROUND(BA50/BA38,4)","v":{"$error":"#DIV/0!"}},null,"Ne sert pas dans les formules",null,{"$f":"ROUND(BE50/BE38,4)","v":{"$error":"#DIV/0!"}},null,{"$f":"ROUND(BG50/BG38,4)","v":{"$error":"#DIV/0!"}}]
["oui",null,"Taux de présence global (Tx de présence brut)",null,null,null,null,null,{"$f":"ROUND((+I23/I$28*I58)+(+I25/I$28*I59)+(+I27/I$28*I60),4)","v":{"$error":"#DIV/0!"}},null,null,null,{"$f":"ROUND((+M23/M$28*M58)+(+M25/M$28*M59)+(+M27/M$28*M60),4)","v":{"$error":"#DIV/0!"}},null,null,null,{"$f":"ROUND((+Q23/Q$28*Q58)+(+Q25/Q$28*Q59)+(+Q27/Q$28*Q60),4)","v":{"$error":"#DIV/0!"}},null,null,null,{"$f":"ROUND((+U23/U$28*U58)+(+U25/U$28*U59)+(+U27/U$28*U60),4)","v":{"$error":"#DIV/0!"}},null,null,null,{"$f":"ROUND((+Y23/Y$28*Y58)+(+Y25/Y$28*Y59)+(+Y27/Y$28*Y60),4)","v":{"$error":"#DIV/0!"}},null,null,null,{"$f":"ROUND((+AC23/AC$28*AC58)+(+AC25/AC$28*AC59)+(+AC27/AC$28*AC60),4)","v":{"$error":"#DIV/0!"}},null,null,null,{"$f":"ROUND((+AG23/AG$28*AG58)+(+AG25/AG$28*AG59)+(+AG27/AG$28*AG60),4)","v":{"$error":"#DIV/0!"}},null,null,null,{"$f":"ROUND((+AK23/AK$28*AK58)+(+AK25/AK$28*AK59)+(+AK27/AK$28*AK60),4)","v":{"$error":"#DIV/0!"}},null,null,null,{"$f":"ROUND((+AO23/AO$28*AO58)+(+AO25/AO$28*AO59)+(+AO27/AO$28*AO60),4)","v":{"$error":"#DIV/0!"}},null,null,null,{"$f":"ROUND((+AS23/AS$28*AS58)+(+AS25/AS$28*AS59)+(+AS27/AS$28*AS60),4)","v":{"$error":"#DIV/0!"}},null,null,null,{"$f":"ROUND((+AW23/AW$28*AW58)+(+AW25/AW$28*AW59)+(+AW27/AW$28*AW60),4)","v":{"$error":"#DIV/0!"}},null,null,null,{"$f":"ROUND((+BA23/BA$28*BA58)+(+BA25/BA$28*BA59)+(+BA27/BA$28*BA60),4)","v":{"$error":"#DIV/0!"}},null,null,null,{"$f":"ROUND((+BE23/BE$28*BE58)+(+BE25/BE$28*BE59)+(+BE27/BE$28*BE60),4)","v":{"$error":"#DIV/0!"}},null,{"$f":"ROUND((+BG23/BG$28*BG58)+(+BG25/BG$28*BG59)+(+BG27/BG$28*BG60),4)","v":{"$error":"#DIV/0!"}}]
["oui",null,"Taux de présence ajusté par AISG, ECP, GHNU (Tx de présence selon les RB)",null,null,null,null,null,{"$f":"ROUND((I51-I195-I235-I241)/(I39-I193-I230-I239),4)","v":{"$error":"#DIV/0!"}},null,null,null,{"$f":"ROUND((M51-M195-M235-M241)/(M39-M193-M230-M239),4)","v":{"$error":"#DIV/0!"}},null,null,null,{"$f":"ROUND((Q51-Q195-Q235-Q241)/(Q39-Q193-Q230-Q239),4)","v":{"$error":"#DIV/0!"}},null,null,null,{"$f":"ROUND((U51-U195-U235-U241)/(U39-U193-U230-U239),4)","v":{"$error":"#DIV/0!"}},null,null,null,{"$f":"ROUND((Y51-Y195-Y235-Y241)/(Y39-Y193-Y230-Y239),4)","v":{"$error":"#DIV/0!"}},null,null,null,{"$f":"ROUND((AC51-AC195-AC235-AC241)/(AC39-AC193-AC230-AC239),4)","v":{"$error":"#DIV/0!"}},null,null,null,{"$f":"ROUND((AG51-AG195-AG235-AG241)/(AG39-AG193-AG230-AG239),4)","v":{"$error":"#DIV/0!"}},null,null,null,{"$f":"ROUND((AK51-AK195-AK235-AK241)/(AK39-AK193-AK230-AK239),4)","v":{"$error":"#DIV/0!"}},null,null,null,{"$f":"ROUND((AO51-AO195-AO235-AO241)/(AO39-AO193-AO230-AO239),4)","v":{"$error":"#DIV/0!"}},null,null,null,{"$f":"ROUND((AS51-AS195-AS235-AS241)/(AS39-AS193-AS230-AS239),4)","v":{"$error":"#DIV/0!"}},null,null,null,{"$f":"ROUND((AW51-AW195-AW235-AW241)/(AW39-AW193-AW230-AW239),4)","v":{"$error":"#DIV/0!"}},null,null,null,{"$f":"ROUND((BA51-BA195-BA235-BA241)/(BA39-BA193-BA230-BA239),4)","v":{"$error":"#DIV/0!"}},null,null,null,{"$f":"ROUND((BE51-BE195-BE235-BE241)/(BE39-BE193-BE230-BE239),4)","v":{"$error":"#DIV/0!"}},null,{"$f":"ROUND((BG51-BG195-BG235-BG241)/(BG39-BG193-BG230-BG239),4)","v":{"$error":"#DIV/0!"}}]
["oui"]
["oui",null,"Services directs selon les barèmes",null,null,null,"Barèmes",null,null,null,"Barèmes",null,null,null,"Barèmes",null,null,null,"Barèmes",null,null,null,"Barèmes",null,null,null,"Barèmes",null,null,null,"Barèmes",null,null,null,"Barèmes",null,null,null,"Barèmes",null,null,null,"Barèmes",null,null,null,"Barèmes",null,null,null,"Barèmes",null,null,null,"Barèmes"]
["oui",null,"0-17 mois - CPE",null,null,null,{"$f":"INDEX(Barème!$C$5:$XFD$9234,_xlfn.XMATCH('Calcul-Subv-CPE'!$C65,Barème!$A$5:$A$9234),_xlfn.XMATCH('Calcul-Subv-CPE'!$E$17,Barème!$C$4:$XFD$4))","v":66.86},null,{"$f":"ROUND(G65*I34,0)","v":0},null,{"$f":"INDEX(Barème!$C$5:$XFD$9234,_xlfn.XMATCH('Calcul-Subv-CPE'!$C65,Barème!$A$5:$A$9234),_xlfn.XMATCH('Calcul-Subv-CPE'!$E$17,Barème!$C$4:$XFD$4))","v":66.86},null,{"$f":"ROUND(K65*M34,0)","v":0},null,{"$f":"INDEX(Barème!$C$5:$XFD$9234,_xlfn.XMATCH('Calcul-Subv-CPE'!$C65,Barème!$A$5:$A$9234),_xlfn.XMATCH('Calcul-Subv-CPE'!$E$17,Barème!$C$4:$XFD$4))","v":66.86},null,{"$f":"ROUND(O65*Q34,0)","v":0},null,{"$f":"INDEX(Barème!$C$5:$XFD$9234,_xlfn.XMATCH('Calcul-Subv-CPE'!$C65,Barème!$A$5:$A$9234),_xlfn.XMATCH('Calcul-Subv-CPE'!$E$17,Barème!$C$4:$XFD$4))","v":66.86},null,{"$f":"ROUND(S65*U34,0)","v":0},null,{"$f":"INDEX(Barème!$C$5:$XFD$9234,_xlfn.XMATCH('Calcul-Subv-CPE'!$C65,Barème!$A$5:$A$9234),_xlfn.XMATCH('Calcul-Subv-CPE'!$E$17,Barème!$C$4:$XFD$4))","v":66.86},null,{"$f":"ROUND(W65*Y34,0)","v":0},null,{"$f":"INDEX(Barème!$C$5:$XFD$9234,_xlfn.XMATCH('Calcul-Subv-CPE'!$C65,Barème!$A$5:$A$9234),_xlfn.XMATCH('Calcul-Subv-CPE'!$E$17,Barème!$C$4:$XFD$4))","v":66.86},null,{"$f":"ROUND(AA65*AC34,0)","v":0},null,{"$f":"INDEX(Barème!$C$5:$XFD$9234,_xlfn.XMATCH('Calcul-Subv-CPE'!$C65,Barème!$A$5:$A$9234),_xlfn.XMATCH('Calcul-Subv-CPE'!$E$17,Barème!$C$4:$XFD$4))","v":66.86},null,{"$f":"ROUND(AE65*AG34,0)","v":0},null,{"$f":"INDEX(Barème!$C$5:$XFD$9234,_xlfn.XMATCH('Calcul-Subv-CPE'!$C65,Barème!$A$5:$A$9234),_xlfn.XMATCH('Calcul-Subv-CPE'!$E$17,Barème!$C$4:$XFD$4))","v":66.86},null,{"$f":"ROUND(AI65*AK34,0)","v":0},null,{"$f":"INDEX(Barème!$C$5:$XFD$9234,_xlfn.XMATCH('Calcul-Subv-CPE'!$C65,Barème!$A$5:$A$9234),_xlfn.XMATCH('Calcul-Subv-CPE'!$E$17,Barème!$C$4:$XFD$4))","v":66.86},null,{"$f":"ROUND(AM65*AO34,0)","v":0},null,{"$f":"INDEX(Barème!$C$5:$XFD$9234,_xlfn.XMATCH('Calcul-Subv-CPE'!$C65,Barème!$A$5:$A$9234),_xlfn.XMATCH('Calcul-Subv-CPE'!$E$17,Barème!$C$4:$XFD$4))","v":66.86},null,{"$f":"ROUND(AQ65*AS34,0)","v":0},null,{"$f":"INDEX(Barème!$C$5:$XFD$9234,_xlfn.XMATCH('Calcul-Subv-CPE'!$C65,Barème!$A$5:$A$9234),_xlfn.XMATCH('Calcul-Subv-CPE'!$E$17,Barème!$C$4:$XFD$4))","v":66.86},null,{"$f":"ROUND(AU65*AW34,0)","v":0},null,{"$f":"INDEX(Barème!$C$5:$XFD$9234,_xlfn.XMATCH('Calcul-Subv-CPE'!$C65,Barème!$A$5:$A$9234),_xlfn.XMATCH('Calcul-Subv-CPE'!$E$17,Barème!$C$4:$XFD$4))","v":66.86},null,{"$f":"ROUND(AY65*BA34,0)","v":0},null,null,"calcul par installation",{"$f":"ROUND(BC65*BE34,0)","v":0},null,{"$f":"ROUND(BE65*BG34,0)","v":0}]
["oui",null,"18-47 mois - CPE",null,null,null,{"$f":"INDEX(Barème!$C$5:$XFD$9234,_xlfn.XMATCH('Calcul-Subv-CPE'!$C66,Barème!$A$5:$A$9234),_xlfn.XMATCH('Calcul-Subv-CPE'!$E$17,Barème!$C$4:$XFD$4))","v":42.09},null,{"$f":"ROUND(G66*I36,0)","v":0},null,{"$f":"INDEX(Barème!$C$5:$XFD$9234,_xlfn.XMATCH('Calcul-Subv-CPE'!$C66,Barème!$A$5:$A$9234),_xlfn.XMATCH('Calcul-Subv-CPE'!$E$17,Barème!$C$4:$XFD$4))","v":42.09},null,{"$f":"ROUND(K66*M36,0)","v":0},null,{"$f":"INDEX(Barème!$C$5:$XFD$9234,_xlfn.XMATCH('Calcul-Subv-CPE'!$C66,Barème!$A$5:$A$9234),_xlfn.XMATCH('Calcul-Subv-CPE'!$E$17,Barème!$C$4:$XFD$4))","v":42.09},null,{"$f":"ROUND(O66*Q36,0)","v":0},null,{"$f":"INDEX(Barème!$C$5:$XFD$9234,_xlfn.XMATCH('Calcul-Subv-CPE'!$C66,Barème!$A$5:$A$9234),_xlfn.XMATCH('Calcul-Subv-CPE'!$E$17,Barème!$C$4:$XFD$4))","v":42.09},null,{"$f":"ROUND(S66*U36,0)","v":0},null,{"$f":"INDEX(Barème!$C$5:$XFD$9234,_xlfn.XMATCH('Calcul-Subv-CPE'!$C66,Barème!$A$5:$A$9234),_xlfn.XMATCH('Calcul-Subv-CPE'!$E$17,Barème!$C$4:$XFD$4))","v":42.09},null,{"$f":"ROUND(W66*Y36,0)","v":0},null,{"$f":"INDEX(Barème!$C$5:$XFD$9234,_xlfn.XMATCH('Calcul-Subv-CPE'!$C66,Barème!$A$5:$A$9234),_xlfn.XMATCH('Calcul-Subv-CPE'!$E$17,Barème!$C$4:$XFD$4))","v":42.09},null,{"$f":"ROUND(AA66*AC36,0)","v":0},null,{"$f":"INDEX(Barème!$C$5:$XFD$9234,_xlfn.XMATCH('Calcul-Subv-CPE'!$C66,Barème!$A$5:$A$9234),_xlfn.XMATCH('Calcul-Subv-CPE'!$E$17,Barème!$C$4:$XFD$4))","v":42.09},null,{"$f":"ROUND(AE66*AG36,0)","v":0},null,{"$f":"INDEX(Barème!$C$5:$XFD$9234,_xlfn.XMATCH('Calcul-Subv-CPE'!$C66,Barème!$A$5:$A$9234),_xlfn.XMATCH('Calcul-Subv-CPE'!$E$17,Barème!$C$4:$XFD$4))","v":42.09},null,{"$f":"ROUND(AI66*AK36,0)","v":0},null,{"$f":"INDEX(Barème!$C$5:$XFD$9234,_xlfn.XMATCH('Calcul-Subv-CPE'!$C66,Barème!$A$5:$A$9234),_xlfn.XMATCH('Calcul-Subv-CPE'!$E$17,Barème!$C$4:$XFD$4))","v":42.09},null,{"$f":"ROUND(AM66*AO36,0)","v":0},null,{"$f":"INDEX(Barème!$C$5:$XFD$9234,_xlfn.XMATCH('Calcul-Subv-CPE'!$C66,Barème!$A$5:$A$9234),_xlfn.XMATCH('Calcul-Subv-CPE'!$E$17,Barème!$C$4:$XFD$4))","v":42.09},null,{"$f":"ROUND(AQ66*AS36,0)","v":0},null,{"$f":"INDEX(Barème!$C$5:$XFD$9234,_xlfn.XMATCH('Calcul-Subv-CPE'!$C66,Barème!$A$5:$A$9234),_xlfn.XMATCH('Calcul-Subv-CPE'!$E$17,Barème!$C$4:$XFD$4))","v":42.09},null,{"$f":"ROUND(AU66*AW36,0)","v":0},null,{"$f":"INDEX(Barème!$C$5:$XFD$9234,_xlfn.XMATCH('Calcul-Subv-CPE'!$C66,Barème!$A$5:$A$9234),_xlfn.XMATCH('Calcul-Subv-CPE'!$E$17,Barème!$C$4:$XFD$4))","v":42.09},null,{"$f":"ROUND(AY66*BA36,0)","v":0},null,null,"calcul par installation",{"$f":"ROUND(BC66*BE36,0)","v":0},null,{"$f":"ROUND(BE66*BG36,0)","v":0}]
["oui",null,"48-59 mois - CPE",null,null,null,{"$f":"INDEX(Barème!$C$5:$XFD$9234,_xlfn.XMATCH('Calcul-Subv-CPE'!$C67,Barème!$A$5:$A$9234),_xlfn.XMATCH('Calcul-Subv-CPE'!$E$17,Barème!$C$4:$XFD$4))","v":33.83},null,{"$f":"ROUND(G67*I38,0)","v":0},null,{"$f":"INDEX(Barème!$C$5:$XFD$9234,_xlfn.XMATCH('Calcul-Subv-CPE'!$C67,Barème!$A$5:$A$9234),_xlfn.XMATCH('Calcul-Subv-CPE'!$E$17,Barème!$C$4:$XFD$4))","v":33.83},null,{"$f":"ROUND(K67*M38,0)","v":0},null,{"$f":"INDEX(Barème!$C$5:$XFD$9234,_xlfn.XMATCH('Calcul-Subv-CPE'!$C67,Barème!$A$5:$A$9234),_xlfn.XMATCH('Calcul-Subv-CPE'!$E$17,Barème!$C$4:$XFD$4))","v":33.83},null,{"$f":"ROUND(O67*Q38,0)","v":0},null,{"$f":"INDEX(Barème!$C$5:$XFD$9234,_xlfn.XMATCH('Calcul-Subv-CPE'!$C67,Barème!$A$5:$A$9234),_xlfn.XMATCH('Calcul-Subv-CPE'!$E$17,Barème!$C$4:$XFD$4))","v":33.83},null,{"$f":"ROUND(S67*U38,0)","v":0},null,{"$f":"INDEX(Barème!$C$5:$XFD$9234,_xlfn.XMATCH('Calcul-Subv-CPE'!$C67,Barème!$A$5:$A$9234),_xlfn.XMATCH('Calcul-Subv-CPE'!$E$17,Barème!$C$4:$XFD$4))","v":33.83},null,{"$f":"ROUND(W67*Y38,0)","v":0},null,{"$f":"INDEX(Barème!$C$5:$XFD$9234,_xlfn.XMATCH('Calcul-Subv-CPE'!$C67,Barème!$A$5:$A$9234),_xlfn.XMATCH('Calcul-Subv-CPE'!$E$17,Barème!$C$4:$XFD$4))","v":33.83},null,{"$f":"ROUND(AA67*AC38,0)","v":0},null,{"$f":"INDEX(Barème!$C$5:$XFD$9234,_xlfn.XMATCH('Calcul-Subv-CPE'!$C67,Barème!$A$5:$A$9234),_xlfn.XMATCH('Calcul-Subv-CPE'!$E$17,Barème!$C$4:$XFD$4))","v":33.83},null,{"$f":"ROUND(AE67*AG38,0)","v":0},null,{"$f":"INDEX(Barème!$C$5:$XFD$9234,_xlfn.XMATCH('Calcul-Subv-CPE'!$C67,Barème!$A$5:$A$9234),_xlfn.XMATCH('Calcul-Subv-CPE'!$E$17,Barème!$C$4:$XFD$4))","v":33.83},null,{"$f":"ROUND(AI67*AK38,0)","v":0},null,{"$f":"INDEX(Barème!$C$5:$XFD$9234,_xlfn.XMATCH('Calcul-Subv-CPE'!$C67,Barème!$A$5:$A$9234),_xlfn.XMATCH('Calcul-Subv-CPE'!$E$17,Barème!$C$4:$XFD$4))","v":33.83},null,{"$f":"ROUND(AM67*AO38,0)","v":0},null,{"$f":"INDEX(Barème!$C$5:$XFD$9234,_xlfn.XMATCH('Calcul-Subv-CPE'!$C67,Barème!$A$5:$A$9234),_xlfn.XMATCH('Calcul-Subv-CPE'!$E$17,Barème!$C$4:$XFD$4))","v":33.83},null,{"$f":"ROUND(AQ67*AS38,0)","v":0},null,{"$f":"INDEX(Barème!$C$5:$XFD$9234,_xlfn.XMATCH('Calcul-Subv-CPE'!$C67,Barème!$A$5:$A$9234),_xlfn.XMATCH('Calcul-Subv-CPE'!$E$17,Barème!$C$4:$XFD$4))","v":33.83},null,{"$f":"ROUND(AU67*AW38,0)","v":0},null,{"$f":"INDEX(Barème!$C$5:$XFD$9234,_xlfn.XMATCH('Calcul-Subv-CPE'!$C67,Barème!$A$5:$A$9234),_xlfn.XMATCH('Calcul-Subv-CPE'!$E$17,Barème!$C$4:$XFD$4))","v":33.83},null,{"$f":"ROUND(AY67*BA38,0)","v":0},null,null,"calcul par installation",{"$f":"ROUND(BC67*BE38,0)","v":0},null,{"$f":"ROUND(BE67*BG38,0)","v":0}]
["non",null,"Total – Services directs selon les barèmes",null,null,null,null,null,{"$f":"SUM(I65:I67)","v":0},null,null,null,{"$f":"SUM(M65:M67)","v":0},null,null,null,{"$f":"SUM(Q65:Q67)","v":0},null,null,null,{"$f":"SUM(U65:U67)","v":0},null,null,null,{"$f":"SUM(Y65:Y67)","v":0},null,null,null,{"$f":"SUM(AC65:AC67)","v":0},null,null,null,{"$f":"SUM(AG65:AG67)","v":0},null,null,null,{"$f":"SUM(AK65:AK67)","v":0},null,null,null,{"$f":"SUM(AO65:AO67)","v":0},null,null,null,{"$f":"SUM(AS65:AS67)","v":0},null,null,null,{"$f":"SUM(AW65:AW67)","v":0},null,null,null,{"$f":"SUM(BA65:BA67)","v":0},null,null,null,null,null,{"$f":"+IF(BE68<>0,+BE68,+I68+M68+Q68+U68+Y68+AC68+AG68+AK68+AO68+AS68+AW68+BA68)","v":0}]
["non"]
["non",null,"Choisissez la période d'ouverture de la division selon l'exercice financier sélectionné plus haut",null,null,null,null,null,null,null,null,null,null,null,null,null,null,null,null,null,null,null,null,null,null,null,null,null,null,null,null,null,null,null,null,null,null,null,null,null,null,null,null,null,null,null,null,null,null,null,null,null,null,null,null,null,"Plus de 2 années d'ouverture"]
["non"]
["oui",null,"Facteurs d'ajustement"]
["oui",null,"Menu déroulant Ouverture cette année ",null,null,null,null,null,null,null,null,null,null,null,null,null,null,null,null,null,null,null,null,null,null,null,null,null,null,null,null,null,null,null,null,null,null,null,null,null,null,null,null,null,null,null,null,null,null,null,null,null,null,null,{"$f":"+VLOOKUP($C73,Barème!$A:$B,2,FALSE)","v":"1re année d'ouverture"}]
["oui",null,"Menu déroulant Ouverture cette année T-1",null,null,null,null,null,null,null,null,null,null,null,null,null,null,null,null,null,null,null,null,null,null,null,null,null,null,null,null,null,null,null,null,null,null,null,null,null,null,null,null,null,null,null,null,null,null,null,null,null,null,null,{"$f":"+VLOOKUP($C74,Barème!$A:$B,2,FALSE)","v":"2e année d'ouverture"}]
["oui",null,"Menu déroulant Ouverture cette année T-2 et avant",null,null,null,null,null,null,null,null,null,null,null,null,null,null,null,null,null,null,null,null,null,null,null,null,null,null,null,null,null,null,null,null,null,null,null,null,null,null,null,null,null,null,null,null,null,null,null,null,null,null,null,{"$f":"+VLOOKUP($C75,Barème!$A:$B,2,FALSE)","v":"Plus de 2 années d'ouverture"}]
["oui"]
["oui",null,"Facteur d'ajust Rem pour une nouvelle ouverture",null,null,null,{"$f":"INDEX(Barème!$C$5:$XFD$9234,_xlfn.XMATCH('Calcul-Subv-CPE'!$C77,Barème!$B$5:$B$9234),_xlfn.XMATCH('Calcul-Subv-CPE'!$E$17,Barème!$C$4:$XFD$4))","v":-2.5},null,null,null,{"$f":"INDEX(Barème!$C$5:$XFD$9234,_xlfn.XMATCH('Calcul-Subv-CPE'!$C77,Barème!$B$5:$B$9234),_xlfn.XMATCH('Calcul-Subv-CPE'!$E$17,Barème!$C$4:$XFD$4))","v":-2.5},null,null,null,{"$f":"INDEX(Barème!$C$5:$XFD$9234,_xlfn.XMATCH('Calcul-Subv-CPE'!$C77,Barème!$B$5:$B$9234),_xlfn.XMATCH('Calcul-Subv-CPE'!$E$17,Barème!$C$4:$XFD$4))","v":-2.5},null,null,null,{"$f":"INDEX(Barème!$C$5:$XFD$9234,_xlfn.XMATCH('Calcul-Subv-CPE'!$C77,Barème!$B$5:$B$9234),_xlfn.XMATCH('Calcul-Subv-CPE'!$E$17,Barème!$C$4:$XFD$4))","v":-2.5},null,null,null,{"$f":"INDEX(Barème!$C$5:$XFD$9234,_xlfn.XMATCH('Calcul-Subv-CPE'!$C77,Barème!$B$5:$B$9234),_xlfn.XMATCH('Calcul-Subv-CPE'!$E$17,Barème!$C$4:$XFD$4))","v":-2.5},null,null,null,{"$f":"INDEX(Barème!$C$5:$XFD$9234,_xlfn.XMATCH('Calcul-Subv-CPE'!$C77,Barème!$B$5:$B$9234),_xlfn.XMATCH('Calcul-Subv-CPE'!$E$17,Barème!$C$4:$XFD$4))","v":-2.5},null,null,null,{"$f":"INDEX(Barème!$C$5:$XFD$9234,_xlfn.XMATCH('Calcul-Subv-CPE'!$C77,Barème!$B$5:$B$9234),_xlfn.XMATCH('Calcul-Subv-CPE'!$E$17,Barème!$C$4:$XFD$4))","v":-2.5},null,null,null,{"$f":"INDEX(Barème!$C$5:$XFD$9234,_xlfn.XMATCH('Calcul-Subv-CPE'!$C77,Barème!$B$5:$B$9234),_xlfn.XMATCH('Calcul-Subv-CPE'!$E$17,Barème!$C$4:$XFD$4))","v":-2.5},null,null,null,{"$f":"INDEX(Barème!$C$5:$XFD$9234,_xlfn.XMATCH('Calcul-Subv-CPE'!$C77,Barème!$B$5:$B$9234),_xlfn.XMATCH('Calcul-Subv-CPE'!$E$17,Barème!$C$4:$XFD$4))","v":-2.5},null,null,null,{"$f":"INDEX(Barème!$C$5:$XFD$9234,_xlfn.XMATCH('Calcul-Subv-CPE'!$C77,Barème!$B$5:$B$9234),_xlfn.XMATCH('Calcul-Subv-CPE'!$E$17,Barème!$C$4:$XFD$4))","v":-2.5},null,null,null,{"$f":"INDEX(Barème!$C$5:$XFD$9234,_xlfn.XMATCH('Calcul-Subv-CPE'!$C77,Barème!$B$5:$B$9234),_xlfn.XMATCH('Calcul-Subv-CPE'!$E$17,Barème!$C$4:$XFD$4))","v":-2.5},null,null,null,{"$f":"INDEX(Barème!$C$5:$XFD$9234,_xlfn.XMATCH('Calcul-Subv-CPE'!$C77,Barème!$B$5:$B$9234),_xlfn.XMATCH('Calcul-Subv-CPE'!$E$17,Barème!$C$4:$XFD$4))","v":-2.5},null,null,null,{"$f":"INDEX(Barème!$C$5:$XFD$9234,_xlfn.XMATCH('Calcul-Subv-CPE'!$C77,Barème!$B$5:$B$9234),_xlfn.XMATCH('Calcul-Subv-CPE'!$E$17,Barème!$C$4:$XFD$4))","v":-2.5}]
["oui",null,"Rémunération du personnel de garde",null,null,null,"Taux horaire de référence",null,null,null,"Taux horaire de référence",null,null,null,"Taux horaire de référence",null,null,null,"Taux horaire de référence",null,null,null,"Taux horaire de référence",null,null,null,"Taux horaire de référence",null,null,null,"Taux horaire de référence",null,null,null,"Taux horaire de référence",null,null,null,"Taux horaire de référence",null,null,null,"Taux horaire de référence",null,null,null,"Taux horaire de référence",null,null,null,"Taux horaire de référence"]
["oui",null,"Taux horaire de référence",null,null,null,{"$f":"INDEX(Barème!$C$5:$XFD$9234,_xlfn.XMATCH('Calcul-Subv-CPE'!$C79,Barème!$B$5:$B$9234),_xlfn.XMATCH('Calcul-Subv-CPE'!$E$17,Barème!$C$4:$XFD$4))","v":26.62},null,null,null,{"$f":"INDEX(Barème!$C$5:$XFD$9234,_xlfn.XMATCH('Calcul-Subv-CPE'!$C79,Barème!$B$5:$B$9234),_xlfn.XMATCH('Calcul-Subv-CPE'!$E$17,Barème!$C$4:$XFD$4))","v":26.62},null,null,null,{"$f":"INDEX(Barème!$C$5:$XFD$9234,_xlfn.XMATCH('Calcul-Subv-CPE'!$C79,Barème!$B$5:$B$9234),_xlfn.XMATCH('Calcul-Subv-CPE'!$E$17,Barème!$C$4:$XFD$4))","v":26.62},null,null,null,{"$f":"INDEX(Barème!$C$5:$XFD$9234,_xlfn.XMATCH('Calcul-Subv-CPE'!$C79,Barème!$B$5:$B$9234),_xlfn.XMATCH('Calcul-Subv-CPE'!$E$17,Barème!$C$4:$XFD$4))","v":26.62},null,null,null,{"$f":"INDEX(Barème!$C$5:$XFD$9234,_xlfn.XMATCH('Calcul-Subv-CPE'!$C79,Barème!$B$5:$B$9234),_xlfn.XMATCH('Calcul-Subv-CPE'!$E$17,Barème!$C$4:$XFD$4))","v":26.62},null,null,null,{"$f":"INDEX(Barème!$C$5:$XFD$9234,_xlfn.XMATCH('Calcul-Subv-CPE'!$C79,Barème!$B$5:$B$9234),_xlfn.XMATCH('Calcul-Subv-CPE'!$E$17,Barème!$C$4:$XFD$4))","v":26.62},null,null,null,{"$f":"INDEX(Barème!$C$5:$XFD$9234,_xlfn.XMATCH('Calcul-Subv-CPE'!$C79,Barème!$B$5:$B$9234),_xlfn.XMATCH('Calcul-Subv-CPE'!$E$17,Barème!$C$4:$XFD$4))","v":26.62},null,null,null,{"$f":"INDEX(Barème!$C$5:$XFD$9234,_xlfn.XMATCH('Calcul-Subv-CPE'!$C79,Barème!$B$5:$B$9234),_xlfn.XMATCH('Calcul-Subv-CPE'!$E$17,Barème!$C$4:$XFD$4))","v":26.62},null,null,null,{"$f":"INDEX(Barème!$C$5:$XFD$9234,_xlfn.XMATCH('Calcul-Subv-CPE'!$C79,Barème!$B$5:$B$9234),_xlfn.XMATCH('Calcul-Subv-CPE'!$E$17,Barème!$C$4:$XFD$4))","v":26.62},null,null,null,{"$f":"INDEX(Barème!$C$5:$XFD$9234,_xlfn.XMATCH('Calcul-Subv-CPE'!$C79,Barème!$B$5:$B$9234),_xlfn.XMATCH('Calcul-Subv-CPE'!$E$17,Barème!$C$4:$XFD$4))","v":26.62},null,null,null,{"$f":"INDEX(Barème!$C$5:$XFD$9234,_xlfn.XMATCH('Calcul-Subv-CPE'!$C79,Barème!$B$5:$B$9234),_xlfn.XMATCH('Calcul-Subv-CPE'!$E$17,Barème!$C$4:$XFD$4))","v":26.62},null,null,null,{"$f":"INDEX(Barème!$C$5:$XFD$9234,_xlfn.XMATCH('Calcul-Subv-CPE'!$C79,Barème!$B$5:$B$9234),_xlfn.XMATCH('Calcul-Subv-CPE'!$E$17,Barème!$C$4:$XFD$4))","v":26.62},null,null,null,{"$f":"INDEX(Barème!$C$5:$XFD$9234,_xlfn.XMATCH('Calcul-Subv-CPE'!$C79,Barème!$B$5:$B$9234),_xlfn.XMATCH('Calcul-Subv-CPE'!$E$17,Barème!$C$4:$XFD$4))","v":26.62}]
["oui",null,null,null,null,null,"Taux d'ajustement de la rémunération",null,null,null,"Taux d'ajustement de la rémunération",null,null,null,"Taux d'ajustement de la rémunération",null,null,null,"Taux d'ajustement de la rémunération",null,null,null,"Taux d'ajustement de la rémunération",null,null,null,"Taux d'ajustement de la rémunération",null,null,null,"Taux d'ajustement de la rémunération",null,null,null,"Taux d'ajustement de la rémunération",null,null,null,"Taux d'ajustement de la rémunération",null,null,null,"Taux d'ajustement de la rémunération",null,null,null,"Taux d'ajustement de la rémunération",null,null,null,"Taux d'ajustement de la rémunération"]
["oui",null,"Taux d'ajustement de la rémunération (CPE)",null,null,null,{"$f":"INDEX(Barème!$C$5:$XFD$9234,_xlfn.XMATCH('Calcul-Subv-CPE'!$C81,Barème!$B$5:$B$9234),_xlfn.XMATCH('Calcul-Subv-CPE'!$E$17,Barème!$C$4:$XFD$4))","v":1.51},null,null,null,{"$f":"INDEX(Barème!$C$5:$XFD$9234,_xlfn.XMATCH('Calcul-Subv-CPE'!$C81,Barème!$B$5:$B$9234),_xlfn.XMATCH('Calcul-Subv-CPE'!$E$17,Barème!$C$4:$XFD$4))","v":1.51},null,null,null,{"$f":"INDEX(Barème!$C$5:$XFD$9234,_xlfn.XMATCH('Calcul-Subv-CPE'!$C81,Barème!$B$5:$B$9234),_xlfn.XMATCH('Calcul-Subv-CPE'!$E$17,Barème!$C$4:$XFD$4))","v":1.51},null,null,null,{"$f":"INDEX(Barème!$C$5:$XFD$9234,_xlfn.XMATCH('Calcul-Subv-CPE'!$C81,Barème!$B$5:$B$9234),_xlfn.XMATCH('Calcul-Subv-CPE'!$E$17,Barème!$C$4:$XFD$4))","v":1.51},null,null,null,{"$f":"INDEX(Barème!$C$5:$XFD$9234,_xlfn.XMATCH('Calcul-Subv-CPE'!$C81,Barème!$B$5:$B$9234),_xlfn.XMATCH('Calcul-Subv-CPE'!$E$17,Barème!$C$4:$XFD$4))","v":1.51},null,null,null,{"$f":"INDEX(Barème!$C$5:$XFD$9234,_xlfn.XMATCH('Calcul-Subv-CPE'!$C81,Barème!$B$5:$B$9234),_xlfn.XMATCH('Calcul-Subv-CPE'!$E$17,Barème!$C$4:$XFD$4))","v":1.51},null,null,null,{"$f":"INDEX(Barème!$C$5:$XFD$9234,_xlfn.XMATCH('Calcul-Subv-CPE'!$C81,Barème!$B$5:$B$9234),_xlfn.XMATCH('Calcul-Subv-CPE'!$E$17,Barème!$C$4:$XFD$4))","v":1.51},null,null,null,{"$f":"INDEX(Barème!$C$5:$XFD$9234,_xlfn.XMATCH('Calcul-Subv-CPE'!$C81,Barème!$B$5:$B$9234),_xlfn.XMATCH('Calcul-Subv-CPE'!$E$17,Barème!$C$4:$XFD$4))","v":1.51},null,null,null,{"$f":"INDEX(Barème!$C$5:$XFD$9234,_xlfn.XMATCH('Calcul-Subv-CPE'!$C81,Barème!$B$5:$B$9234),_xlfn.XMATCH('Calcul-Subv-CPE'!$E$17,Barème!$C$4:$XFD$4))","v":1.51},null,null,null,{"$f":"INDEX(Barème!$C$5:$XFD$9234,_xlfn.XMATCH('Calcul-Subv-CPE'!$C81,Barème!$B$5:$B$9234),_xlfn.XMATCH('Calcul-Subv-CPE'!$E$17,Barème!$C$4:$XFD$4))","v":1.51},null,null,null,{"$f":"INDEX(Barème!$C$5:$XFD$9234,_xlfn.XMATCH('Calcul-Subv-CPE'!$C81,Barème!$B$5:$B$9234),_xlfn.XMATCH('Calcul-Subv-CPE'!$E$17,Barème!$C$4:$XFD$4))","v":1.51},null,null,null,{"$f":"INDEX(Barème!$C$5:$XFD$9234,_xlfn.XMATCH('Calcul-Subv-CPE'!$C81,Barème!$B$5:$B$9234),_xlfn.XMATCH('Calcul-Subv-CPE'!$E$17,Barème!$C$4:$XFD$4))","v":1.51},null,null,null,{"$f":"INDEX(Barème!$C$5:$XFD$9234,_xlfn.XMATCH('Calcul-Subv-CPE'!$C81,Barème!$B$5:$B$9234),_xlfn.XMATCH('Calcul-Subv-CPE'!$E$17,Barème!$C$4:$XFD$4))","v":1.51}]
["non",null,"Rémunération horaire moyenne du CPE\nRequis uniquement si votre division n'en est pas à sa 1re année d'ouverture",null,"Uniquement le personnel éducateur composé des éducatrices qualifiées, des éducatrices non qualifiées, des aides-éducatrices et des éducatrices spécialisées.",null,null,null,{"$f":"+$BE82","v":0},null,null,null,{"$f":"+$BE82","v":0},null,null,null,{"$f":"+$BE82","v":0},null,null,null,{"$f":"+$BE82","v":0},null,null,null,{"$f":"+$BE82","v":0},null,null,null,{"$f":"+$BE82","v":0},null,null,null,{"$f":"+$BE82","v":0},null,null,null,{"$f":"+$BE82","v":0},null,null,null,{"$f":"+$BE82","v":0},null,null,null,{"$f":"+$BE82","v":0},null,null,null,{"$f":"+$BE82","v":0},null,null,null,{"$f":"+$BE82","v":0}]
["non",null,null,null,null,null,null,null,null,null,null,null,null,null,null,null,null,null,null,null,null,null,null,null,null,null,null,null,null,null,null,null,null,null,null,null,null,null,null,null,null,null,null,null,null,null,null,null,null,null,null,null,null,null,null,null,{"$f":"+IF(BE$70=BC73,\"Ajustement de \"&BC77&\" $ est automatiquement calculé\",\"Ajustement lorsque votre taux est supérieur ou inférieur à \"&BC79&\" $\")","v":"Ajustement lorsque votre taux est supérieur ou inférieur à 26,62 $"}]
["oui",null,"Facteur d'ajustement pour la rémunération ",null,null,null,null,null,{"$f":"ROUND(IF($BE70=$BC73,G$77,I82-G$79),4)","v":-26.62},null,null,null,{"$f":"ROUND(IF($BE70=$BC73,K$77,M82-K$79),4)","v":-26.62},null,null,null,{"$f":"ROUND(IF($BE70=$BC73,O$77,Q82-O$79),4)","v":-26.62},null,null,null,{"$f":"ROUND(IF($BE70=$BC73,S$77,U82-S$79),4)","v":-26.62},null,null,null,{"$f":"ROUND(IF($BE70=$BC73,W$77,Y82-W$79),4)","v":-26.62},null,null,null,{"$f":"ROUND(IF($BE70=$BC73,AA$77,AC82-AA$79),4)","v":-26.62},null,null,null,{"$f":"ROUND(IF($BE70=$BC73,AE$77,AG82-AE$79),4)","v":-26.62},null,null,null,{"$f":"ROUND(IF($BE70=$BC73,AI$77,AK82-AI$79),4)","v":-26.62},null,null,null,{"$f":"ROUND(IF($BE70=$BC73,AM$77,AO82-AM$79),4)","v":-26.62},null,null,null,{"$f":"ROUND(IF($BE70=$BC73,AQ$77,AS82-AQ$79),4)","v":-26.62},null,null,null,{"$f":"ROUND(IF($BE70=$BC73,AU$77,AW82-AU$79),4)","v":-26.62},null,null,null,{"$f":"ROUND(IF($BE70=$BC73,AY$77,BA82-AY$79),4)","v":-26.62},null,null,null,{"$f":"ROUND(IF(BE$70=BC$73,BC$77,BE82-BC$79),4)","v":-26.62}]
["non",null,"Ajustement – Rémunération du personnel éducateur",null,null,null,null,null,{"$f":"ROUND(I44*I84*G$81,0)","v":0},null,null,null,{"$f":"ROUND(M44*M84*K$81,0)","v":0},null,null,null,{"$f":"ROUND(Q44*Q84*O$81,0)","v":0},null,null,null,{"$f":"ROUND(U44*U84*S$81,0)","v":0},null,null,null,{"$f":"ROUND(Y44*Y84*W$81,0)","v":0},null,null,null,{"$f":"ROUND(AC44*AC84*AA$81,0)","v":0},null,null,null,{"$f":"ROUND(AG44*AG84*AE$81,0)","v":0},null,null,null,{"$f":"ROUND(AK44*AK84*AI$81,0)","v":0},null,null,null,{"$f":"ROUND(AO44*AO84*AM$81,0)","v":0},null,null,null,{"$f":"ROUND(AS44*AS84*AQ$81,0)","v":0},null,null,null,{"$f":"ROUND(AW44*AW84*AU$81,0)","v":0},null,null,null,{"$f":"ROUND(BA44*BA84*AY$81,0)","v":0},null,null,null,null,null,{"$f":"+IF(BE85<>0,+BE85,+I85+M85+Q85+U85+Y85+AC85+AG85+AK85+AO85+AS85+AW85+BA85)","v":0}]
["non"]
["non",null,"Sous-total – Services directs ajustés pour la rémunération",null,null,null,null,null,{"$f":"I68+I85","v":0},null,null,null,{"$f":"M68+M85","v":0},null,null,null,{"$f":"Q68+Q85","v":0},null,null,null,{"$f":"U68+U85","v":0},null,null,null,{"$f":"Y68+Y85","v":0},null,null,null,{"$f":"AC68+AC85","v":0},null,null,null,{"$f":"AG68+AG85","v":0},null,null,null,{"$f":"AK68+AK85","v":0},null,null,null,{"$f":"AO68+AO85","v":0},null,null,null,{"$f":"AS68+AS85","v":0},null,null,null,{"$f":"AW68+AW85","v":0},null,null,null,{"$f":"BA68+BA85","v":0},null,null,null,null,null,{"$f":"BG68+BG85","v":0}]
["non"]
["oui",null,null,null,null,null,"Seuil minimal (abs)","Prop. Applicable (CPE)",null,null,"Seuil minimal (abs)","Prop. Applicable (CPE)",null,null,"Seuil minimal (abs)","Prop. Applicable (CPE)",null,null,"Seuil minimal (abs)","Prop. Applicable (CPE)",null,null,"Seuil minimal (abs)","Prop. Applicable (CPE)",null,null,"Seuil minimal (abs)","Prop. Applicable (CPE)",null,null,"Seuil minimal (abs)","Prop. Applicable (CPE)",null,null,"Seuil minimal (abs)","Prop. Applicable (CPE)",null,null,"Seuil minimal (abs)","Prop. Applicable (CPE)",null,null,"Seuil minimal (abs)","Prop. Applicable (CPE)",null,null,"Seuil minimal (abs)","Prop. Applicable (CPE)",null,null,"Seuil minimal (abs)","Prop. Applicable (CPE)",null,null,"Seuil minimal (abs)","Prop. Applicable (CPE)"]
["oui",null,"Absence*",null,null,null,{"$f":"INDEX(Barème!$B$5:$XFD$9234,_xlfn.XMATCH('Calcul-Subv-CPE'!G89,Barème!$B$5:$B$9234),_xlfn.XMATCH($E$17,Barème!$B$4:$XFD$4))","v":0.15},{"$f":"INDEX(Barème!$B$5:$XFD$9234,_xlfn.XMATCH('Calcul-Subv-CPE'!H89,Barème!$B$5:$B$9234),_xlfn.XMATCH($E$17,Barème!$B$4:$XFD$4))","v":1},null,null,{"$f":"INDEX(Barème!$B$5:$XFD$9234,_xlfn.XMATCH('Calcul-Subv-CPE'!K89,Barème!$B$5:$B$9234),_xlfn.XMATCH($E$17,Barème!$B$4:$XFD$4))","v":0.15},{"$f":"INDEX(Barème!$B$5:$XFD$9234,_xlfn.XMATCH('Calcul-Subv-CPE'!L89,Barème!$B$5:$B$9234),_xlfn.XMATCH($E$17,Barème!$B$4:$XFD$4))","v":1},null,null,{"$f":"INDEX(Barème!$B$5:$XFD$9234,_xlfn.XMATCH('Calcul-Subv-CPE'!O89,Barème!$B$5:$B$9234),_xlfn.XMATCH($E$17,Barème!$B$4:$XFD$4))","v":0.15},{"$f":"INDEX(Barème!$B$5:$XFD$9234,_xlfn.XMATCH('Calcul-Subv-CPE'!P89,Barème!$B$5:$B$9234),_xlfn.XMATCH($E$17,Barème!$B$4:$XFD$4))","v":1},null,null,{"$f":"INDEX(Barème!$B$5:$XFD$9234,_xlfn.XMATCH('Calcul-Subv-CPE'!S89,Barème!$B$5:$B$9234),_xlfn.XMATCH($E$17,Barème!$B$4:$XFD$4))","v":0.15},{"$f":"INDEX(Barème!$B$5:$XFD$9234,_xlfn.XMATCH('Calcul-Subv-CPE'!T89,Barème!$B$5:$B$9234),_xlfn.XMATCH($E$17,Barème!$B$4:$XFD$4))","v":1},null,null,{"$f":"INDEX(Barème!$B$5:$XFD$9234,_xlfn.XMATCH('Calcul-Subv-CPE'!W89,Barème!$B$5:$B$9234),_xlfn.XMATCH($E$17,Barème!$B$4:$XFD$4))","v":0.15},{"$f":"INDEX(Barème!$B$5:$XFD$9234,_xlfn.XMATCH('Calcul-Subv-CPE'!X89,Barème!$B$5:$B$9234),_xlfn.XMATCH($E$17,Barème!$B$4:$XFD$4))","v":1},null,null,{"$f":"INDEX(Barème!$B$5:$XFD$9234,_xlfn.XMATCH('Calcul-Subv-CPE'!AA89,Barème!$B$5:$B$9234),_xlfn.XMATCH($E$17,Barème!$B$4:$XFD$4))","v":0.15},{"$f":"INDEX(Barème!$B$5:$XFD$9234,_xlfn.XMATCH('Calcul-Subv-CPE'!AB89,Barème!$B$5:$B$9234),_xlfn.XMATCH($E$17,Barème!$B$4:$XFD$4))","v":1},null,null,{"$f":"INDEX(Barème!$B$5:$XFD$9234,_xlfn.XMATCH('Calcul-Subv-CPE'!AE89,Barème!$B$5:$B$9234),_xlfn.XMATCH($E$17,Barème!$B$4:$XFD$4))","v":0.15},{"$f":"INDEX(Barème!$B$5:$XFD$9234,_xlfn.XMATCH('Calcul-Subv-CPE'!AF89,Barème!$B$5:$B$9234),_xlfn.XMATCH($E$17,Barème!$B$4:$XFD$4))","v":1},null,null,{"$f":"INDEX(Barème!$B$5:$XFD$9234,_xlfn.XMATCH('Calcul-Subv-CPE'!AI89,Barème!$B$5:$B$9234),_xlfn.XMATCH($E$17,Barème!$B$4:$XFD$4))","v":0.15},{"$f":"INDEX(Barème!$B$5:$XFD$9234,_xlfn.XMATCH('Calcul-Subv-CPE'!AJ89,Barème!$B$5:$B$9234),_xlfn.XMATCH($E$17,Barème!$B$4:$XFD$4))","v":1},null,null,{"$f":"INDEX(Barème!$B$5:$XFD$9234,_xlfn.XMATCH('Calcul-Subv-CPE'!AM89,Barème!$B$5:$B$9234),_xlfn.XMATCH($E$17,Barème!$B$4:$XFD$4))","v":0.15},{"$f":"INDEX(Barème!$B$5:$XFD$9234,_xlfn.XMATCH('Calcul-Subv-CPE'!AN89,Barème!$B$5:$B$9234),_xlfn.XMATCH($E$17,Barème!$B$4:$XFD$4))","v":1},null,null,{"$f":"INDEX(Barème!$B$5:$XFD$9234,_xlfn.XMATCH('Calcul-Subv-CPE'!AQ89,Barème!$B$5:$B$9234),_xlfn.XMATCH($E$17,Barème!$B$4:$XFD$4))","v":0.15},{"$f":"INDEX(Barème!$B$5:$XFD$9234,_xlfn.XMATCH('Calcul-Subv-CPE'!AR89,Barème!$B$5:$B$9234),_xlfn.XMATCH($E$17,Barème!$B$4:$XFD$4))","v":1},null,null,{"$f":"INDEX(Barème!$B$5:$XFD$9234,_xlfn.XMATCH('Calcul-Subv-CPE'!AU89,Barème!$B$5:$B$9234),_xlfn.XMATCH($E$17,Barème!$B$4:$XFD$4))","v":0.15},{"$f":"INDEX(Barème!$B$5:$XFD$9234,_xlfn.XMATCH('Calcul-Subv-CPE'!AV89,Barème!$B$5:$B$9234),_xlfn.XMATCH($E$17,Barème!$B$4:$XFD$4))","v":1},null,null,{"$f":"INDEX(Barème!$B$5:$XFD$9234,_xlfn.XMATCH('Calcul-Subv-CPE'!AY89,Barème!$B$5:$B$9234),_xlfn.XMATCH($E$17,Barème!$B$4:$XFD$4))","v":0.15},{"$f":"INDEX(Barème!$B$5:$XFD$9234,_xlfn.XMATCH('Calcul-Subv-CPE'!AZ89,Barème!$B$5:$B$9234),_xlfn.XMATCH($E$17,Barème!$B$4:$XFD$4))","v":1},null,null,{"$f":"INDEX(Barème!$B$5:$XFD$9234,_xlfn.XMATCH('Calcul-Subv-CPE'!BC89,Barème!$B$5:$B$9234),_xlfn.XMATCH($E$17,Barème!$B$4:$XFD$4))","v":0.15},{"$f":"INDEX(Barème!$B$5:$XFD$9234,_xlfn.XMATCH('Calcul-Subv-CPE'!BD89,Barème!$B$5:$B$9234),_xlfn.XMATCH($E$17,Barème!$B$4:$XFD$4))","v":1}]
["oui",null,null,null,null,null,"Facteur d'ajust. absences pour nouvelle GS","on laisse titre GS car entre dans une formule et ne veut pas ajouter une ligne dans onglet barème pour que GS soit égal à CPE, plus facile lors des mises à jour",null,null,"Facteur d'ajust. absences pour nouvelle GS","on laisse titre GS car entre dans une formule et ne veut pas ajouter une ligne dans onglet barème pour que GS soit égal à CPE, plus facile lors des mises à jour",null,null,"Facteur d'ajust. absences pour nouvelle GS","on laisse titre GS car entre dans une formule et ne veut pas ajouter une ligne dans onglet barème pour que GS soit égal à CPE, plus facile lors des mises à jour",null,null,"Facteur d'ajust. absences pour nouvelle GS","on laisse titre GS car entre dans une formule et ne veut pas ajouter une ligne dans onglet barème pour que GS soit égal à CPE, plus facile lors des mises à jour",null,null,"Facteur d'ajust. absences pour nouvelle GS","on laisse titre GS car entre dans une formule et ne veut pas ajouter une ligne dans onglet barème pour que GS soit égal à CPE, plus facile lors des mises à jour",null,null,"Facteur d'ajust. absences pour nouvelle GS","on laisse titre GS car entre dans une formule et ne veut pas ajouter une ligne dans onglet barème pour que GS soit égal à CPE, plus facile lors des mises à jour",null,null,"Facteur d'ajust. absences pour nouvelle GS","on laisse titre GS car entre dans une formule et ne veut pas ajouter une ligne dans onglet barème pour que GS soit égal à CPE, plus facile lors des mises à jour",null,null,"Facteur d'ajust. absences pour nouvelle GS","on laisse titre GS car entre dans une formule et ne veut pas ajouter une ligne dans onglet barème pour que GS soit égal à CPE, plus facile lors des mises à jour",null,null,"Facteur d'ajust. absences pour nouvelle GS","on laisse titre GS car entre dans une formule et ne veut pas ajouter une ligne dans onglet barème pour que GS soit égal à CPE, plus facile lors des mises à jour",null,null,"Facteur d'ajust. absences pour nouvelle GS","on laisse titre GS car entre dans une formule et ne veut pas ajouter une ligne dans onglet barème pour que GS soit égal à CPE, plus facile lors des mises à jour",null,null,"Facteur d'ajust. absences pour nouvelle GS","on laisse titre GS car entre dans une formule et ne veut pas ajouter une ligne dans onglet barème pour que GS soit égal à CPE, plus facile lors des mises à jour",null,null,"Facteur d'ajust. absences pour nouvelle GS","on laisse titre GS car entre dans une formule et ne veut pas ajouter une ligne dans onglet barème pour que GS soit égal à CPE, plus facile lors des mises à jour",null,null,"Facteur d'ajust. absences pour nouvelle GS","on laisse titre GS car entre dans une formule et ne veut pas ajouter une ligne dans onglet barème pour que GS soit égal à CPE, plus facile lors des mises à jour"]
["oui",null,null,null,null,null,{"$f":"INDEX(Barème!$B$5:$XFD$9234,_xlfn.XMATCH('Calcul-Subv-CPE'!G91,Barème!$B$5:$B$9234),_xlfn.XMATCH($E$17,Barème!$B$4:$XFD$4))","v":-4.0899999999999999E-2},null,null,null,{"$f":"INDEX(Barème!$B$5:$XFD$9234,_xlfn.XMATCH('Calcul-Subv-CPE'!K91,Barème!$B$5:$B$9234),_xlfn.XMATCH($E$17,Barème!$B$4:$XFD$4))","v":-4.0899999999999999E-2},null,null,null,{"$f":"INDEX(Barème!$B$5:$XFD$9234,_xlfn.XMATCH('Calcul-Subv-CPE'!O91,Barème!$B$5:$B$9234),_xlfn.XMATCH($E$17,Barème!$B$4:$XFD$4))","v":-4.0899999999999999E-2},null,null,null,{"$f":"INDEX(Barème!$B$5:$XFD$9234,_xlfn.XMATCH('Calcul-Subv-CPE'!S91,Barème!$B$5:$B$9234),_xlfn.XMATCH($E$17,Barème!$B$4:$XFD$4))","v":-4.0899999999999999E-2},null,null,null,{"$f":"INDEX(Barème!$B$5:$XFD$9234,_xlfn.XMATCH('Calcul-Subv-CPE'!W91,Barème!$B$5:$B$9234),_xlfn.XMATCH($E$17,Barème!$B$4:$XFD$4))","v":-4.0899999999999999E-2},null,null,null,{"$f":"INDEX(Barème!$B$5:$XFD$9234,_xlfn.XMATCH('Calcul-Subv-CPE'!AA91,Barème!$B$5:$B$9234),_xlfn.XMATCH($E$17,Barème!$B$4:$XFD$4))","v":-4.0899999999999999E-2},null,null,null,{"$f":"INDEX(Barème!$B$5:$XFD$9234,_xlfn.XMATCH('Calcul-Subv-CPE'!AE91,Barème!$B$5:$B$9234),_xlfn.XMATCH($E$17,Barème!$B$4:$XFD$4))","v":-4.0899999999999999E-2},null,null,null,{"$f":"INDEX(Barème!$B$5:$XFD$9234,_xlfn.XMATCH('Calcul-Subv-CPE'!AI91,Barème!$B$5:$B$9234),_xlfn.XMATCH($E$17,Barème!$B$4:$XFD$4))","v":-4.0899999999999999E-2},null,null,null,{"$f":"INDEX(Barème!$B$5:$XFD$9234,_xlfn.XMATCH('Calcul-Subv-CPE'!AM91,Barème!$B$5:$B$9234),_xlfn.XMATCH($E$17,Barème!$B$4:$XFD$4))","v":-4.0899999999999999E-2},null,null,null,{"$f":"INDEX(Barème!$B$5:$XFD$9234,_xlfn.XMATCH('Calcul-Subv-CPE'!AQ91,Barème!$B$5:$B$9234),_xlfn.XMATCH($E$17,Barème!$B$4:$XFD$4))","v":-4.0899999999999999E-2},null,null,null,{"$f":"INDEX(Barème!$B$5:$XFD$9234,_xlfn.XMATCH('Calcul-Subv-CPE'!AU91,Barème!$B$5:$B$9234),_xlfn.XMATCH($E$17,Barème!$B$4:$XFD$4))","v":-4.0899999999999999E-2},null,null,null,{"$f":"INDEX(Barème!$B$5:$XFD$9234,_xlfn.XMATCH('Calcul-Subv-CPE'!AY91,Barème!$B$5:$B$9234),_xlfn.XMATCH($E$17,Barème!$B$4:$XFD$4))","v":-4.0899999999999999E-2},null,null,null,{"$f":"INDEX(Barème!$B$5:$XFD$9234,_xlfn.XMATCH('Calcul-Subv-CPE'!BC91,Barème!$B$5:$B$9234),_xlfn.XMATCH($E$17,Barème!$B$4:$XFD$4))","v":-4.0899999999999999E-2}]
["non",null,"Taux moyen d'absence rémunérée du personnel éducateur\nRequis uniquement si votre division n'en est pas à sa 1re année d'ouverture",null,"1 - (Heures travaillées du personnel éducateur ÷ Heures rémunérées du personnel éducateur)",null,null,null,{"$f":"+$BE93","v":0},null,null,null,{"$f":"+$BE93","v":0},null,null,null,{"$f":"+$BE93","v":0},null,null,null,{"$f":"+$BE93","v":0},null,null,null,{"$f":"+$BE93","v":0},null,null,null,{"$f":"+$BE93","v":0},null,null,null,{"$f":"+$BE93","v":0},null,null,null,{"$f":"+$BE93","v":0},null,null,null,{"$f":"+$BE93","v":0},null,null,null,{"$f":"+$BE93","v":0},null,null,null,{"$f":"+$BE93","v":0},null,null,null,{"$f":"+$BE93","v":0},null,{"$f":"+BC92*-1","v":4.0899999999999999E-2}]
["oui",null,null,null,null,null,null,null,{"$f":"ROUND(IF($BE70=$BC73,G$92,I93-G$90),4)","v":-0.15},null,null,null,{"$f":"ROUND(IF($BE70=$BC73,K$92,M93-K$90),4)","v":-0.15},null,null,null,{"$f":"ROUND(IF($BE70=$BC73,O$92,Q93-O$90),4)","v":-0.15},null,null,null,{"$f":"ROUND(IF($BE70=$BC73,S$92,U93-S$90),4)","v":-0.15},null,null,null,{"$f":"ROUND(IF($BE70=$BC73,W$92,Y93-W$90),4)","v":-0.15},null,null,null,{"$f":"ROUND(IF($BE70=$BC73,AA$92,AC93-AA$90),4)","v":-0.15},null,null,null,{"$f":"ROUND(IF($BE70=$BC73,AE$92,AG93-AE$90),4)","v":-0.15},null,null,null,{"$f":"ROUND(IF($BE70=$BC73,AI$92,AK93-AI$90),4)","v":-0.15},null,null,null,{"$f":"ROUND(IF($BE70=$BC73,AM$92,AO93-AM$90),4)","v":-0.15},null,null,null,{"$f":"ROUND(IF($BE70=$BC73,AQ$92,AS93-AQ$90),4)","v":-0.15},null,null,null,{"$f":"ROUND(IF($BE70=$BC73,AU$92,AW93-AU$90),4)","v":-0.15},null,null,null,{"$f":"ROUND(IF($BE70=$BC73,AY$92,BA93-AY$90),4)","v":-0.15}]
["non",null,null,null,null,null,null,null,null,null,null,null,null,null,null,null,null,null,null,null,null,null,null,null,null,null,null,null,null,null,null,null,null,null,null,null,null,null,null,null,null,null,null,null,null,null,null,null,null,null,null,null,null,null,null,null,{"$f":"IF(BE$70=BC$73,\"Ajustement de \"&BC92*100&\"% est automatiquement calculé\",+\"Ajustement lorsque votre taux est inférieur à \"&BC90*100&\" %\")","v":"Ajustement lorsque votre taux est inférieur à 15 %"}]
["non",null,"Ajustement – Absences rémunérées",null,null,null,null,null,{"$f":"ROUND(IF(I94*I87<0,I94*H$90*I87,0),0)","v":0},null,null,null,{"$f":"ROUND(IF(M94*M87<0,M94*L$90*M87,0),0)","v":0},null,null,null,{"$f":"ROUND(IF(Q94*Q87<0,Q94*P$90*Q87,0),0)","v":0},null,null,null,{"$f":"ROUND(IF(U94*U87<0,U94*T$90*U87,0),0)","v":0},null,null,null,{"$f":"ROUND(IF(Y94*Y87<0,Y94*X$90*Y87,0),0)","v":0},null,null,null,{"$f":"ROUND(IF(AC94*AC87<0,AC94*AB$90*AC87,0),0)","v":0},null,null,null,{"$f":"ROUND(IF(AG94*AG87<0,AG94*AF$90*AG87,0),0)","v":0},null,null,null,{"$f":"ROUND(IF(AK94*AK87<0,AK94*AJ$90*AK87,0),0)","v":0},null,null,null,{"$f":"ROUND(IF(AO94*AO87<0,AO94*AN$90*AO87,0),0)","v":0},null,null,null,{"$f":"ROUND(IF(AS94*AS87<0,AS94*AR$90*AS87,0),0)","v":0},null,null,null,{"$f":"ROUND(IF(AW94*AW87<0,AW94*AV$90*AW87,0),0)","v":0},null,null,null,{"$f":"ROUND(IF(BA94*BA87<0,BA94*AZ$90*BA87,0),0)","v":0},null,null,null,null,null,{"$f":"+IF(BE96<>0,+BE96,+I96+M96+Q96+U96+Y96+AC96+AG96+AK96+AO96+AS96+AW96+BA96)","v":0}]
["non"]
["oui",null,null,null,null,null,"Seuil minimal (qualif)","Prop. Applicable (qualif)",null,null,"Seuil minimal (qualif)","Prop. Applicable (qualif)",null,null,"Seuil minimal (qualif)","Prop. Applicable (qualif)",null,null,"Seuil minimal (qualif)","Prop. Applicable (qualif)",null,null,"Seuil minimal (qualif)","Prop. Applicable (qualif)",null,null,"Seuil minimal (qualif)","Prop. Applicable (qualif)",null,null,"Seuil minimal (qualif)","Prop. Applicable (qualif)",null,null,"Seuil minimal (qualif)","Prop. Applicable (qualif)",null,null,"Seuil minimal (qualif)","Prop. Applicable (qualif)",null,null,"Seuil minimal (qualif)","Prop. Applicable (qualif)",null,null,"Seuil minimal (qualif)","Prop. Applicable (qualif)",null,null,"Seuil minimal (qualif)","Prop. Applicable (qualif)",null,null,"Seuil minimal (qualif)","Prop. Applicable (qualif)"]
["oui",null,"Qualification",null,null,null,{"$f":"INDEX(Barème!$B$5:$XFD$9234,_xlfn.XMATCH('Calcul-Subv-CPE'!G98,Barème!$B$5:$B$9234),_xlfn.XMATCH($E$17,Barème!$B$4:$XFD$4))","v":0.33339999999999997},{"$f":"INDEX(Barème!$B$5:$XFD$9234,_xlfn.XMATCH('Calcul-Subv-CPE'!H98,Barème!$B$5:$B$9234),_xlfn.XMATCH($E$17,Barème!$B$4:$XFD$4))","v":0.2},null,null,{"$f":"INDEX(Barème!$B$5:$XFD$9234,_xlfn.XMATCH('Calcul-Subv-CPE'!K98,Barème!$B$5:$B$9234),_xlfn.XMATCH($E$17,Barème!$B$4:$XFD$4))","v":0.33339999999999997},{"$f":"INDEX(Barème!$B$5:$XFD$9234,_xlfn.XMATCH('Calcul-Subv-CPE'!L98,Barème!$B$5:$B$9234),_xlfn.XMATCH($E$17,Barème!$B$4:$XFD$4))","v":0.2},null,null,{"$f":"INDEX(Barème!$B$5:$XFD$9234,_xlfn.XMATCH('Calcul-Subv-CPE'!O98,Barème!$B$5:$B$9234),_xlfn.XMATCH($E$17,Barème!$B$4:$XFD$4))","v":0.33339999999999997},{"$f":"INDEX(Barème!$B$5:$XFD$9234,_xlfn.XMATCH('Calcul-Subv-CPE'!P98,Barème!$B$5:$B$9234),_xlfn.XMATCH($E$17,Barème!$B$4:$XFD$4))","v":0.2},null,null,{"$f":"INDEX(Barème!$B$5:$XFD$9234,_xlfn.XMATCH('Calcul-Subv-CPE'!S98,Barème!$B$5:$B$9234),_xlfn.XMATCH($E$17,Barème!$B$4:$XFD$4))","v":0.33339999999999997},{"$f":"INDEX(Barème!$B$5:$XFD$9234,_xlfn.XMATCH('Calcul-Subv-CPE'!T98,Barème!$B$5:$B$9234),_xlfn.XMATCH($E$17,Barème!$B$4:$XFD$4))","v":0.2},null,null,{"$f":"INDEX(Barème!$B$5:$XFD$9234,_xlfn.XMATCH('Calcul-Subv-CPE'!W98,Barème!$B$5:$B$9234),_xlfn.XMATCH($E$17,Barème!$B$4:$XFD$4))","v":0.33339999999999997},{"$f":"INDEX(Barème!$B$5:$XFD$9234,_xlfn.XMATCH('Calcul-Subv-CPE'!X98,Barème!$B$5:$B$9234),_xlfn.XMATCH($E$17,Barème!$B$4:$XFD$4))","v":0.2},null,null,{"$f":"INDEX(Barème!$B$5:$XFD$9234,_xlfn.XMATCH('Calcul-Subv-CPE'!AA98,Barème!$B$5:$B$9234),_xlfn.XMATCH($E$17,Barème!$B$4:$XFD$4))","v":0.33339999999999997},{"$f":"INDEX(Barème!$B$5:$XFD$9234,_xlfn.XMATCH('Calcul-Subv-CPE'!AB98,Barème!$B$5:$B$9234),_xlfn.XMATCH($E$17,Barème!$B$4:$XFD$4))","v":0.2},null,null,{"$f":"INDEX(Barème!$B$5:$XFD$9234,_xlfn.XMATCH('Calcul-Subv-CPE'!AE98,Barème!$B$5:$B$9234),_xlfn.XMATCH($E$17,Barème!$B$4:$XFD$4))","v":0.33339999999999997},{"$f":"INDEX(Barème!$B$5:$XFD$9234,_xlfn.XMATCH('Calcul-Subv-CPE'!AF98,Barème!$B$5:$B$9234),_xlfn.XMATCH($E$17,Barème!$B$4:$XFD$4))","v":0.2},null,null,{"$f":"INDEX(Barème!$B$5:$XFD$9234,_xlfn.XMATCH('Calcul-Subv-CPE'!AI98,Barème!$B$5:$B$9234),_xlfn.XMATCH($E$17,Barème!$B$4:$XFD$4))","v":0.33339999999999997},{"$f":"INDEX(Barème!$B$5:$XFD$9234,_xlfn.XMATCH('Calcul-Subv-CPE'!AJ98,Barème!$B$5:$B$9234),_xlfn.XMATCH($E$17,Barème!$B$4:$XFD$4))","v":0.2},null,null,{"$f":"INDEX(Barème!$B$5:$XFD$9234,_xlfn.XMATCH('Calcul-Subv-CPE'!AM98,Barème!$B$5:$B$9234),_xlfn.XMATCH($E$17,Barème!$B$4:$XFD$4))","v":0.33339999999999997},{"$f":"INDEX(Barème!$B$5:$XFD$9234,_xlfn.XMATCH('Calcul-Subv-CPE'!AN98,Barème!$B$5:$B$9234),_xlfn.XMATCH($E$17,Barème!$B$4:$XFD$4))","v":0.2},null,null,{"$f":"INDEX(Barème!$B$5:$XFD$9234,_xlfn.XMATCH('Calcul-Subv-CPE'!AQ98,Barème!$B$5:$B$9234),_xlfn.XMATCH($E$17,Barème!$B$4:$XFD$4))","v":0.33339999999999997},{"$f":"INDEX(Barème!$B$5:$XFD$9234,_xlfn.XMATCH('Calcul-Subv-CPE'!AR98,Barème!$B$5:$B$9234),_xlfn.XMATCH($E$17,Barème!$B$4:$XFD$4))","v":0.2},null,null,{"$f":"INDEX(Barème!$B$5:$XFD$9234,_xlfn.XMATCH('Calcul-Subv-CPE'!AU98,Barème!$B$5:$B$9234),_xlfn.XMATCH($E$17,Barème!$B$4:$XFD$4))","v":0.33339999999999997},{"$f":"INDEX(Barème!$B$5:$XFD$9234,_xlfn.XMATCH('Calcul-Subv-CPE'!AV98,Barème!$B$5:$B$9234),_xlfn.XMATCH($E$17,Barème!$B$4:$XFD$4))","v":0.2},null,null,{"$f":"INDEX(Barème!$B$5:$XFD$9234,_xlfn.XMATCH('Calcul-Subv-CPE'!AY98,Barème!$B$5:$B$9234),_xlfn.XMATCH($E$17,Barème!$B$4:$XFD$4))","v":0.33339999999999997},{"$f":"INDEX(Barème!$B$5:$XFD$9234,_xlfn.XMATCH('Calcul-Subv-CPE'!AZ98,Barème!$B$5:$B$9234),_xlfn.XMATCH($E$17,Barème!$B$4:$XFD$4))","v":0.2},null,null,{"$f":"INDEX(Barème!$B$5:$XFD$9234,_xlfn.XMATCH('Calcul-Subv-CPE'!BC98,Barème!$B$5:$B$9234),_xlfn.XMATCH($E$17,Barème!$B$4:$XFD$4))","v":0.33339999999999997},{"$f":"INDEX(Barème!$B$5:$XFD$9234,_xlfn.XMATCH('Calcul-Subv-CPE'!BD98,Barème!$B$5:$B$9234),_xlfn.XMATCH($E$17,Barème!$B$4:$XFD$4))","v":0.2}]
["non",null,"Taux de qualification des éducatrices\nRequis uniquement si votre division n'en est pas à sa 1re année d'ouverture",null,"Heures travaillées par des éducatrices qualifiées ÷ \nHeures travaillées par les éducatrices qualifiées et non qualifiées",null,null,null,{"$f":"+$BE100","v":0},null,null,null,{"$f":"+$BE100","v":0},null,null,null,{"$f":"+$BE100","v":0},null,null,null,{"$f":"+$BE100","v":0},null,null,null,{"$f":"+$BE100","v":0},null,null,null,{"$f":"+$BE100","v":0},null,null,null,{"$f":"+$BE100","v":0},null,null,null,{"$f":"+$BE100","v":0},null,null,null,{"$f":"+$BE100","v":0},null,null,null,{"$f":"+$BE100","v":0},null,null,null,{"$f":"+$BE100","v":0},null,null,null,{"$f":"+$BE100","v":0}]
["oui",null,"Facteur d'ajustement pour la qualification",null,null,null,null,null,{"$f":"IF($BE70=$BC73,0,ROUND(IF(I100<G$99,I100-G$99,0),4))","v":-0.33339999999999997},null,null,null,{"$f":"IF($BE70=$BC73,0,ROUND(IF(M100<K$99,M100-K$99,0),4))","v":-0.33339999999999997},null,null,null,{"$f":"IF($BE70=$BC73,0,ROUND(IF(Q100<O$99,Q100-O$99,0),4))","v":-0.33339999999999997},null,null,null,{"$f":"IF($BE70=$BC73,0,ROUND(IF(U100<S$99,U100-S$99,0),4))","v":-0.33339999999999997},null,null,null,{"$f":"IF($BE70=$BC73,0,ROUND(IF(Y100<W$99,Y100-W$99,0),4))","v":-0.33339999999999997},null,null,null,{"$f":"IF($BE70=$BC73,0,ROUND(IF(AC100<AA$99,AC100-AA$99,0),4))","v":-0.33339999999999997},null,null,null,{"$f":"IF($BE70=$BC73,0,ROUND(IF(AG100<AE$99,AG100-AE$99,0),4))","v":-0.33339999999999997},null,null,null,{"$f":"IF($BE70=$BC73,0,ROUND(IF(AK100<AI$99,AK100-AI$99,0),4))","v":-0.33339999999999997},null,null,null,{"$f":"IF($BE70=$BC73,0,ROUND(IF(AO100<AM$99,AO100-AM$99,0),4))","v":-0.33339999999999997},null,null,null,{"$f":"IF($BE70=$BC73,0,ROUND(IF(AS100<AQ$99,AS100-AQ$99,0),4))","v":-0.33339999999999997},null,null,null,{"$f":"IF($BE70=$BC73,0,ROUND(IF(AW100<AU$99,AW100-AU$99,0),4))","v":-0.33339999999999997},null,null,null,{"$f":"IF($BE70=$BC73,0,ROUND(IF(BA100<AY$99,BA100-AY$99,0),4))","v":-0.33339999999999997},null,null,null,{"$f":"IF(BE$70=BC$73,0,ROUND(IF(BE100<BC$99,BE100-BC$99,0),4))","v":-0.33339999999999997}]
["non",null,null,null,null,null,null,null,null,null,null,null,null,null,null,null,null,null,null,null,null,null,null,null,null,null,null,null,null,null,null,null,null,null,null,null,null,null,null,null,null,null,null,null,null,null,null,null,null,null,null,null,null,null,null,null,{"$f":"IF(BE$70=BC$73,\"Aucun ajustement n'est calculé pour la 1ère année\",+\"Ajustement lorsque votre taux est inférieur à \"&BC99*100&\" %\")","v":"Ajustement lorsque votre taux est inférieur à 33,34 %"}]
["non",null,"Ajustement – Qualification",null,null,null,null,null,{"$f":"ROUND(IF(I101*(I87+K87)<0,I101*(I87+K87)*H$99,0),0)","v":0},null,null,null,{"$f":"ROUND(IF(M101*(M87+O87)<0,M101*(M87+O87)*L$99,0),0)","v":0},null,null,null,{"$f":"ROUND(IF(Q101*(Q87+S87)<0,Q101*(Q87+S87)*P$99,0),0)","v":0},null,null,null,{"$f":"ROUND(IF(U101*(U87+W87)<0,U101*(U87+W87)*T$99,0),0)","v":0},null,null,null,{"$f":"ROUND(IF(Y101*(Y87+AA87)<0,Y101*(Y87+AA87)*X$99,0),0)","v":0},null,null,null,{"$f":"ROUND(IF(AC101*(AC87+AE87)<0,AC101*(AC87+AE87)*AB$99,0),0)","v":0},null,null,null,{"$f":"ROUND(IF(AG101*(AG87+AI87)<0,AG101*(AG87+AI87)*AF$99,0),0)","v":0},null,null,null,{"$f":"ROUND(IF(AK101*(AK87+AM87)<0,AK101*(AK87+AM87)*AJ$99,0),0)","v":0},null,null,null,{"$f":"ROUND(IF(AO101*(AO87+AQ87)<0,AO101*(AO87+AQ87)*AN$99,0),0)","v":0},null,null,null,{"$f":"ROUND(IF(AS101*(AS87+AU87)<0,AS101*(AS87+AU87)*AR$99,0),0)","v":0},null,null,null,{"$f":"ROUND(IF(AW101*(AW87+AY87)<0,AW101*(AW87+AY87)*AV$99,0),0)","v":0},null,null,null,{"$f":"ROUND(IF(BA101*(BA87+BC87)<0,BA101*(BA87+BC87)*AZ$99,0),0)","v":0},null,null,null,null,null,{"$f":"+IF(BE103<>0,+BE103,+I103+M103+Q103+U103+Y103+AC103+AG103+AK103+AO103+AS103+AW103+BA103)","v":0}]
["non"]
["oui",null,"Total – Services direct après ajustements",null,null,null,null,null,{"$f":"I87+I96+I103","v":0},null,null,null,{"$f":"M87+M96+M103","v":0},null,null,null,{"$f":"Q87+Q96+Q103","v":0},null,null,null,{"$f":"U87+U96+U103","v":0},null,null,null,{"$f":"Y87+Y96+Y103","v":0},null,null,null,{"$f":"AC87+AC96+AC103","v":0},null,null,null,{"$f":"AG87+AG96+AG103","v":0},null,null,null,{"$f":"AK87+AK96+AK103","v":0},null,null,null,{"$f":"AO87+AO96+AO103","v":0},null,null,null,{"$f":"AS87+AS96+AS103","v":0},null,null,null,{"$f":"AW87+AW96+AW103","v":0},null,null,null,{"$f":"BA87+BA96+BA103","v":0},null,null,null,{"$f":"BE87+BE96+BE103","v":0},null,{"$f":"BG87+BG96+BG103","v":0}]
["oui"]
["oui",null,"Services auxiliaires"]
["oui",null,"Services auxiliaires - Volet A",null,null,null,{"$f":"INDEX(Barème!$C$5:$XFD$9234,_xlfn.XMATCH('Calcul-Subv-CPE'!$C108,Barème!$A$5:$A$9234),_xlfn.XMATCH('Calcul-Subv-CPE'!$E$17,Barème!$C$4:$XFD$4))","v":8.68},null,{"$f":"ROUND(G$108*I$39,0)","v":0},null,{"$f":"INDEX(Barème!$C$5:$XFD$9234,_xlfn.XMATCH('Calcul-Subv-CPE'!$C108,Barème!$A$5:$A$9234),_xlfn.XMATCH('Calcul-Subv-CPE'!$E$17,Barème!$C$4:$XFD$4))","v":8.68},null,{"$f":"ROUND(K$108*M$39,0)","v":0},null,{"$f":"INDEX(Barème!$C$5:$XFD$9234,_xlfn.XMATCH('Calcul-Subv-CPE'!$C108,Barème!$A$5:$A$9234),_xlfn.XMATCH('Calcul-Subv-CPE'!$E$17,Barème!$C$4:$XFD$4))","v":8.68},null,{"$f":"ROUND(O$108*Q$39,0)","v":0},null,{"$f":"INDEX(Barème!$C$5:$XFD$9234,_xlfn.XMATCH('Calcul-Subv-CPE'!$C108,Barème!$A$5:$A$9234),_xlfn.XMATCH('Calcul-Subv-CPE'!$E$17,Barème!$C$4:$XFD$4))","v":8.68},null,{"$f":"ROUND(S$108*U$39,0)","v":0},null,{"$f":"INDEX(Barème!$C$5:$XFD$9234,_xlfn.XMATCH('Calcul-Subv-CPE'!$C108,Barème!$A$5:$A$9234),_xlfn.XMATCH('Calcul-Subv-CPE'!$E$17,Barème!$C$4:$XFD$4))","v":8.68},null,{"$f":"ROUND(W$108*Y$39,0)","v":0},null,{"$f":"INDEX(Barème!$C$5:$XFD$9234,_xlfn.XMATCH('Calcul-Subv-CPE'!$C108,Barème!$A$5:$A$9234),_xlfn.XMATCH('Calcul-Subv-CPE'!$E$17,Barème!$C$4:$XFD$4))","v":8.68},null,{"$f":"ROUND(AA$108*AC$39,0)","v":0},null,{"$f":"INDEX(Barème!$C$5:$XFD$9234,_xlfn.XMATCH('Calcul-Subv-CPE'!$C108,Barème!$A$5:$A$9234),_xlfn.XMATCH('Calcul-Subv-CPE'!$E$17,Barème!$C$4:$XFD$4))","v":8.68},null,{"$f":"ROUND(AE$108*AG$39,0)","v":0},null,{"$f":"INDEX(Barème!$C$5:$XFD$9234,_xlfn.XMATCH('Calcul-Subv-CPE'!$C108,Barème!$A$5:$A$9234),_xlfn.XMATCH('Calcul-Subv-CPE'!$E$17,Barème!$C$4:$XFD$4))","v":8.68},null,{"$f":"ROUND(AI$108*AK$39,0)","v":0},null,{"$f":"INDEX(Barème!$C$5:$XFD$9234,_xlfn.XMATCH('Calcul-Subv-CPE'!$C108,Barème!$A$5:$A$9234),_xlfn.XMATCH('Calcul-Subv-CPE'!$E$17,Barème!$C$4:$XFD$4))","v":8.68},null,{"$f":"ROUND(AM$108*AO$39,0)","v":0},null,{"$f":"INDEX(Barème!$C$5:$XFD$9234,_xlfn.XMATCH('Calcul-Subv-CPE'!$C108,Barème!$A$5:$A$9234),_xlfn.XMATCH('Calcul-Subv-CPE'!$E$17,Barème!$C$4:$XFD$4))","v":8.68},null,{"$f":"ROUND(AQ$108*AS$39,0)","v":0},null,{"$f":"INDEX(Barème!$C$5:$XFD$9234,_xlfn.XMATCH('Calcul-Subv-CPE'!$C108,Barème!$A$5:$A$9234),_xlfn.XMATCH('Calcul-Subv-CPE'!$E$17,Barème!$C$4:$XFD$4))","v":8.68},null,{"$f":"ROUND(AU$108*AW$39,0)","v":0},null,{"$f":"INDEX(Barème!$C$5:$XFD$9234,_xlfn.XMATCH('Calcul-Subv-CPE'!$C108,Barème!$A$5:$A$9234),_xlfn.XMATCH('Calcul-Subv-CPE'!$E$17,Barème!$C$4:$XFD$4))","v":8.68},null,{"$f":"ROUND(AY$108*BA$39,0)","v":0},null,null,"calcul par installation"]
["oui",null,"Services auxiliaires - Volet B",null,null,null,{"$f":"INDEX(Barème!$C$5:$XFD$9234,_xlfn.XMATCH('Calcul-Subv-CPE'!$C109,Barème!$A$5:$A$9234),_xlfn.XMATCH('Calcul-Subv-CPE'!$E$17,Barème!$C$4:$XFD$4))","v":1.1200000000000001},null,{"$f":"IF(I39=0,0,IF(I39>=(I30*80),0,ROUND((I30*80-I$39+I239)*G$109,0)))","v":0},null,{"$f":"INDEX(Barème!$C$5:$XFD$9234,_xlfn.XMATCH('Calcul-Subv-CPE'!$C109,Barème!$A$5:$A$9234),_xlfn.XMATCH('Calcul-Subv-CPE'!$E$17,Barème!$C$4:$XFD$4))","v":1.1200000000000001},null,{"$f":"IF(M39=0,0,IF(M39>=(M30*80),0,ROUND((M30*80-M$39+M239)*K$109,0)))","v":0},null,{"$f":"INDEX(Barème!$C$5:$XFD$9234,_xlfn.XMATCH('Calcul-Subv-CPE'!$C109,Barème!$A$5:$A$9234),_xlfn.XMATCH('Calcul-Subv-CPE'!$E$17,Barème!$C$4:$XFD$4))","v":1.1200000000000001},null,{"$f":"IF(Q39=0,0,IF(Q39>=(Q30*80),0,ROUND((Q30*80-Q$39+Q239)*O$109,0)))","v":0},null,{"$f":"INDEX(Barème!$C$5:$XFD$9234,_xlfn.XMATCH('Calcul-Subv-CPE'!$C109,Barème!$A$5:$A$9234),_xlfn.XMATCH('Calcul-Subv-CPE'!$E$17,Barème!$C$4:$XFD$4))","v":1.1200000000000001},null,{"$f":"IF(U39=0,0,IF(U39>=(U30*80),0,ROUND((U30*80-U$39+U239)*S$109,0)))","v":0},null,{"$f":"INDEX(Barème!$C$5:$XFD$9234,_xlfn.XMATCH('Calcul-Subv-CPE'!$C109,Barème!$A$5:$A$9234),_xlfn.XMATCH('Calcul-Subv-CPE'!$E$17,Barème!$C$4:$XFD$4))","v":1.1200000000000001},null,{"$f":"IF(Y39=0,0,IF(Y39>=(Y30*80),0,ROUND((Y30*80-Y$39+Y239)*W$109,0)))","v":0},null,{"$f":"INDEX(Barème!$C$5:$XFD$9234,_xlfn.XMATCH('Calcul-Subv-CPE'!$C109,Barème!$A$5:$A$9234),_xlfn.XMATCH('Calcul-Subv-CPE'!$E$17,Barème!$C$4:$XFD$4))","v":1.1200000000000001},null,{"$f":"IF(AC39=0,0,IF(AC39>=(AC30*80),0,ROUND((AC30*80-AC$39+AC239)*AA$109,0)))","v":0},null,{"$f":"INDEX(Barème!$C$5:$XFD$9234,_xlfn.XMATCH('Calcul-Subv-CPE'!$C109,Barème!$A$5:$A$9234),_xlfn.XMATCH('Calcul-Subv-CPE'!$E$17,Barème!$C$4:$XFD$4))","v":1.1200000000000001},null,{"$f":"IF(AG39=0,0,IF(AG39>=(AG30*80),0,ROUND((AG30*80-AG$39+AG239)*AE$109,0)))","v":0},null,{"$f":"INDEX(Barème!$C$5:$XFD$9234,_xlfn.XMATCH('Calcul-Subv-CPE'!$C109,Barème!$A$5:$A$9234),_xlfn.XMATCH('Calcul-Subv-CPE'!$E$17,Barème!$C$4:$XFD$4))","v":1.1200000000000001},null,{"$f":"IF(AK39=0,0,IF(AK39>=(AK30*80),0,ROUND((AK30*80-AK$39+AK239)*AI$109,0)))","v":0},null,{"$f":"INDEX(Barème!$C$5:$XFD$9234,_xlfn.XMATCH('Calcul-Subv-CPE'!$C109,Barème!$A$5:$A$9234),_xlfn.XMATCH('Calcul-Subv-CPE'!$E$17,Barème!$C$4:$XFD$4))","v":1.1200000000000001},null,{"$f":"IF(AO39=0,0,IF(AO39>=(AO30*80),0,ROUND((AO30*80-AO$39+AO239)*AM$109,0)))","v":0},null,{"$f":"INDEX(Barème!$C$5:$XFD$9234,_xlfn.XMATCH('Calcul-Subv-CPE'!$C109,Barème!$A$5:$A$9234),_xlfn.XMATCH('Calcul-Subv-CPE'!$E$17,Barème!$C$4:$XFD$4))","v":1.1200000000000001},null,{"$f":"IF(AS39=0,0,IF(AS39>=(AS30*80),0,ROUND((AS30*80-AS$39+AS239)*AQ$109,0)))","v":0},null,{"$f":"INDEX(Barème!$C$5:$XFD$9234,_xlfn.XMATCH('Calcul-Subv-CPE'!$C109,Barème!$A$5:$A$9234),_xlfn.XMATCH('Calcul-Subv-CPE'!$E$17,Barème!$C$4:$XFD$4))","v":1.1200000000000001},null,{"$f":"IF(AW39=0,0,IF(AW39>=(AW30*80),0,ROUND((AW30*80-AW$39+AW239)*AU$109,0)))","v":0},null,{"$f":"INDEX(Barème!$C$5:$XFD$9234,_xlfn.XMATCH('Calcul-Subv-CPE'!$C109,Barème!$A$5:$A$9234),_xlfn.XMATCH('Calcul-Subv-CPE'!$E$17,Barème!$C$4:$XFD$4))","v":1.1200000000000001},null,{"$f":"IF(BA39=0,0,IF(BA39>=(BA30*80),0,ROUND((BA30*80-BA$39+BA239)*AY$109,0)))","v":0},null,null,"calcul par installation"]
["oui"]
["non",null,"Total – Services auxiliaires",null,null,null,null,null,{"$f":"I108+I109","v":0},null,null,null,{"$f":"M108+M109","v":0},null,null,null,{"$f":"Q108+Q109","v":0},null,null,null,{"$f":"U108+U109","v":0},null,null,null,{"$f":"Y108+Y109","v":0},null,null,null,{"$f":"AC108+AC109","v":0},null,null,null,{"$f":"AG108+AG109","v":0},null,null,null,{"$f":"AK108+AK109","v":0},null,null,null,{"$f":"AO108+AO109","v":0},null,null,null,{"$f":"AS108+AS109","v":0},null,null,null,{"$f":"AW108+AW109","v":0},null,null,null,{"$f":"BA108+BA109","v":0},null,null,null,null,null,{"$f":"+IF(BE111<>0,+BE111,+I111+M111+Q111+U111+Y111+AC111+AG111+AK111+AO111+AS111+AW111+BA111)","v":0}]
["oui"]
["oui",null,null,null,null,null,"Barème (=<60 places)","Barème (>60 places)",null,null,"Barème (=<60 places)","Barème (>60 places)",null,null,"Barème (=<60 places)","Barème (>60 places)",null,null,"Barème (=<60 places)","Barème (>60 places)",null,null,"Barème (=<60 places)","Barème (>60 places)",null,null,"Barème (=<60 places)","Barème (>60 places)",null,null,"Barème (=<60 places)","Barème (>60 places)",null,null,"Barème (=<60 places)","Barème (>60 places)",null,null,"Barème (=<60 places)","Barème (>60 places)",null,null,"Barème (=<60 places)","Barème (>60 places)",null,null,"Barème (=<60 places)","Barème (>60 places)",null,null,"Barème (=<60 places)","Barème (>60 places)",null,null,"Barème (=<60 places)","Barème (>60 places)"]
["oui",null,"Services administratifs",null,null,null,{"$f":"INDEX(Barème!$B$5:$XFD$9234,_xlfn.XMATCH('Calcul-Subv-CPE'!$C115,Barème!$B$5:$B$9234),_xlfn.XMATCH($E$17,Barème!$B$4:$XFD$4))","v":2358.1999999999998},{"$f":"INDEX(Barème!$B$5:$XFD$9234,_xlfn.XMATCH('Calcul-Subv-CPE'!$C116,Barème!$B$5:$B$9234),_xlfn.XMATCH($E$17,Barème!$B$4:$XFD$4))","v":2078.42},null,null,{"$f":"INDEX(Barème!$B$5:$XFD$9234,_xlfn.XMATCH('Calcul-Subv-CPE'!$C115,Barème!$B$5:$B$9234),_xlfn.XMATCH($E$17,Barème!$B$4:$XFD$4))","v":2358.1999999999998},{"$f":"INDEX(Barème!$B$5:$XFD$9234,_xlfn.XMATCH('Calcul-Subv-CPE'!$C116,Barème!$B$5:$B$9234),_xlfn.XMATCH($E$17,Barème!$B$4:$XFD$4))","v":2078.42},null,null,{"$f":"INDEX(Barème!$B$5:$XFD$9234,_xlfn.XMATCH('Calcul-Subv-CPE'!$C115,Barème!$B$5:$B$9234),_xlfn.XMATCH($E$17,Barème!$B$4:$XFD$4))","v":2358.1999999999998},{"$f":"INDEX(Barème!$B$5:$XFD$9234,_xlfn.XMATCH('Calcul-Subv-CPE'!$C116,Barème!$B$5:$B$9234),_xlfn.XMATCH($E$17,Barème!$B$4:$XFD$4))","v":2078.42},null,null,{"$f":"INDEX(Barème!$B$5:$XFD$9234,_xlfn.XMATCH('Calcul-Subv-CPE'!$C115,Barème!$B$5:$B$9234),_xlfn.XMATCH($E$17,Barème!$B$4:$XFD$4))","v":2358.1999999999998},{"$f":"INDEX(Barème!$B$5:$XFD$9234,_xlfn.XMATCH('Calcul-Subv-CPE'!$C116,Barème!$B$5:$B$9234),_xlfn.XMATCH($E$17,Barème!$B$4:$XFD$4))","v":2078.42},null,null,{"$f":"INDEX(Barème!$B$5:$XFD$9234,_xlfn.XMATCH('Calcul-Subv-CPE'!$C115,Barème!$B$5:$B$9234),_xlfn.XMATCH($E$17,Barème!$B$4:$XFD$4))","v":2358.1999999999998},{"$f":"INDEX(Barème!$B$5:$XFD$9234,_xlfn.XMATCH('Calcul-Subv-CPE'!$C116,Barème!$B$5:$B$9234),_xlfn.XMATCH($E$17,Barème!$B$4:$XFD$4))","v":2078.42},null,null,{"$f":"INDEX(Barème!$B$5:$XFD$9234,_xlfn.XMATCH('Calcul-Subv-CPE'!$C115,Barème!$B$5:$B$9234),_xlfn.XMATCH($E$17,Barème!$B$4:$XFD$4))","v":2358.1999999999998},{"$f":"INDEX(Barème!$B$5:$XFD$9234,_xlfn.XMATCH('Calcul-Subv-CPE'!$C116,Barème!$B$5:$B$9234),_xlfn.XMATCH($E$17,Barème!$B$4:$XFD$4))","v":2078.42},null,null,{"$f":"INDEX(Barème!$B$5:$XFD$9234,_xlfn.XMATCH('Calcul-Subv-CPE'!$C115,Barème!$B$5:$B$9234),_xlfn.XMATCH($E$17,Barème!$B$4:$XFD$4))","v":2358.1999999999998},{"$f":"INDEX(Barème!$B$5:$XFD$9234,_xlfn.XMATCH('Calcul-Subv-CPE'!$C116,Barème!$B$5:$B$9234),_xlfn.XMATCH($E$17,Barème!$B$4:$XFD$4))","v":2078.42},null,null,{"$f":"INDEX(Barème!$B$5:$XFD$9234,_xlfn.XMATCH('Calcul-Subv-CPE'!$C115,Barème!$B$5:$B$9234),_xlfn.XMATCH($E$17,Barème!$B$4:$XFD$4))","v":2358.1999999999998},{"$f":"INDEX(Barème!$B$5:$XFD$9234,_xlfn.XMATCH('Calcul-Subv-CPE'!$C116,Barème!$B$5:$B$9234),_xlfn.XMATCH($E$17,Barème!$B$4:$XFD$4))","v":2078.42},null,null,{"$f":"INDEX(Barème!$B$5:$XFD$9234,_xlfn.XMATCH('Calcul-Subv-CPE'!$C115,Barème!$B$5:$B$9234),_xlfn.XMATCH($E$17,Barème!$B$4:$XFD$4))","v":2358.1999999999998},{"$f":"INDEX(Barème!$B$5:$XFD$9234,_xlfn.XMATCH('Calcul-Subv-CPE'!$C116,Barème!$B$5:$B$9234),_xlfn.XMATCH($E$17,Barème!$B$4:$XFD$4))","v":2078.42},null,null,{"$f":"INDEX(Barème!$B$5:$XFD$9234,_xlfn.XMATCH('Calcul-Subv-CPE'!$C115,Barème!$B$5:$B$9234),_xlfn.XMATCH($E$17,Barème!$B$4:$XFD$4))","v":2358.1999999999998},{"$f":"INDEX(Barème!$B$5:$XFD$9234,_xlfn.XMATCH('Calcul-Subv-CPE'!$C116,Barème!$B$5:$B$9234),_xlfn.XMATCH($E$17,Barème!$B$4:$XFD$4))","v":2078.42},null,null,{"$f":"INDEX(Barème!$B$5:$XFD$9234,_xlfn.XMATCH('Calcul-Subv-CPE'!$C115,Barème!$B$5:$B$9234),_xlfn.XMATCH($E$17,Barème!$B$4:$XFD$4))","v":2358.1999999999998},{"$f":"INDEX(Barème!$B$5:$XFD$9234,_xlfn.XMATCH('Calcul-Subv-CPE'!$C116,Barème!$B$5:$B$9234),_xlfn.XMATCH($E$17,Barème!$B$4:$XFD$4))","v":2078.42},null,null,{"$f":"INDEX(Barème!$B$5:$XFD$9234,_xlfn.XMATCH('Calcul-Subv-CPE'!$C115,Barème!$B$5:$B$9234),_xlfn.XMATCH($E$17,Barème!$B$4:$XFD$4))","v":2358.1999999999998},{"$f":"INDEX(Barème!$B$5:$XFD$9234,_xlfn.XMATCH('Calcul-Subv-CPE'!$C116,Barème!$B$5:$B$9234),_xlfn.XMATCH($E$17,Barème!$B$4:$XFD$4))","v":2078.42}]
["oui",null,"Services administratifs (moins 60 places)",null,null,null,null,null,{"$f":"IF(I$28<61,ROUND(G$114*I$28,0),0)","v":0},null,null,null,{"$f":"IF(M$28<61,ROUND(K$114*M$28,0),0)","v":0},null,null,null,{"$f":"IF(Q$28<61,ROUND(O$114*Q$28,0),0)","v":0},null,null,null,{"$f":"IF(U$28<61,ROUND(S$114*U$28,0),0)","v":0},null,null,null,{"$f":"IF(Y$28<61,ROUND(W$114*Y$28,0),0)","v":0},null,null,null,{"$f":"IF(AC$28<61,ROUND(AA$114*AC$28,0),0)","v":0},null,null,null,{"$f":"IF(AG$28<61,ROUND(AE$114*AG$28,0),0)","v":0},null,null,null,{"$f":"IF(AK$28<61,ROUND(AI$114*AK$28,0),0)","v":0},null,null,null,{"$f":"IF(AO$28<61,ROUND(AM$114*AO$28,0),0)","v":0},null,null,null,{"$f":"IF(AS$28<61,ROUND(AQ$114*AS$28,0),0)","v":0},null,null,null,{"$f":"IF(AW$28<61,ROUND(AU$114*AW$28,0),0)","v":0},null,null,null,{"$f":"IF(BA$28<61,ROUND(AY$114*BA$28,0),0)","v":0},null,"calcul par installation"]
["oui",null,"Services administratifs (61 places et plus)",null,null,null,null,null,{"$f":"IF(I$28>60,ROUND((+I$28-60)*H$114+(G$114*60),0),0)","v":0},null,null,null,{"$f":"IF(M$28>60,ROUND((+M$28-60)*L$114+(K$114*60),0),0)","v":0},null,null,null,{"$f":"IF(Q$28>60,ROUND((+Q$28-60)*P$114+(O$114*60),0),0)","v":0},null,null,null,{"$f":"IF(U$28>60,ROUND((+U$28-60)*T$114+(S$114*60),0),0)","v":0},null,null,null,{"$f":"IF(Y$28>60,ROUND((+Y$28-60)*X$114+(W$114*60),0),0)","v":0},null,null,null,{"$f":"IF(AC$28>60,ROUND((+AC$28-60)*AB$114+(AA$114*60),0),0)","v":0},null,null,null,{"$f":"IF(AG$28>60,ROUND((+AG$28-60)*AF$114+(AE$114*60),0),0)","v":0},null,null,null,{"$f":"IF(AK$28>60,ROUND((+AK$28-60)*AJ$114+(AI$114*60),0),0)","v":0},null,null,null,{"$f":"IF(AO$28>60,ROUND((+AO$28-60)*AN$114+(AM$114*60),0),0)","v":0},null,null,null,{"$f":"IF(AS$28>60,ROUND((+AS$28-60)*AR$114+(AQ$114*60),0),0)","v":0},null,null,null,{"$f":"IF(AW$28>60,ROUND((+AW$28-60)*AV$114+(AU$114*60),0),0)","v":0},null,null,null,{"$f":"IF(BA$28>60,ROUND((+BA$28-60)*AZ$114+(AY$114*60),0),0)","v":0}]
["oui",null,"Total - Services administratifs avant ajustement de fermeture",null,null,null,null,null,{"$f":"I116+I115","v":0},null,null,null,{"$f":"M116+M115","v":0},null,null,null,{"$f":"Q116+Q115","v":0},null,null,null,{"$f":"U116+U115","v":0},null,null,null,{"$f":"Y116+Y115","v":0},null,null,null,{"$f":"AC116+AC115","v":0},null,null,null,{"$f":"AG116+AG115","v":0},null,null,null,{"$f":"AK116+AK115","v":0},null,null,null,{"$f":"AO116+AO115","v":0},null,null,null,{"$f":"AS116+AS115","v":0},null,null,null,{"$f":"AW116+AW115","v":0},null,null,null,{"$f":"BA116+BA115","v":0}]
["oui",null,"Nbre de jours de fermeture excédentaire à 13 jours(1er jour de cas fortuit non considéré) dont le service administratif n'est pas offert ",null,null,null,"N'ira pas dans ce détail pour les besoins de ce simulateur",null,0,null,"N'ira pas dans ce détail pour les besoins de ce simulateur",null,0,null,"N'ira pas dans ce détail pour les besoins de ce simulateur",null,0,null,"N'ira pas dans ce détail pour les besoins de ce simulateur",null,0,null,"N'ira pas dans ce détail pour les besoins de ce simulateur",null,0,null,"N'ira pas dans ce détail pour les besoins de ce simulateur",null,0,null,"N'ira pas dans ce détail pour les besoins de ce simulateur",null,0,null,"N'ira pas dans ce détail pour les besoins de ce simulateur",null,0,null,"N'ira pas dans ce détail pour les besoins de ce simulateur",null,0,null,"N'ira pas dans ce détail pour les besoins de ce simulateur",null,0,null,"N'ira pas dans ce détail pour les besoins de ce simulateur",null,0,null,"N'ira pas dans ce détail pour les besoins de ce simulateur",null,0]
["oui",null,"Ajustement pour les jours excédentaires",null,null,null,null,null,{"$f":"IF(F118=0,0,ROUND(-I118/I30*I117,0))","v":0},null,null,null,{"$f":"IF(J118=0,0,ROUND(-M118/M30*M117,0))","v":0},null,null,null,{"$f":"IF(N118=0,0,ROUND(-Q118/Q30*Q117,0))","v":0},null,null,null,{"$f":"IF(R118=0,0,ROUND(-U118/U30*U117,0))","v":0},null,null,null,{"$f":"IF(V118=0,0,ROUND(-Y118/Y30*Y117,0))","v":0},null,null,null,{"$f":"IF(Z118=0,0,ROUND(-AC118/AC30*AC117,0))","v":0},null,null,null,{"$f":"IF(AD118=0,0,ROUND(-AG118/AG30*AG117,0))","v":0},null,null,null,{"$f":"IF(AH118=0,0,ROUND(-AK118/AK30*AK117,0))","v":0},null,null,null,{"$f":"IF(AL118=0,0,ROUND(-AO118/AO30*AO117,0))","v":0},null,null,null,{"$f":"IF(AP118=0,0,ROUND(-AS118/AS30*AS117,0))","v":0},null,null,null,{"$f":"IF(AT118=0,0,ROUND(-AW118/AW30*AW117,0))","v":0},null,null,null,{"$f":"IF(AX118=0,0,ROUND(-BA118/BA30*BA117,0))","v":0}]
["non"]
["non",null,"Total – Services administratifs",null,null,null,null,null,{"$f":"I117+I119","v":0},null,null,null,{"$f":"M117+M119","v":0},null,null,null,{"$f":"Q117+Q119","v":0},null,null,null,{"$f":"U117+U119","v":0},null,null,null,{"$f":"Y117+Y119","v":0},null,null,null,{"$f":"AC117+AC119","v":0},null,null,null,{"$f":"AG117+AG119","v":0},null,null,null,{"$f":"AK117+AK119","v":0},null,null,null,{"$f":"AO117+AO119","v":0},null,null,null,{"$f":"AS117+AS119","v":0},null,null,null,{"$f":"AW117+AW119","v":0},null,null,null,{"$f":"BA117+BA119","v":0},null,null,null,null,null,{"$f":"+IF(BE121<>0,+BE121,+I121+M121+Q121+U121+Y121+AC121+AG121+AK121+AO121+AS121+AW121+BA121)","v":0}]
["non"]
["oui"]
["non",null,"Coûts d'occupation des locaux (COL)"]
["non",null,"Volet A",null,null,null,"Volet A :","Montant minimum",{"$f":"+IF(I28=0,0,ROUND(MAX(H126,I$28*G126),0))","v":0},null,"Volet A :","Montant minimum",{"$f":"+IF(M28=0,0,ROUND(MAX(L126,M$28*K126),0))","v":0},null,"Volet A :","Montant minimum",{"$f":"+IF(Q28=0,0,ROUND(MAX(P126,Q$28*O126),0))","v":0},null,"Volet A :","Montant minimum",{"$f":"+IF(U28=0,0,ROUND(MAX(T126,U$28*S126),0))","v":0},null,"Volet A :","Montant minimum",{"$f":"+IF(Y28=0,0,ROUND(MAX(X126,Y$28*W126),0))","v":0},null,"Volet A :","Montant minimum",{"$f":"+IF(AC28=0,0,ROUND(MAX(AB126,AC$28*AA126),0))","v":0},null,"Volet A :","Montant minimum",{"$f":"+IF(AG28=0,0,ROUND(MAX(AF126,AG$28*AE126),0))","v":0},null,"Volet A :","Montant minimum",{"$f":"+IF(AK28=0,0,ROUND(MAX(AJ126,AK$28*AI126),0))","v":0},null,"Volet A :","Montant minimum",{"$f":"+IF(AO28=0,0,ROUND(MAX(AN126,AO$28*AM126),0))","v":0},null,"Volet A :","Montant minimum",{"$f":"+IF(AS28=0,0,ROUND(MAX(AR126,AS$28*AQ126),0))","v":0},null,"Volet A :","Montant minimum",{"$f":"+IF(AW28=0,0,ROUND(MAX(AV126,AW$28*AU126),0))","v":0},null,"Volet A :","Montant minimum",{"$f":"+IF(BA28=0,0,ROUND(MAX(AZ126,BA$28*AY126),0))","v":0},null,"Volet A :","Montant minimum"]
["oui",null,null,null,null,null,{"$f":"INDEX(Barème!$B$5:$XFD$9234,_xlfn.XMATCH('Calcul-Subv-CPE'!G125,Barème!$B$5:$B$9234),_xlfn.XMATCH($E$17,Barème!$B$4:$XFD$4))","v":587.83000000000004},{"$f":"INDEX(Barème!$B$5:$XFD$9234,_xlfn.XMATCH('Calcul-Subv-CPE'!H125,Barème!$B$5:$B$9234),_xlfn.XMATCH($E$17,Barème!$B$4:$XFD$4))","v":18810.560000000001},null,null,{"$f":"INDEX(Barème!$B$5:$XFD$9234,_xlfn.XMATCH('Calcul-Subv-CPE'!K125,Barème!$B$5:$B$9234),_xlfn.XMATCH($E$17,Barème!$B$4:$XFD$4))","v":587.83000000000004},{"$f":"INDEX(Barème!$B$5:$XFD$9234,_xlfn.XMATCH('Calcul-Subv-CPE'!L125,Barème!$B$5:$B$9234),_xlfn.XMATCH($E$17,Barème!$B$4:$XFD$4))","v":18810.560000000001},null,null,{"$f":"INDEX(Barème!$B$5:$XFD$9234,_xlfn.XMATCH('Calcul-Subv-CPE'!O125,Barème!$B$5:$B$9234),_xlfn.XMATCH($E$17,Barème!$B$4:$XFD$4))","v":587.83000000000004},{"$f":"INDEX(Barème!$B$5:$XFD$9234,_xlfn.XMATCH('Calcul-Subv-CPE'!P125,Barème!$B$5:$B$9234),_xlfn.XMATCH($E$17,Barème!$B$4:$XFD$4))","v":18810.560000000001},null,null,{"$f":"INDEX(Barème!$B$5:$XFD$9234,_xlfn.XMATCH('Calcul-Subv-CPE'!S125,Barème!$B$5:$B$9234),_xlfn.XMATCH($E$17,Barème!$B$4:$XFD$4))","v":587.83000000000004},{"$f":"INDEX(Barème!$B$5:$XFD$9234,_xlfn.XMATCH('Calcul-Subv-CPE'!T125,Barème!$B$5:$B$9234),_xlfn.XMATCH($E$17,Barème!$B$4:$XFD$4))","v":18810.560000000001},null,null,{"$f":"INDEX(Barème!$B$5:$XFD$9234,_xlfn.XMATCH('Calcul-Subv-CPE'!W125,Barème!$B$5:$B$9234),_xlfn.XMATCH($E$17,Barème!$B$4:$XFD$4))","v":587.83000000000004},{"$f":"INDEX(Barème!$B$5:$XFD$9234,_xlfn.XMATCH('Calcul-Subv-CPE'!X125,Barème!$B$5:$B$9234),_xlfn.XMATCH($E$17,Barème!$B$4:$XFD$4))","v":18810.560000000001},null,null,{"$f":"INDEX(Barème!$B$5:$XFD$9234,_xlfn.XMATCH('Calcul-Subv-CPE'!AA125,Barème!$B$5:$B$9234),_xlfn.XMATCH($E$17,Barème!$B$4:$XFD$4))","v":587.83000000000004},{"$f":"INDEX(Barème!$B$5:$XFD$9234,_xlfn.XMATCH('Calcul-Subv-CPE'!AB125,Barème!$B$5:$B$9234),_xlfn.XMATCH($E$17,Barème!$B$4:$XFD$4))","v":18810.560000000001},null,null,{"$f":"INDEX(Barème!$B$5:$XFD$9234,_xlfn.XMATCH('Calcul-Subv-CPE'!AE125,Barème!$B$5:$B$9234),_xlfn.XMATCH($E$17,Barème!$B$4:$XFD$4))","v":587.83000000000004},{"$f":"INDEX(Barème!$B$5:$XFD$9234,_xlfn.XMATCH('Calcul-Subv-CPE'!AF125,Barème!$B$5:$B$9234),_xlfn.XMATCH($E$17,Barème!$B$4:$XFD$4))","v":18810.560000000001},null,null,{"$f":"INDEX(Barème!$B$5:$XFD$9234,_xlfn.XMATCH('Calcul-Subv-CPE'!AI125,Barème!$B$5:$B$9234),_xlfn.XMATCH($E$17,Barème!$B$4:$XFD$4))","v":587.83000000000004},{"$f":"INDEX(Barème!$B$5:$XFD$9234,_xlfn.XMATCH('Calcul-Subv-CPE'!AJ125,Barème!$B$5:$B$9234),_xlfn.XMATCH($E$17,Barème!$B$4:$XFD$4))","v":18810.560000000001},null,null,{"$f":"INDEX(Barème!$B$5:$XFD$9234,_xlfn.XMATCH('Calcul-Subv-CPE'!AM125,Barème!$B$5:$B$9234),_xlfn.XMATCH($E$17,Barème!$B$4:$XFD$4))","v":587.83000000000004},{"$f":"INDEX(Barème!$B$5:$XFD$9234,_xlfn.XMATCH('Calcul-Subv-CPE'!AN125,Barème!$B$5:$B$9234),_xlfn.XMATCH($E$17,Barème!$B$4:$XFD$4))","v":18810.560000000001},null,null,{"$f":"INDEX(Barème!$B$5:$XFD$9234,_xlfn.XMATCH('Calcul-Subv-CPE'!AQ125,Barème!$B$5:$B$9234),_xlfn.XMATCH($E$17,Barème!$B$4:$XFD$4))","v":587.83000000000004},{"$f":"INDEX(Barème!$B$5:$XFD$9234,_xlfn.XMATCH('Calcul-Subv-CPE'!AR125,Barème!$B$5:$B$9234),_xlfn.XMATCH($E$17,Barème!$B$4:$XFD$4))","v":18810.560000000001},null,null,{"$f":"INDEX(Barème!$B$5:$XFD$9234,_xlfn.XMATCH('Calcul-Subv-CPE'!AU125,Barème!$B$5:$B$9234),_xlfn.XMATCH($E$17,Barème!$B$4:$XFD$4))","v":587.83000000000004},{"$f":"INDEX(Barème!$B$5:$XFD$9234,_xlfn.XMATCH('Calcul-Subv-CPE'!AV125,Barème!$B$5:$B$9234),_xlfn.XMATCH($E$17,Barème!$B$4:$XFD$4))","v":18810.560000000001},null,null,{"$f":"INDEX(Barème!$B$5:$XFD$9234,_xlfn.XMATCH('Calcul-Subv-CPE'!AY125,Barème!$B$5:$B$9234),_xlfn.XMATCH($E$17,Barème!$B$4:$XFD$4))","v":587.83000000000004},{"$f":"INDEX(Barème!$B$5:$XFD$9234,_xlfn.XMATCH('Calcul-Subv-CPE'!AZ125,Barème!$B$5:$B$9234),_xlfn.XMATCH($E$17,Barème!$B$4:$XFD$4))","v":18810.560000000001}]
["non"]
["non",null,"Volet B - Choisissez une situation",null,null,null,{"$f":"+Barème!$B$200","v":"Propriétaire"},{"$f":"+Barème!$B$201","v":"Locataire"},"Propriétaire",null,{"$f":"+Barème!$B$200","v":"Propriétaire"},{"$f":"+Barème!$B$201","v":"Locataire"},"Locataire",null,{"$f":"+Barème!$B$200","v":"Propriétaire"},{"$f":"+Barème!$B$201","v":"Locataire"},"Locataire",null,{"$f":"+Barème!$B$200","v":"Propriétaire"},{"$f":"+Barème!$B$201","v":"Locataire"},"Locataire",null,{"$f":"+Barème!$B$200","v":"Propriétaire"},{"$f":"+Barème!$B$201","v":"Locataire"},"Locataire",null,{"$f":"+Barème!$B$200","v":"Propriétaire"},{"$f":"+Barème!$B$201","v":"Locataire"},"Locataire",null,{"$f":"+Barème!$B$200","v":"Propriétaire"},{"$f":"+Barème!$B$201","v":"Locataire"},"Locataire",null,{"$f":"+Barème!$B$200","v":"Propriétaire"},{"$f":"+Barème!$B$201","v":"Locataire"},"Locataire",null,{"$f":"+Barème!$B$200","v":"Propriétaire"},{"$f":"+Barème!$B$201","v":"Locataire"},"Locataire",null,{"$f":"+Barème!$B$200","v":"Propriétaire"},{"$f":"+Barème!$B$201","v":"Locataire"},"Locataire",null,{"$f":"+Barème!$B$200","v":"Propriétaire"},{"$f":"+Barème!$B$201","v":"Locataire"},"Locataire",null,{"$f":"+Barème!$B$200","v":"Propriétaire"},{"$f":"+Barème!$B$201","v":"Locataire"},"Locataire",null,{"$f":"+Barème!$B$200","v":"Propriétaire"},{"$f":"+Barème!$B$201","v":"Locataire"}]
["non",null,null,null,null,null,null,null,{"$f":"+IF(I128=G128,\"Ne s'applique pas si propriétaire\",\"Sélectionner votre région\")","v":"Ne s'applique pas si propriétaire"},null,null,null,{"$f":"+IF(M128=K128,\"Ne s'applique pas si propriétaire\",\"Sélectionner votre région\")","v":"Sélectionner votre région"},null,null,null,{"$f":"+IF(Q128=O128,\"Ne s'applique pas si propriétaire\",\"Sélectionner votre région\")","v":"Sélectionner votre région"},null,null,null,{"$f":"+IF(U128=S128,\"Ne s'applique pas si propriétaire\",\"Sélectionner votre région\")","v":"Sélectionner votre région"},null,null,null,{"$f":"+IF(Y128=W128,\"Ne s'applique pas si propriétaire\",\"Sélectionner votre région\")","v":"Sélectionner votre région"},null,null,null,{"$f":"+IF(AC128=AA128,\"Ne s'applique pas si propriétaire\",\"Sélectionner votre région\")","v":"Sélectionner votre région"},null,null,null,{"$f":"+IF(AG128=AE128,\"Ne s'applique pas si propriétaire\",\"Sélectionner votre région\")","v":"Sélectionner votre région"},null,null,null,{"$f":"+IF(AK128=AI128,\"Ne s'applique pas si propriétaire\",\"Sélectionner votre région\")","v":"Sélectionner votre région"},null,null,null,{"$f":"+IF(AO128=AM128,\"Ne s'applique pas si propriétaire\",\"Sélectionner votre région\")","v":"Sélectionner votre région"},null,null,null,{"$f":"+IF(AS128=AQ128,\"Ne s'applique pas si propriétaire\",\"Sélectionner votre région\")","v":"Sélectionner votre région"},null,null,null,{"$f":"+IF(AW128=AU128,\"Ne s'applique pas si propriétaire\",\"Sélectionner votre région\")","v":"Sélectionner votre région"},null,null,null,{"$f":"+IF(BA128=AY128,\"Ne s'applique pas si propriétaire\",\"Sélectionner votre région\")","v":"Sélectionner votre région"}]
["non"]
["non",null,"Si locataire, sélectionnez votre région\nLes régions sont définies dans l'onglet \"Divisions régionales\"",null,null,null,null,null,"Montréal",null,null,null,"Communauté métropolitaine de Québec",null,null,null,"Régions centrales",null,null,null,"Régions ressources",null,null,null,"Régions ressources",null,null,null,"Montréal",null,null,null,"Montréal",null,null,null,"Montréal",null,null,null,"Montréal",null,null,null,"Montréal",null,null,null,"Montréal",null,null,null,"Montréal",null,"calcul par installation"]
["oui",null,"Menu déroulant Région - Montréal",null,null,null,{"$f":"+VLOOKUP($C132,Barème!$A:$B,2,FALSE)","v":"Montréal"},{"$f":"INDEX(Barème!$B$5:$XFD$9234,_xlfn.XMATCH('Calcul-Subv-CPE'!G132,Barème!$B$5:$B$9234),_xlfn.XMATCH($E$17,Barème!$B$4:$XFD$4))","v":1941},null,null,{"$f":"+VLOOKUP($C132,Barème!$A:$B,2,FALSE)","v":"Montréal"},{"$f":"INDEX(Barème!$B$5:$XFD$9234,_xlfn.XMATCH('Calcul-Subv-CPE'!K132,Barème!$B$5:$B$9234),_xlfn.XMATCH($E$17,Barème!$B$4:$XFD$4))","v":1941},null,null,{"$f":"+VLOOKUP($C132,Barème!$A:$B,2,FALSE)","v":"Montréal"},{"$f":"INDEX(Barème!$B$5:$XFD$9234,_xlfn.XMATCH('Calcul-Subv-CPE'!O132,Barème!$B$5:$B$9234),_xlfn.XMATCH($E$17,Barème!$B$4:$XFD$4))","v":1941},null,null,{"$f":"+VLOOKUP($C132,Barème!$A:$B,2,FALSE)","v":"Montréal"},{"$f":"INDEX(Barème!$B$5:$XFD$9234,_xlfn.XMATCH('Calcul-Subv-CPE'!S132,Barème!$B$5:$B$9234),_xlfn.XMATCH($E$17,Barème!$B$4:$XFD$4))","v":1941},null,null,{"$f":"+VLOOKUP($C132,Barème!$A:$B,2,FALSE)","v":"Montréal"},{"$f":"INDEX(Barème!$B$5:$XFD$9234,_xlfn.XMATCH('Calcul-Subv-CPE'!W132,Barème!$B$5:$B$9234),_xlfn.XMATCH($E$17,Barème!$B$4:$XFD$4))","v":1941},null,null,{"$f":"+VLOOKUP($C132,Barème!$A:$B,2,FALSE)","v":"Montréal"},{"$f":"INDEX(Barème!$B$5:$XFD$9234,_xlfn.XMATCH('Calcul-Subv-CPE'!AA132,Barème!$B$5:$B$9234),_xlfn.XMATCH($E$17,Barème!$B$4:$XFD$4))","v":1941},null,null,{"$f":"+VLOOKUP($C132,Barème!$A:$B,2,FALSE)","v":"Montréal"},{"$f":"INDEX(Barème!$B$5:$XFD$9234,_xlfn.XMATCH('Calcul-Subv-CPE'!AE132,Barème!$B$5:$B$9234),_xlfn.XMATCH($E$17,Barème!$B$4:$XFD$4))","v":1941},null,null,{"$f":"+VLOOKUP($C132,Barème!$A:$B,2,FALSE)","v":"Montréal"},{"$f":"INDEX(Barème!$B$5:$XFD$9234,_xlfn.XMATCH('Calcul-Subv-CPE'!AI132,Barème!$B$5:$B$9234),_xlfn.XMATCH($E$17,Barème!$B$4:$XFD$4))","v":1941},null,null,{"$f":"+VLOOKUP($C132,Barème!$A:$B,2,FALSE)","v":"Montréal"},{"$f":"INDEX(Barème!$B$5:$XFD$9234,_xlfn.XMATCH('Calcul-Subv-CPE'!AM132,Barème!$B$5:$B$9234),_xlfn.XMATCH($E$17,Barème!$B$4:$XFD$4))","v":1941},null,null,{"$f":"+VLOOKUP($C132,Barème!$A:$B,2,FALSE)","v":"Montréal"},{"$f":"INDEX(Barème!$B$5:$XFD$9234,_xlfn.XMATCH('Calcul-Subv-CPE'!AQ132,Barème!$B$5:$B$9234),_xlfn.XMATCH($E$17,Barème!$B$4:$XFD$4))","v":1941},null,null,{"$f":"+VLOOKUP($C132,Barème!$A:$B,2,FALSE)","v":"Montréal"},{"$f":"INDEX(Barème!$B$5:$XFD$9234,_xlfn.XMATCH('Calcul-Subv-CPE'!AU132,Barème!$B$5:$B$9234),_xlfn.XMATCH($E$17,Barème!$B$4:$XFD$4))","v":1941},null,null,{"$f":"+VLOOKUP($C132,Barème!$A:$B,2,FALSE)","v":"Montréal"},{"$f":"INDEX(Barème!$B$5:$XFD$9234,_xlfn.XMATCH('Calcul-Subv-CPE'!AY132,Barème!$B$5:$B$9234),_xlfn.XMATCH($E$17,Barème!$B$4:$XFD$4))","v":1941},null,null,{"$f":"+VLOOKUP($C132,Barème!$A:$B,2,FALSE)","v":"Montréal"}]
["oui",null,"Menu déroulant Région - Communauté métropolitaine de Québec",null,null,null,{"$f":"+VLOOKUP($C133,Barème!$A:$B,2,FALSE)","v":"Communauté métropolitaine de Québec"},{"$f":"INDEX(Barème!$B$5:$XFD$9234,_xlfn.XMATCH('Calcul-Subv-CPE'!G133,Barème!$B$5:$B$9234),_xlfn.XMATCH($E$17,Barème!$B$4:$XFD$4))","v":1665},null,null,{"$f":"+VLOOKUP($C133,Barème!$A:$B,2,FALSE)","v":"Communauté métropolitaine de Québec"},{"$f":"INDEX(Barème!$B$5:$XFD$9234,_xlfn.XMATCH('Calcul-Subv-CPE'!K133,Barème!$B$5:$B$9234),_xlfn.XMATCH($E$17,Barème!$B$4:$XFD$4))","v":1665},null,null,{"$f":"+VLOOKUP($C133,Barème!$A:$B,2,FALSE)","v":"Communauté métropolitaine de Québec"},{"$f":"INDEX(Barème!$B$5:$XFD$9234,_xlfn.XMATCH('Calcul-Subv-CPE'!O133,Barème!$B$5:$B$9234),_xlfn.XMATCH($E$17,Barème!$B$4:$XFD$4))","v":1665},null,null,{"$f":"+VLOOKUP($C133,Barème!$A:$B,2,FALSE)","v":"Communauté métropolitaine de Québec"},{"$f":"INDEX(Barème!$B$5:$XFD$9234,_xlfn.XMATCH('Calcul-Subv-CPE'!S133,Barème!$B$5:$B$9234),_xlfn.XMATCH($E$17,Barème!$B$4:$XFD$4))","v":1665},null,null,{"$f":"+VLOOKUP($C133,Barème!$A:$B,2,FALSE)","v":"Communauté métropolitaine de Québec"},{"$f":"INDEX(Barème!$B$5:$XFD$9234,_xlfn.XMATCH('Calcul-Subv-CPE'!W133,Barème!$B$5:$B$9234),_xlfn.XMATCH($E$17,Barème!$B$4:$XFD$4))","v":1665},null,null,{"$f":"+VLOOKUP($C133,Barème!$A:$B,2,FALSE)","v":"Communauté métropolitaine de Québec"},{"$f":"INDEX(Barème!$B$5:$XFD$9234,_xlfn.XMATCH('Calcul-Subv-CPE'!AA133,Barème!$B$5:$B$9234),_xlfn.XMATCH($E$17,Barème!$B$4:$XFD$4))","v":1665},null,null,{"$f":"+VLOOKUP($C133,Barème!$A:$B,2,FALSE)","v":"Communauté métropolitaine de Québec"},{"$f":"INDEX(Barème!$B$5:$XFD$9234,_xlfn.XMATCH('Calcul-Subv-CPE'!AE133,Barème!$B$5:$B$9234),_xlfn.XMATCH($E$17,Barème!$B$4:$XFD$4))","v":1665},null,null,{"$f":"+VLOOKUP($C133,Barème!$A:$B,2,FALSE)","v":"Communauté métropolitaine de Québec"},{"$f":"INDEX(Barème!$B$5:$XFD$9234,_xlfn.XMATCH('Calcul-Subv-CPE'!AI133,Barème!$B$5:$B$9234),_xlfn.XMATCH($E$17,Barème!$B$4:$XFD$4))","v":1665},null,null,{"$f":"+VLOOKUP($C133,Barème!$A:$B,2,FALSE)","v":"Communauté métropolitaine de Québec"},{"$f":"INDEX(Barème!$B$5:$XFD$9234,_xlfn.XMATCH('Calcul-Subv-CPE'!AM133,Barème!$B$5:$B$9234),_xlfn.XMATCH($E$17,Barème!$B$4:$XFD$4))","v":1665},null,null,{"$f":"+VLOOKUP($C133,Barème!$A:$B,2,FALSE)","v":"Communauté métropolitaine de Québec"},{"$f":"INDEX(Barème!$B$5:$XFD$9234,_xlfn.XMATCH('Calcul-Subv-CPE'!AQ133,Barème!$B$5:$B$9234),_xlfn.XMATCH($E$17,Barème!$B$4:$XFD$4))","v":1665},null,null,{"$f":"+VLOOKUP($C133,Barème!$A:$B,2,FALSE)","v":"Communauté métropolitaine de Québec"},{"$f":"INDEX(Barème!$B$5:$XFD$9234,_xlfn.XMATCH('Calcul-Subv-CPE'!AU133,Barème!$B$5:$B$9234),_xlfn.XMATCH($E$17,Barème!$B$4:$XFD$4))","v":1665},null,null,{"$f":"+VLOOKUP($C133,Barème!$A:$B,2,FALSE)","v":"Communauté métropolitaine de Québec"},{"$f":"INDEX(Barème!$B$5:$XFD$9234,_xlfn.XMATCH('Calcul-Subv-CPE'!AY133,Barème!$B$5:$B$9234),_xlfn.XMATCH($E$17,Barème!$B$4:$XFD$4))","v":1665},null,null,{"$f":"+VLOOKUP($C133,Barème!$A:$B,2,FALSE)","v":"Communauté métropolitaine de Québec"}]
["oui",null,"Menu déroulant Région - Régions urbaines",null,null,null,{"$f":"+VLOOKUP($C134,Barème!$A:$B,2,FALSE)","v":"Régions urbaines"},{"$f":"INDEX(Barème!$B$5:$XFD$9234,_xlfn.XMATCH('Calcul-Subv-CPE'!G134,Barème!$B$5:$B$9234),_xlfn.XMATCH($E$17,Barème!$B$4:$XFD$4))","v":1665},null,null,{"$f":"+VLOOKUP($C134,Barème!$A:$B,2,FALSE)","v":"Régions urbaines"},{"$f":"INDEX(Barème!$B$5:$XFD$9234,_xlfn.XMATCH('Calcul-Subv-CPE'!K134,Barème!$B$5:$B$9234),_xlfn.XMATCH($E$17,Barème!$B$4:$XFD$4))","v":1665},null,null,{"$f":"+VLOOKUP($C134,Barème!$A:$B,2,FALSE)","v":"Régions urbaines"},{"$f":"INDEX(Barème!$B$5:$XFD$9234,_xlfn.XMATCH('Calcul-Subv-CPE'!O134,Barème!$B$5:$B$9234),_xlfn.XMATCH($E$17,Barème!$B$4:$XFD$4))","v":1665},null,null,{"$f":"+VLOOKUP($C134,Barème!$A:$B,2,FALSE)","v":"Régions urbaines"},{"$f":"INDEX(Barème!$B$5:$XFD$9234,_xlfn.XMATCH('Calcul-Subv-CPE'!S134,Barème!$B$5:$B$9234),_xlfn.XMATCH($E$17,Barème!$B$4:$XFD$4))","v":1665},null,null,{"$f":"+VLOOKUP($C134,Barème!$A:$B,2,FALSE)","v":"Régions urbaines"},{"$f":"INDEX(Barème!$B$5:$XFD$9234,_xlfn.XMATCH('Calcul-Subv-CPE'!W134,Barème!$B$5:$B$9234),_xlfn.XMATCH($E$17,Barème!$B$4:$XFD$4))","v":1665},null,null,{"$f":"+VLOOKUP($C134,Barème!$A:$B,2,FALSE)","v":"Régions urbaines"},{"$f":"INDEX(Barème!$B$5:$XFD$9234,_xlfn.XMATCH('Calcul-Subv-CPE'!AA134,Barème!$B$5:$B$9234),_xlfn.XMATCH($E$17,Barème!$B$4:$XFD$4))","v":1665},null,null,{"$f":"+VLOOKUP($C134,Barème!$A:$B,2,FALSE)","v":"Régions urbaines"},{"$f":"INDEX(Barème!$B$5:$XFD$9234,_xlfn.XMATCH('Calcul-Subv-CPE'!AE134,Barème!$B$5:$B$9234),_xlfn.XMATCH($E$17,Barème!$B$4:$XFD$4))","v":1665},null,null,{"$f":"+VLOOKUP($C134,Barème!$A:$B,2,FALSE)","v":"Régions urbaines"},{"$f":"INDEX(Barème!$B$5:$XFD$9234,_xlfn.XMATCH('Calcul-Subv-CPE'!AI134,Barème!$B$5:$B$9234),_xlfn.XMATCH($E$17,Barème!$B$4:$XFD$4))","v":1665},null,null,{"$f":"+VLOOKUP($C134,Barème!$A:$B,2,FALSE)","v":"Régions urbaines"},{"$f":"INDEX(Barème!$B$5:$XFD$9234,_xlfn.XMATCH('Calcul-Subv-CPE'!AM134,Barème!$B$5:$B$9234),_xlfn.XMATCH($E$17,Barème!$B$4:$XFD$4))","v":1665},null,null,{"$f":"+VLOOKUP($C134,Barème!$A:$B,2,FALSE)","v":"Régions urbaines"},{"$f":"INDEX(Barème!$B$5:$XFD$9234,_xlfn.XMATCH('Calcul-Subv-CPE'!AQ134,Barème!$B$5:$B$9234),_xlfn.XMATCH($E$17,Barème!$B$4:$XFD$4))","v":1665},null,null,{"$f":"+VLOOKUP($C134,Barème!$A:$B,2,FALSE)","v":"Régions urbaines"},{"$f":"INDEX(Barème!$B$5:$XFD$9234,_xlfn.XMATCH('Calcul-Subv-CPE'!AU134,Barème!$B$5:$B$9234),_xlfn.XMATCH($E$17,Barème!$B$4:$XFD$4))","v":1665},null,null,{"$f":"+VLOOKUP($C134,Barème!$A:$B,2,FALSE)","v":"Régions urbaines"},{"$f":"INDEX(Barème!$B$5:$XFD$9234,_xlfn.XMATCH('Calcul-Subv-CPE'!AY134,Barème!$B$5:$B$9234),_xlfn.XMATCH($E$17,Barème!$B$4:$XFD$4))","v":1665},null,null,{"$f":"+VLOOKUP($C134,Barème!$A:$B,2,FALSE)","v":"Régions urbaines"}]
["oui",null,"Menu déroulant Région - Régions centrales",null,null,null,{"$f":"+VLOOKUP($C135,Barème!$A:$B,2,FALSE)","v":"Régions centrales"},{"$f":"INDEX(Barème!$B$5:$XFD$9234,_xlfn.XMATCH('Calcul-Subv-CPE'!G135,Barème!$B$5:$B$9234),_xlfn.XMATCH($E$17,Barème!$B$4:$XFD$4))","v":935},null,null,{"$f":"+VLOOKUP($C135,Barème!$A:$B,2,FALSE)","v":"Régions centrales"},{"$f":"INDEX(Barème!$B$5:$XFD$9234,_xlfn.XMATCH('Calcul-Subv-CPE'!K135,Barème!$B$5:$B$9234),_xlfn.XMATCH($E$17,Barème!$B$4:$XFD$4))","v":935},null,null,{"$f":"+VLOOKUP($C135,Barème!$A:$B,2,FALSE)","v":"Régions centrales"},{"$f":"INDEX(Barème!$B$5:$XFD$9234,_xlfn.XMATCH('Calcul-Subv-CPE'!O135,Barème!$B$5:$B$9234),_xlfn.XMATCH($E$17,Barème!$B$4:$XFD$4))","v":935},null,null,{"$f":"+VLOOKUP($C135,Barème!$A:$B,2,FALSE)","v":"Régions centrales"},{"$f":"INDEX(Barème!$B$5:$XFD$9234,_xlfn.XMATCH('Calcul-Subv-CPE'!S135,Barème!$B$5:$B$9234),_xlfn.XMATCH($E$17,Barème!$B$4:$XFD$4))","v":935},null,null,{"$f":"+VLOOKUP($C135,Barème!$A:$B,2,FALSE)","v":"Régions centrales"},{"$f":"INDEX(Barème!$B$5:$XFD$9234,_xlfn.XMATCH('Calcul-Subv-CPE'!W135,Barème!$B$5:$B$9234),_xlfn.XMATCH($E$17,Barème!$B$4:$XFD$4))","v":935},null,null,{"$f":"+VLOOKUP($C135,Barème!$A:$B,2,FALSE)","v":"Régions centrales"},{"$f":"INDEX(Barème!$B$5:$XFD$9234,_xlfn.XMATCH('Calcul-Subv-CPE'!AA135,Barème!$B$5:$B$9234),_xlfn.XMATCH($E$17,Barème!$B$4:$XFD$4))","v":935},null,null,{"$f":"+VLOOKUP($C135,Barème!$A:$B,2,FALSE)","v":"Régions centrales"},{"$f":"INDEX(Barème!$B$5:$XFD$9234,_xlfn.XMATCH('Calcul-Subv-CPE'!AE135,Barème!$B$5:$B$9234),_xlfn.XMATCH($E$17,Barème!$B$4:$XFD$4))","v":935},null,null,{"$f":"+VLOOKUP($C135,Barème!$A:$B,2,FALSE)","v":"Régions centrales"},{"$f":"INDEX(Barème!$B$5:$XFD$9234,_xlfn.XMATCH('Calcul-Subv-CPE'!AI135,Barème!$B$5:$B$9234),_xlfn.XMATCH($E$17,Barème!$B$4:$XFD$4))","v":935},null,null,{"$f":"+VLOOKUP($C135,Barème!$A:$B,2,FALSE)","v":"Régions centrales"},{"$f":"INDEX(Barème!$B$5:$XFD$9234,_xlfn.XMATCH('Calcul-Subv-CPE'!AM135,Barème!$B$5:$B$9234),_xlfn.XMATCH($E$17,Barème!$B$4:$XFD$4))","v":935},null,null,{"$f":"+VLOOKUP($C135,Barème!$A:$B,2,FALSE)","v":"Régions centrales"},{"$f":"INDEX(Barème!$B$5:$XFD$9234,_xlfn.XMATCH('Calcul-Subv-CPE'!AQ135,Barème!$B$5:$B$9234),_xlfn.XMATCH($E$17,Barème!$B$4:$XFD$4))","v":935},null,null,{"$f":"+VLOOKUP($C135,Barème!$A:$B,2,FALSE)","v":"Régions centrales"},{"$f":"INDEX(Barème!$B$5:$XFD$9234,_xlfn.XMATCH('Calcul-Subv-CPE'!AU135,Barème!$B$5:$B$9234),_xlfn.XMATCH($E$17,Barème!$B$4:$XFD$4))","v":935},null,null,{"$f":"+VLOOKUP($C135,Barème!$A:$B,2,FALSE)","v":"Régions centrales"},{"$f":"INDEX(Barème!$B$5:$XFD$9234,_xlfn.XMATCH('Calcul-Subv-CPE'!AY135,Barème!$B$5:$B$9234),_xlfn.XMATCH($E$17,Barème!$B$4:$XFD$4))","v":935},null,null,{"$f":"+VLOOKUP($C135,Barème!$A:$B,2,FALSE)","v":"Régions centrales"}]
["oui",null,"Menu déroulant Région - Régions ressources",null,null,null,{"$f":"+VLOOKUP($C136,Barème!$A:$B,2,FALSE)","v":"Régions ressources"},{"$f":"INDEX(Barème!$B$5:$XFD$9234,_xlfn.XMATCH('Calcul-Subv-CPE'!G136,Barème!$B$5:$B$9234),_xlfn.XMATCH($E$17,Barème!$B$4:$XFD$4))","v":821},null,null,{"$f":"+VLOOKUP($C136,Barème!$A:$B,2,FALSE)","v":"Régions ressources"},{"$f":"INDEX(Barème!$B$5:$XFD$9234,_xlfn.XMATCH('Calcul-Subv-CPE'!K136,Barème!$B$5:$B$9234),_xlfn.XMATCH($E$17,Barème!$B$4:$XFD$4))","v":821},null,null,{"$f":"+VLOOKUP($C136,Barème!$A:$B,2,FALSE)","v":"Régions ressources"},{"$f":"INDEX(Barème!$B$5:$XFD$9234,_xlfn.XMATCH('Calcul-Subv-CPE'!O136,Barème!$B$5:$B$9234),_xlfn.XMATCH($E$17,Barème!$B$4:$XFD$4))","v":821},null,null,{"$f":"+VLOOKUP($C136,Barème!$A:$B,2,FALSE)","v":"Régions ressources"},{"$f":"INDEX(Barème!$B$5:$XFD$9234,_xlfn.XMATCH('Calcul-Subv-CPE'!S136,Barème!$B$5:$B$9234),_xlfn.XMATCH($E$17,Barème!$B$4:$XFD$4))","v":821},null,null,{"$f":"+VLOOKUP($C136,Barème!$A:$B,2,FALSE)","v":"Régions ressources"},{"$f":"INDEX(Barème!$B$5:$XFD$9234,_xlfn.XMATCH('Calcul-Subv-CPE'!W136,Barème!$B$5:$B$9234),_xlfn.XMATCH($E$17,Barème!$B$4:$XFD$4))","v":821},null,null,{"$f":"+VLOOKUP($C136,Barème!$A:$B,2,FALSE)","v":"Régions ressources"},{"$f":"INDEX(Barème!$B$5:$XFD$9234,_xlfn.XMATCH('Calcul-Subv-CPE'!AA136,Barème!$B$5:$B$9234),_xlfn.XMATCH($E$17,Barème!$B$4:$XFD$4))","v":821},null,null,{"$f":"+VLOOKUP($C136,Barème!$A:$B,2,FALSE)","v":"Régions ressources"},{"$f":"INDEX(Barème!$B$5:$XFD$9234,_xlfn.XMATCH('Calcul-Subv-CPE'!AE136,Barème!$B$5:$B$9234),_xlfn.XMATCH($E$17,Barème!$B$4:$XFD$4))","v":821},null,null,{"$f":"+VLOOKUP($C136,Barème!$A:$B,2,FALSE)","v":"Régions ressources"},{"$f":"INDEX(Barème!$B$5:$XFD$9234,_xlfn.XMATCH('Calcul-Subv-CPE'!AI136,Barème!$B$5:$B$9234),_xlfn.XMATCH($E$17,Barème!$B$4:$XFD$4))","v":821},null,null,{"$f":"+VLOOKUP($C136,Barème!$A:$B,2,FALSE)","v":"Régions ressources"},{"$f":"INDEX(Barème!$B$5:$XFD$9234,_xlfn.XMATCH('Calcul-Subv-CPE'!AM136,Barème!$B$5:$B$9234),_xlfn.XMATCH($E$17,Barème!$B$4:$XFD$4))","v":821},null,null,{"$f":"+VLOOKUP($C136,Barème!$A:$B,2,FALSE)","v":"Régions ressources"},{"$f":"INDEX(Barème!$B$5:$XFD$9234,_xlfn.XMATCH('Calcul-Subv-CPE'!AQ136,Barème!$B$5:$B$9234),_xlfn.XMATCH($E$17,Barème!$B$4:$XFD$4))","v":821},null,null,{"$f":"+VLOOKUP($C136,Barème!$A:$B,2,FALSE)","v":"Régions ressources"},{"$f":"INDEX(Barème!$B$5:$XFD$9234,_xlfn.XMATCH('Calcul-Subv-CPE'!AU136,Barème!$B$5:$B$9234),_xlfn.XMATCH($E$17,Barème!$B$4:$XFD$4))","v":821},null,null,{"$f":"+VLOOKUP($C136,Barème!$A:$B,2,FALSE)","v":"Régions ressources"},{"$f":"INDEX(Barème!$B$5:$XFD$9234,_xlfn.XMATCH('Calcul-Subv-CPE'!AY136,Barème!$B$5:$B$9234),_xlfn.XMATCH($E$17,Barème!$B$4:$XFD$4))","v":821},null,null,{"$f":"+VLOOKUP($C136,Barème!$A:$B,2,FALSE)","v":"Régions ressources"}]
["oui",null,"Montant maximal pour la région",null,null,null,null,{"$f":"IF(I128=G128,0,ROUND(+VLOOKUP(I131,G132:H136,2,0)*I$28,0))","v":0},null,null,null,{"$f":"IF(M128=K128,0,ROUND(+VLOOKUP(M131,K132:L136,2,0)*M$28,0))","v":0},null,null,null,{"$f":"IF(Q128=O128,0,ROUND(+VLOOKUP(Q131,O132:P136,2,0)*Q$28,0))","v":0},null,null,null,{"$f":"IF(U128=S128,0,ROUND(+VLOOKUP(U131,S132:T136,2,0)*U$28,0))","v":0},null,null,null,{"$f":"IF(Y128=W128,0,ROUND(+VLOOKUP(Y131,W132:X136,2,0)*Y$28,0))","v":0},null,null,null,{"$f":"IF(AC128=AA128,0,ROUND(+VLOOKUP(AC131,AA132:AB136,2,0)*AC$28,0))","v":0},null,null,null,{"$f":"IF(AG128=AE128,0,ROUND(+VLOOKUP(AG131,AE132:AF136,2,0)*AG$28,0))","v":0},null,null,null,{"$f":"IF(AK128=AI128,0,ROUND(+VLOOKUP(AK131,AI132:AJ136,2,0)*AK$28,0))","v":0},null,null,null,{"$f":"IF(AO128=AM128,0,ROUND(+VLOOKUP(AO131,AM132:AN136,2,0)*AO$28,0))","v":0},null,null,null,{"$f":"IF(AS128=AQ128,0,ROUND(+VLOOKUP(AS131,AQ132:AR136,2,0)*AS$28,0))","v":0},null,null,null,{"$f":"IF(AW128=AU128,0,ROUND(+VLOOKUP(AW131,AU132:AV136,2,0)*AW$28,0))","v":0},null,null,null,{"$f":"IF(BA128=AY128,0,ROUND(+VLOOKUP(BA131,AY132:AZ136,2,0)*BA$28,0))","v":0},null,null,null,{"$f":"IF(BE128=BC128,0,ROUND(+VLOOKUP(BE131,BC132:BD136,2,0)*BE$28,0))","v":{"$error":"#N/A"}}]
["non"]
["non",null,"Choisissez la période d'ouverture de votre installation selon l'exercice financier sélectionné plus haut",null,null,null,null,null,"Plus de 2 années d'ouverture",null,null,null,"2e année d'ouverture",null,null,null,"1re année d'ouverture",null,null,null,"1re année d'ouverture",null,null,null,"1re année d'ouverture",null,null,null,"Plus de 2 années d'ouverture",null,null,null,"Plus de 2 années d'ouverture",null,null,null,"Plus de 2 années d'ouverture",null,null,null,"Plus de 2 années d'ouverture",null,null,null,"1re année d'ouverture",null,null,null,"1re année d'ouverture",null,null,null,"1re année d'ouverture",null,"calcul par installation"]
["oui",null,"Menu déroulant Ouverture cette année ",null,null,null,{"$f":"+VLOOKUP($C140,Barème!$A:$B,2,FALSE)","v":"1re année d'ouverture"},null,null,null,{"$f":"+VLOOKUP($C140,Barème!$A:$B,2,FALSE)","v":"1re année d'ouverture"},null,null,null,{"$f":"+VLOOKUP($C140,Barème!$A:$B,2,FALSE)","v":"1re année d'ouverture"},null,null,null,{"$f":"+VLOOKUP($C140,Barème!$A:$B,2,FALSE)","v":"1re année d'ouverture"},null,null,null,{"$f":"+VLOOKUP($C140,Barème!$A:$B,2,FALSE)","v":"1re année d'ouverture"},null,null,null,{"$f":"+VLOOKUP($C140,Barème!$A:$B,2,FALSE)","v":"1re année d'ouverture"},null,null,null,{"$f":"+VLOOKUP($C140,Barème!$A:$B,2,FALSE)","v":"1re année d'ouverture"},null,null,null,{"$f":"+VLOOKUP($C140,Barème!$A:$B,2,FALSE)","v":"1re année d'ouverture"},null,null,null,{"$f":"+VLOOKUP($C140,Barème!$A:$B,2,FALSE)","v":"1re année d'ouverture"},null,null,null,{"$f":"+VLOOKUP($C140,Barème!$A:$B,2,FALSE)","v":"1re année d'ouverture"},null,null,null,{"$f":"+VLOOKUP($C140,Barème!$A:$B,2,FALSE)","v":"1re année d'ouverture"},null,null,null,{"$f":"+VLOOKUP($C140,Barème!$A:$B,2,FALSE)","v":"1re année d'ouverture"}]
["oui",null,"Menu déroulant Ouverture cette année T-1",null,null,null,{"$f":"+VLOOKUP($C141,Barème!$A:$B,2,FALSE)","v":"2e année d'ouverture"},null,null,null,{"$f":"+VLOOKUP($C141,Barème!$A:$B,2,FALSE)","v":"2e année d'ouverture"},null,null,null,{"$f":"+VLOOKUP($C141,Barème!$A:$B,2,FALSE)","v":"2e année d'ouverture"},null,null,null,{"$f":"+VLOOKUP($C141,Barème!$A:$B,2,FALSE)","v":"2e année d'ouverture"},null,null,null,{"$f":"+VLOOKUP($C141,Barème!$A:$B,2,FALSE)","v":"2e année d'ouverture"},null,null,null,{"$f":"+VLOOKUP($C141,Barème!$A:$B,2,FALSE)","v":"2e année d'ouverture"},null,null,null,{"$f":"+VLOOKUP($C141,Barème!$A:$B,2,FALSE)","v":"2e année d'ouverture"},null,null,null,{"$f":"+VLOOKUP($C141,Barème!$A:$B,2,FALSE)","v":"2e année d'ouverture"},null,null,null,{"$f":"+VLOOKUP($C141,Barème!$A:$B,2,FALSE)","v":"2e année d'ouverture"},null,null,null,{"$f":"+VLOOKUP($C141,Barème!$A:$B,2,FALSE)","v":"2e année d'ouverture"},null,null,null,{"$f":"+VLOOKUP($C141,Barème!$A:$B,2,FALSE)","v":"2e année d'ouverture"},null,null,null,{"$f":"+VLOOKUP($C141,Barème!$A:$B,2,FALSE)","v":"2e année d'ouverture"}]
["oui",null,"Menu déroulant Ouverture cette année T-2 et avant",null,null,null,{"$f":"+VLOOKUP($C142,Barème!$A:$B,2,FALSE)","v":"Plus de 2 années d'ouverture"},null,null,null,{"$f":"+VLOOKUP($C142,Barème!$A:$B,2,FALSE)","v":"Plus de 2 années d'ouverture"},null,null,null,{"$f":"+VLOOKUP($C142,Barème!$A:$B,2,FALSE)","v":"Plus de 2 années d'ouverture"},null,null,null,{"$f":"+VLOOKUP($C142,Barème!$A:$B,2,FALSE)","v":"Plus de 2 années d'ouverture"},null,null,null,{"$f":"+VLOOKUP($C142,Barème!$A:$B,2,FALSE)","v":"Plus de 2 années d'ouverture"},null,null,null,{"$f":"+VLOOKUP($C142,Barème!$A:$B,2,FALSE)","v":"Plus de 2 années d'ouverture"},null,null,null,{"$f":"+VLOOKUP($C142,Barème!$A:$B,2,FALSE)","v":"Plus de 2 années d'ouverture"},null,null,null,{"$f":"+VLOOKUP($C142,Barème!$A:$B,2,FALSE)","v":"Plus de 2 années d'ouverture"},null,null,null,{"$f":"+VLOOKUP($C142,Barème!$A:$B,2,FALSE)","v":"Plus de 2 années d'ouverture"},null,null,null,{"$f":"+VLOOKUP($C142,Barème!$A:$B,2,FALSE)","v":"Plus de 2 années d'ouverture"},null,null,null,{"$f":"+VLOOKUP($C142,Barème!$A:$B,2,FALSE)","v":"Plus de 2 années d'ouverture"},null,null,null,{"$f":"+VLOOKUP($C142,Barème!$A:$B,2,FALSE)","v":"Plus de 2 années d'ouverture"}]
["non",null,null,null,null,null,null,null,null,null,null,null,null,null,null,null,null,null,null,null,null,null,null,null,null,null,null,null,null,null,null,null,null,null,null,null,null,null,null,null,null,null,null,null,null,null,null,null,null,null,null,null,null,null,"calcul par installation"]
["non",null,"Indiquez les frais reliés aux locaux pour l'exercice financier ",null,null,null,null,null,{"$f":"+IF(I$139=G142,\"Précédant de 2 ans celui sélectionné\",IF(I$139=G141,\"Celui suivant l'année d'ouverture\",\"Celui de l'année en cours\"))","v":"Précédant de 2 ans celui sélectionné"},null,null,null,{"$f":"+IF(M$139=K142,\"Précédant de 2 ans celui sélectionné\",IF(M$139=K141,\"Celui suivant l'année d'ouverture\",\"Celui de l'année en cours\"))","v":"Celui suivant l'année d'ouverture"},null,null,null,{"$f":"+IF(Q$139=O142,\"Précédant de 2 ans celui sélectionné\",IF(Q$139=O141,\"Celui suivant l'année d'ouverture\",\"Celui de l'année en cours\"))","v":"Celui de l'année en cours"},null,null,null,{"$f":"+IF(U$139=S142,\"Précédant de 2 ans celui sélectionné\",IF(U$139=S141,\"Celui suivant l'année d'ouverture\",\"Celui de l'année en cours\"))","v":"Celui de l'année en cours"},null,null,null,{"$f":"+IF(Y$139=W142,\"Précédant de 2 ans celui sélectionné\",IF(Y$139=W141,\"Celui suivant l'année d'ouverture\",\"Celui de l'année en cours\"))","v":"Celui de l'année en cours"},null,null,null,{"$f":"+IF(AC$139=AA142,\"Précédant de 2 ans celui sélectionné\",IF(AC$139=AA141,\"Celui suivant l'année d'ouverture\",\"Celui de l'année en cours\"))","v":"Précédant de 2 ans celui sélectionné"},null,null,null,{"$f":"+IF(AG$139=AE142,\"Précédant de 2 ans celui sélectionné\",IF(AG$139=AE141,\"Celui suivant l'année d'ouverture\",\"Celui de l'année en cours\"))","v":"Précédant de 2 ans celui sélectionné"},null,null,null,{"$f":"+IF(AK$139=AI142,\"Précédant de 2 ans celui sélectionné\",IF(AK$139=AI141,\"Celui suivant l'année d'ouverture\",\"Celui de l'année en cours\"))","v":"Précédant de 2 ans celui sélectionné"},null,null,null,{"$f":"+IF(AO$139=AM142,\"Précédant de 2 ans celui sélectionné\",IF(AO$139=AM141,\"Celui suivant l'année d'ouverture\",\"Celui de l'année en cours\"))","v":"Précédant de 2 ans celui sélectionné"},null,null,null,{"$f":"+IF(AS$139=AQ142,\"Précédant de 2 ans celui sélectionné\",IF(AS$139=AQ141,\"Celui suivant l'année d'ouverture\",\"Celui de l'année en cours\"))","v":"Celui de l'année en cours"},null,null,null,{"$f":"+IF(AW$139=AU142,\"Précédant de 2 ans celui sélectionné\",IF(AW$139=AU141,\"Celui suivant l'année d'ouverture\",\"Celui de l'année en cours\"))","v":"Celui de l'année en cours"},null,null,null,{"$f":"+IF(BA$139=AY142,\"Précédant de 2 ans celui sélectionné\",IF(BA$139=AY141,\"Celui suivant l'année d'ouverture\",\"Celui de l'année en cours\"))","v":"Celui de l'année en cours"},null,"calcul par installation"]
["non",null,"(Loyer, consommation d'énergie, assurances feu/vol, branchement système d'alarme, entretien et réparation, taxes foncières, scolaires et d'affaires)",null,null,null,null,null,null,null,null,null,null,null,null,null,null,null,null,null,null,null,null,null,null,null,null,null,null,null,null,null,null,null,null,null,null,null,null,null,null,null,null,null,null,null,null,null,null,null,null,null,null,null,"calcul par installation"]
["non",null,null,null,null,null,null,null,null,null,null,null,null,null,null,null,null,null,null,null,null,null,null,null,null,null,null,null,null,null,null,null,null,null,null,null,null,null,null,null,null,null,null,null,null,null,null,null,null,null,null,null,null,null,"calcul par installation"]
["non",null,"Indiquez vos dons de loyer",null,null,null,null,null,null,null,null,null,null,null,null,null,null,null,null,null,null,null,null,null,null,null,null,null,null,null,null,null,null,null,null,null,null,null,null,null,null,null,null,null,null,null,null,null,null,null,null,null,null,null,"calcul par installation"]
["non"]
["oui",null,"Montant des COL indexé",null,null,null,"Taux d'indexation",{"$f":"INDEX(Barème!$B$5:$XFD$9234,_xlfn.XMATCH('Calcul-Subv-CPE'!G149,Barème!$B$5:$B$9234),_xlfn.XMATCH($E$17,Barème!$B$4:$XFD$4))","v":6.4600000000000005E-2},null,null,"Taux d'indexation",{"$f":"INDEX(Barème!$B$5:$XFD$9234,_xlfn.XMATCH('Calcul-Subv-CPE'!K149,Barème!$B$5:$B$9234),_xlfn.XMATCH($E$17,Barème!$B$4:$XFD$4))","v":6.4600000000000005E-2},null,null,"Taux d'indexation",{"$f":"INDEX(Barème!$B$5:$XFD$9234,_xlfn.XMATCH('Calcul-Subv-CPE'!O149,Barème!$B$5:$B$9234),_xlfn.XMATCH($E$17,Barème!$B$4:$XFD$4))","v":6.4600000000000005E-2},null,null,"Taux d'indexation",{"$f":"INDEX(Barème!$B$5:$XFD$9234,_xlfn.XMATCH('Calcul-Subv-CPE'!S149,Barème!$B$5:$B$9234),_xlfn.XMATCH($E$17,Barème!$B$4:$XFD$4))","v":6.4600000000000005E-2},null,null,"Taux d'indexation",{"$f":"INDEX(Barème!$B$5:$XFD$9234,_xlfn.XMATCH('Calcul-Subv-CPE'!W149,Barème!$B$5:$B$9234),_xlfn.XMATCH($E$17,Barème!$B$4:$XFD$4))","v":6.4600000000000005E-2},null,null,"Taux d'indexation",{"$f":"INDEX(Barème!$B$5:$XFD$9234,_xlfn.XMATCH('Calcul-Subv-CPE'!AA149,Barème!$B$5:$B$9234),_xlfn.XMATCH($E$17,Barème!$B$4:$XFD$4))","v":6.4600000000000005E-2},null,null,"Taux d'indexation",{"$f":"INDEX(Barème!$B$5:$XFD$9234,_xlfn.XMATCH('Calcul-Subv-CPE'!AE149,Barème!$B$5:$B$9234),_xlfn.XMATCH($E$17,Barème!$B$4:$XFD$4))","v":6.4600000000000005E-2},null,null,"Taux d'indexation",{"$f":"INDEX(Barème!$B$5:$XFD$9234,_xlfn.XMATCH('Calcul-Subv-CPE'!AI149,Barème!$B$5:$B$9234),_xlfn.XMATCH($E$17,Barème!$B$4:$XFD$4))","v":6.4600000000000005E-2},null,null,"Taux d'indexation",{"$f":"INDEX(Barème!$B$5:$XFD$9234,_xlfn.XMATCH('Calcul-Subv-CPE'!AM149,Barème!$B$5:$B$9234),_xlfn.XMATCH($E$17,Barème!$B$4:$XFD$4))","v":6.4600000000000005E-2},null,null,"Taux d'indexation",{"$f":"INDEX(Barème!$B$5:$XFD$9234,_xlfn.XMATCH('Calcul-Subv-CPE'!AQ149,Barème!$B$5:$B$9234),_xlfn.XMATCH($E$17,Barème!$B$4:$XFD$4))","v":6.4600000000000005E-2},null,null,"Taux d'indexation",{"$f":"INDEX(Barème!$B$5:$XFD$9234,_xlfn.XMATCH('Calcul-Subv-CPE'!AU149,Barème!$B$5:$B$9234),_xlfn.XMATCH($E$17,Barème!$B$4:$XFD$4))","v":6.4600000000000005E-2},null,null,"Taux d'indexation",{"$f":"INDEX(Barème!$B$5:$XFD$9234,_xlfn.XMATCH('Calcul-Subv-CPE'!AY149,Barème!$B$5:$B$9234),_xlfn.XMATCH($E$17,Barème!$B$4:$XFD$4))","v":6.4600000000000005E-2},null,null,"calcul par installation"]
["oui",null,null,null,null,null,"Montant indexé",{"$f":"IF(I128=G128,0,+ROUND((I145-I147)*(1+(H149)),0))","v":0},null,null,"Montant indexé",{"$f":"IF(M128=K128,0,+ROUND((M145-M147)*(1+(L149)),0))","v":0},null,null,"Montant indexé",{"$f":"IF(Q128=O128,0,+ROUND((Q145-Q147)*(1+(P149)),0))","v":0},null,null,"Montant indexé",{"$f":"IF(U128=S128,0,+ROUND((U145-U147)*(1+(T149)),0))","v":0},null,null,"Montant indexé",{"$f":"IF(Y128=W128,0,+ROUND((Y145-Y147)*(1+(X149)),0))","v":0},null,null,"Montant indexé",{"$f":"IF(AC128=AA128,0,+ROUND((AC145-AC147)*(1+(AB149)),0))","v":0},null,null,"Montant indexé",{"$f":"IF(AG128=AE128,0,+ROUND((AG145-AG147)*(1+(AF149)),0))","v":0},null,null,"Montant indexé",{"$f":"IF(AK128=AI128,0,+ROUND((AK145-AK147)*(1+(AJ149)),0))","v":0},null,null,"Montant indexé",{"$f":"IF(AO128=AM128,0,+ROUND((AO145-AO147)*(1+(AN149)),0))","v":0},null,null,"Montant indexé",{"$f":"IF(AS128=AQ128,0,+ROUND((AS145-AS147)*(1+(AR149)),0))","v":0},null,null,"Montant indexé",{"$f":"IF(AW128=AU128,0,+ROUND((AW145-AW147)*(1+(AV149)),0))","v":0},null,null,"Montant indexé",{"$f":"IF(BA128=AY128,0,+ROUND((BA145-BA147)*(1+(AZ149)),0))","v":0},null,null,"calcul par installation"]
["oui",null,null,null,null,null,"Écart volet B-  A sans emphytéotique",{"$f":"IF(I128=G128,0,IF(I139=G142,MIN(H137,+ROUND(H150-I125,0)),MIN(H137,ROUND(I145-I147-I125,0))))","v":0},null,null,"Écart volet B-  A sans emphytéotique",{"$f":"IF(M128=K128,0,IF(M139=K142,MIN(L137,+ROUND(L150-M125,0)),MIN(L137,ROUND(M145-M147-M125,0))))","v":0},null,null,"Écart volet B-  A sans emphytéotique",{"$f":"IF(Q128=O128,0,IF(Q139=O142,MIN(P137,+ROUND(P150-Q125,0)),MIN(P137,ROUND(Q145-Q147-Q125,0))))","v":0},null,null,"Écart volet B-  A sans emphytéotique",{"$f":"IF(U128=S128,0,IF(U139=S142,MIN(T137,+ROUND(T150-U125,0)),MIN(T137,ROUND(U145-U147-U125,0))))","v":0},null,null,"Écart volet B-  A sans emphytéotique",{"$f":"IF(Y128=W128,0,IF(Y139=W142,MIN(X137,+ROUND(X150-Y125,0)),MIN(X137,ROUND(Y145-Y147-Y125,0))))","v":0},null,null,"Écart volet B-  A sans emphytéotique",{"$f":"IF(AC128=AA128,0,IF(AC139=AA142,MIN(AB137,+ROUND(AB150-AC125,0)),MIN(AB137,ROUND(AC145-AC147-AC125,0))))","v":0},null,null,"Écart volet B-  A sans emphytéotique",{"$f":"IF(AG128=AE128,0,IF(AG139=AE142,MIN(AF137,+ROUND(AF150-AG125,0)),MIN(AF137,ROUND(AG145-AG147-AG125,0))))","v":0},null,null,"Écart volet B-  A sans emphytéotique",{"$f":"IF(AK128=AI128,0,IF(AK139=AI142,MIN(AJ137,+ROUND(AJ150-AK125,0)),MIN(AJ137,ROUND(AK145-AK147-AK125,0))))","v":0},null,null,"Écart volet B-  A sans emphytéotique",{"$f":"IF(AO128=AM128,0,IF(AO139=AM142,MIN(AN137,+ROUND(AN150-AO125,0)),MIN(AN137,ROUND(AO145-AO147-AO125,0))))","v":0},null,null,"Écart volet B-  A sans emphytéotique",{"$f":"IF(AS128=AQ128,0,IF(AS139=AQ142,MIN(AR137,+ROUND(AR150-AS125,0)),MIN(AR137,ROUND(AS145-AS147-AS125,0))))","v":0},null,null,"Écart volet B-  A sans emphytéotique",{"$f":"IF(AW128=AU128,0,IF(AW139=AU142,MIN(AV137,+ROUND(AV150-AW125,0)),MIN(AV137,ROUND(AW145-AW147-AW125,0))))","v":0},null,null,"Écart volet B-  A sans emphytéotique",{"$f":"IF(BA128=AY128,0,IF(BA139=AY142,MIN(AZ137,+ROUND(AZ150-BA125,0)),MIN(AZ137,ROUND(BA145-BA147-BA125,0))))","v":0},null,null,"calcul par installation"]
["oui"]
["non",null,"Avez-vous un bail emphytéotique?",null,null,null,{"$f":"+Barème!$B$153","v":"oui"},{"$f":"+Barème!$B$154","v":"non"},"non",null,{"$f":"+Barème!$B$153","v":"oui"},{"$f":"+Barème!$B$154","v":"non"},"oui",null,{"$f":"+Barème!$B$153","v":"oui"},{"$f":"+Barème!$B$154","v":"non"},"non",null,{"$f":"+Barème!$B$153","v":"oui"},{"$f":"+Barème!$B$154","v":"non"},"non",null,{"$f":"+Barème!$B$153","v":"oui"},{"$f":"+Barème!$B$154","v":"non"},"non",null,{"$f":"+Barème!$B$153","v":"oui"},{"$f":"+Barème!$B$154","v":"non"},"non",null,{"$f":"+Barème!$B$153","v":"oui"},{"$f":"+Barème!$B$154","v":"non"},"non",null,{"$f":"+Barème!$B$153","v":"oui"},{"$f":"+Barème!$B$154","v":"non"},"non",null,{"$f":"+Barème!$B$153","v":"oui"},{"$f":"+Barème!$B$154","v":"non"},"non",null,{"$f":"+Barème!$B$153","v":"oui"},{"$f":"+Barème!$B$154","v":"non"},"non",null,{"$f":"+Barème!$B$153","v":"oui"},{"$f":"+Barème!$B$154","v":"non"},"non",null,{"$f":"+Barème!$B$153","v":"oui"},{"$f":"+Barème!$B$154","v":"non"},"non",null,"calcul par installation"]
["non",null,null,null,null,null,null,null,{"$f":"+IF(I153=G153,+$C155,\"Ne s'applique pas\")","v":"Ne s'applique pas"},null,null,null,{"$f":"+IF(M153=K153,+$C155,\"Ne s'applique pas\")","v":"Indiquez le coût du bail emphytéotique"},null,null,null,{"$f":"+IF(Q153=O153,+$C155,\"Ne s'applique pas\")","v":"Ne s'applique pas"},null,null,null,{"$f":"+IF(U153=S153,+$C155,\"Ne s'applique pas\")","v":"Ne s'applique pas"},null,null,null,{"$f":"+IF(Y153=W153,+$C155,\"Ne s'applique pas\")","v":"Ne s'applique pas"},null,null,null,{"$f":"+IF(AC153=AA153,+$C155,\"Ne s'applique pas\")","v":"Ne s'applique pas"},null,null,null,{"$f":"+IF(AG153=AE153,+$C155,\"Ne s'applique pas\")","v":"Ne s'applique pas"},null,null,null,{"$f":"+IF(AK153=AI153,+$C155,\"Ne s'applique pas\")","v":"Ne s'applique pas"},null,null,null,{"$f":"+IF(AO153=AM153,+$C155,\"Ne s'applique pas\")","v":"Ne s'applique pas"},null,null,null,{"$f":"+IF(AS153=AQ153,+$C155,\"Ne s'applique pas\")","v":"Ne s'applique pas"},null,null,null,{"$f":"+IF(AW153=AU153,+$C155,\"Ne s'applique pas\")","v":"Ne s'applique pas"},null,null,null,{"$f":"+IF(BA153=AY153,+$C155,\"Ne s'applique pas\")","v":"Ne s'applique pas"}]
["non",null,"Indiquez le coût du bail emphytéotique"]
["non",null,null,null,null,null,"Emphytéotique considéré",{"$f":"+IF(I128=G128,0,IF(I153=H153,0,IF(I139=G142,I155*(1+H149),I155)))","v":0},null,null,"Emphytéotique considéré",{"$f":"+IF(M128=K128,0,IF(M153=L153,0,IF(M139=K142,M155*(1+L149),M155)))","v":0},null,null,"Emphytéotique considéré",{"$f":"+IF(Q128=O128,0,IF(Q153=P153,0,IF(Q139=O142,Q155*(1+P149),Q155)))","v":0},null,null,"Emphytéotique considéré",{"$f":"+IF(U128=S128,0,IF(U153=T153,0,IF(U139=S142,U155*(1+T149),U155)))","v":0},null,null,"Emphytéotique considéré",{"$f":"+IF(Y128=W128,0,IF(Y153=X153,0,IF(Y139=W142,Y155*(1+X149),Y155)))","v":0},null,null,"Emphytéotique considéré",{"$f":"+IF(AC128=AA128,0,IF(AC153=AB153,0,IF(AC139=AA142,AC155*(1+AB149),AC155)))","v":0},null,null,"Emphytéotique considéré",{"$f":"+IF(AG128=AE128,0,IF(AG153=AF153,0,IF(AG139=AE142,AG155*(1+AF149),AG155)))","v":0},null,null,"Emphytéotique considéré",{"$f":"+IF(AK128=AI128,0,IF(AK153=AJ153,0,IF(AK139=AI142,AK155*(1+AJ149),AK155)))","v":0},null,null,"Emphytéotique considéré",{"$f":"+IF(AO128=AM128,0,IF(AO153=AN153,0,IF(AO139=AM142,AO155*(1+AN149),AO155)))","v":0},null,null,"Emphytéotique considéré",{"$f":"+IF(AS128=AQ128,0,IF(AS153=AR153,0,IF(AS139=AQ142,AS155*(1+AR149),AS155)))","v":0},null,null,"Emphytéotique considéré",{"$f":"+IF(AW128=AU128,0,IF(AW153=AV153,0,IF(AW139=AU142,AW155*(1+AV149),AW155)))","v":0},null,null,"Emphytéotique considéré",{"$f":"+IF(BA128=AY128,0,IF(BA153=AZ153,0,IF(BA139=AY142,BA155*(1+AZ149),BA155)))","v":0},null,null,"calcul par installation"]
["non",null,"Volet B",null,null,null,null,null,{"$f":"IF(H150=0,0,IF(H151<0,0,IF(I153=H153,MIN(H151,H150),ROUND(MIN(H156,+MIN(H151,H150)),0))))","v":0},null,null,null,{"$f":"IF(L150=0,0,IF(L151<0,0,IF(M153=L153,MIN(L151,L150),ROUND(MIN(L156,+MIN(L151,L150)),0))))","v":0},null,null,null,{"$f":"IF(P150=0,0,IF(P151<0,0,IF(Q153=P153,MIN(P151,P150),ROUND(MIN(P156,+MIN(P151,P150)),0))))","v":0},null,null,null,{"$f":"IF(T150=0,0,IF(T151<0,0,IF(U153=T153,MIN(T151,T150),ROUND(MIN(T156,+MIN(T151,T150)),0))))","v":0},null,null,null,{"$f":"IF(X150=0,0,IF(X151<0,0,IF(Y153=X153,MIN(X151,X150),ROUND(MIN(X156,+MIN(X151,X150)),0))))","v":0},null,null,null,{"$f":"IF(AB150=0,0,IF(AB151<0,0,IF(AC153=AB153,MIN(AB151,AB150),ROUND(MIN(AB156,+MIN(AB151,AB150)),0))))","v":0},null,null,null,{"$f":"IF(AF150=0,0,IF(AF151<0,0,IF(AG153=AF153,MIN(AF151,AF150),ROUND(MIN(AF156,+MIN(AF151,AF150)),0))))","v":0},null,null,null,{"$f":"IF(AJ150=0,0,IF(AJ151<0,0,IF(AK153=AJ153,MIN(AJ151,AJ150),ROUND(MIN(AJ156,+MIN(AJ151,AJ150)),0))))","v":0},null,null,null,{"$f":"IF(AN150=0,0,IF(AN151<0,0,IF(AO153=AN153,MIN(AN151,AN150),ROUND(MIN(AN156,+MIN(AN151,AN150)),0))))","v":0},null,null,null,{"$f":"IF(AR150=0,0,IF(AR151<0,0,IF(AS153=AR153,MIN(AR151,AR150),ROUND(MIN(AR156,+MIN(AR151,AR150)),0))))","v":0},null,null,null,{"$f":"IF(AV150=0,0,IF(AV151<0,0,IF(AW153=AV153,MIN(AV151,AV150),ROUND(MIN(AV156,+MIN(AV151,AV150)),0))))","v":0},null,null,null,{"$f":"IF(AZ150=0,0,IF(AZ151<0,0,IF(BA153=AZ153,MIN(AZ151,AZ150),ROUND(MIN(AZ156,+MIN(AZ151,AZ150)),0))))","v":0}]
["non"]
["non",null,"Total – Coûts d'occupation des locaux",null,null,null,null,null,{"$f":"+IF(I$28=0,0,ROUND(+I125+I157,0))","v":0},null,null,null,{"$f":"+IF(M$28=0,0,ROUND(+M125+M157,0))","v":0},null,null,null,{"$f":"+IF(Q$28=0,0,ROUND(+Q125+Q157,0))","v":0},null,null,null,{"$f":"+IF(U$28=0,0,ROUND(+U125+U157,0))","v":0},null,null,null,{"$f":"+IF(Y$28=0,0,ROUND(+Y125+Y157,0))","v":0},null,null,null,{"$f":"+IF(AC$28=0,0,ROUND(+AC125+AC157,0))","v":0},null,null,null,{"$f":"+IF(AG$28=0,0,ROUND(+AG125+AG157,0))","v":0},null,null,null,{"$f":"+IF(AK$28=0,0,ROUND(+AK125+AK157,0))","v":0},null,null,null,{"$f":"+IF(AO$28=0,0,ROUND(+AO125+AO157,0))","v":0},null,null,null,{"$f":"+IF(AS$28=0,0,ROUND(+AS125+AS157,0))","v":0},null,null,null,{"$f":"+IF(AW$28=0,0,ROUND(+AW125+AW157,0))","v":0},null,null,null,{"$f":"+IF(BA$28=0,0,ROUND(+BA125+BA157,0))","v":0},null,null,null,null,null,{"$f":"+IF(BE159<>0,+BE159,+I159+M159+Q159+U159+Y159+AC159+AG159+AK159+AO159+AS159+AW159+BA159)","v":0}]
["oui"]
["non",null,null,null,null,null,"Seuil d'occupation","Seuil de présence",null,null,"Seuil d'occupation","Seuil de présence",null,null,"Seuil d'occupation","Seuil de présence",null,null,"Seuil d'occupation","Seuil de présence",null,null,"Seuil d'occupation","Seuil de présence",null,null,"Seuil d'occupation","Seuil de présence",null,null,"Seuil d'occupation","Seuil de présence",null,null,"Seuil d'occupation","Seuil de présence",null,null,"Seuil d'occupation","Seuil de présence",null,null,"Seuil d'occupation","Seuil de présence",null,null,"Seuil d'occupation","Seuil de présence",null,null,"Seuil d'occupation","Seuil de présence",null,null,"Seuil d'occupation","Seuil de présence"]
["non",null,"Optimisation des services",null,null,null,{"$f":"INDEX(Barème!$B$5:$XFD$9234,_xlfn.XMATCH('Calcul-Subv-CPE'!$G161,Barème!$B$5:$B$9234),_xlfn.XMATCH($E$17,Barème!$B$4:$XFD$4))","v":0.9},{"$f":"INDEX(Barème!$B$5:$XFD$9234,_xlfn.XMATCH('Calcul-Subv-CPE'!H161,Barème!$B$5:$B$9234),_xlfn.XMATCH($E$17,Barème!$B$4:$XFD$4))","v":0.7},null,null,{"$f":"INDEX(Barème!$B$5:$XFD$9234,_xlfn.XMATCH('Calcul-Subv-CPE'!$G161,Barème!$B$5:$B$9234),_xlfn.XMATCH($E$17,Barème!$B$4:$XFD$4))","v":0.9},{"$f":"INDEX(Barème!$B$5:$XFD$9234,_xlfn.XMATCH('Calcul-Subv-CPE'!L161,Barème!$B$5:$B$9234),_xlfn.XMATCH($E$17,Barème!$B$4:$XFD$4))","v":0.7},null,null,{"$f":"INDEX(Barème!$B$5:$XFD$9234,_xlfn.XMATCH('Calcul-Subv-CPE'!$G161,Barème!$B$5:$B$9234),_xlfn.XMATCH($E$17,Barème!$B$4:$XFD$4))","v":0.9},{"$f":"INDEX(Barème!$B$5:$XFD$9234,_xlfn.XMATCH('Calcul-Subv-CPE'!P161,Barème!$B$5:$B$9234),_xlfn.XMATCH($E$17,Barème!$B$4:$XFD$4))","v":0.7},null,null,{"$f":"INDEX(Barème!$B$5:$XFD$9234,_xlfn.XMATCH('Calcul-Subv-CPE'!$G161,Barème!$B$5:$B$9234),_xlfn.XMATCH($E$17,Barème!$B$4:$XFD$4))","v":0.9},{"$f":"INDEX(Barème!$B$5:$XFD$9234,_xlfn.XMATCH('Calcul-Subv-CPE'!T161,Barème!$B$5:$B$9234),_xlfn.XMATCH($E$17,Barème!$B$4:$XFD$4))","v":0.7},null,null,{"$f":"INDEX(Barème!$B$5:$XFD$9234,_xlfn.XMATCH('Calcul-Subv-CPE'!$G161,Barème!$B$5:$B$9234),_xlfn.XMATCH($E$17,Barème!$B$4:$XFD$4))","v":0.9},{"$f":"INDEX(Barème!$B$5:$XFD$9234,_xlfn.XMATCH('Calcul-Subv-CPE'!X161,Barème!$B$5:$B$9234),_xlfn.XMATCH($E$17,Barème!$B$4:$XFD$4))","v":0.7},null,null,{"$f":"INDEX(Barème!$B$5:$XFD$9234,_xlfn.XMATCH('Calcul-Subv-CPE'!$G161,Barème!$B$5:$B$9234),_xlfn.XMATCH($E$17,Barème!$B$4:$XFD$4))","v":0.9},{"$f":"INDEX(Barème!$B$5:$XFD$9234,_xlfn.XMATCH('Calcul-Subv-CPE'!AB161,Barème!$B$5:$B$9234),_xlfn.XMATCH($E$17,Barème!$B$4:$XFD$4))","v":0.7},null,null,{"$f":"INDEX(Barème!$B$5:$XFD$9234,_xlfn.XMATCH('Calcul-Subv-CPE'!$G161,Barème!$B$5:$B$9234),_xlfn.XMATCH($E$17,Barème!$B$4:$XFD$4))","v":0.9},{"$f":"INDEX(Barème!$B$5:$XFD$9234,_xlfn.XMATCH('Calcul-Subv-CPE'!AF161,Barème!$B$5:$B$9234),_xlfn.XMATCH($E$17,Barème!$B$4:$XFD$4))","v":0.7},null,null,{"$f":"INDEX(Barème!$B$5:$XFD$9234,_xlfn.XMATCH('Calcul-Subv-CPE'!$G161,Barème!$B$5:$B$9234),_xlfn.XMATCH($E$17,Barème!$B$4:$XFD$4))","v":0.9},{"$f":"INDEX(Barème!$B$5:$XFD$9234,_xlfn.XMATCH('Calcul-Subv-CPE'!AJ161,Barème!$B$5:$B$9234),_xlfn.XMATCH($E$17,Barème!$B$4:$XFD$4))","v":0.7},null,null,{"$f":"INDEX(Barème!$B$5:$XFD$9234,_xlfn.XMATCH('Calcul-Subv-CPE'!$G161,Barème!$B$5:$B$9234),_xlfn.XMATCH($E$17,Barème!$B$4:$XFD$4))","v":0.9},{"$f":"INDEX(Barème!$B$5:$XFD$9234,_xlfn.XMATCH('Calcul-Subv-CPE'!AN161,Barème!$B$5:$B$9234),_xlfn.XMATCH($E$17,Barème!$B$4:$XFD$4))","v":0.7},null,null,{"$f":"INDEX(Barème!$B$5:$XFD$9234,_xlfn.XMATCH('Calcul-Subv-CPE'!$G161,Barème!$B$5:$B$9234),_xlfn.XMATCH($E$17,Barème!$B$4:$XFD$4))","v":0.9},{"$f":"INDEX(Barème!$B$5:$XFD$9234,_xlfn.XMATCH('Calcul-Subv-CPE'!AR161,Barème!$B$5:$B$9234),_xlfn.XMATCH($E$17,Barème!$B$4:$XFD$4))","v":0.7},null,null,{"$f":"INDEX(Barème!$B$5:$XFD$9234,_xlfn.XMATCH('Calcul-Subv-CPE'!$G161,Barème!$B$5:$B$9234),_xlfn.XMATCH($E$17,Barème!$B$4:$XFD$4))","v":0.9},{"$f":"INDEX(Barème!$B$5:$XFD$9234,_xlfn.XMATCH('Calcul-Subv-CPE'!AV161,Barème!$B$5:$B$9234),_xlfn.XMATCH($E$17,Barème!$B$4:$XFD$4))","v":0.7},null,null,{"$f":"INDEX(Barème!$B$5:$XFD$9234,_xlfn.XMATCH('Calcul-Subv-CPE'!$G161,Barème!$B$5:$B$9234),_xlfn.XMATCH($E$17,Barème!$B$4:$XFD$4))","v":0.9},{"$f":"INDEX(Barème!$B$5:$XFD$9234,_xlfn.XMATCH('Calcul-Subv-CPE'!AZ161,Barème!$B$5:$B$9234),_xlfn.XMATCH($E$17,Barème!$B$4:$XFD$4))","v":0.7}]
["non",null,"Est-ce que vous vous trouvez dans l'une des situations suivantes :\n  1- CPE ouvert pendant l'exercice financier\n      sélectionné \n  2- CPE ouvert pendant l'exercice financier\n      précédent \n  3- Nombre de places > 20 % pendant\n      l'exercice financier précédent\n  4- CPE autochtone",null,"L'optimisation s'applique uniquement lorsque vous répondez \"non\" à la question.",null,{"$f":"+Barème!$B$153","v":"oui"},{"$f":"+Barème!$B$154","v":"non"},"non",null,{"$f":"+Barème!$B$153","v":"oui"},{"$f":"+Barème!$B$154","v":"non"},"oui",null,{"$f":"+Barème!$B$153","v":"oui"},{"$f":"+Barème!$B$154","v":"non"},"non",null,{"$f":"+Barème!$B$153","v":"oui"},{"$f":"+Barème!$B$154","v":"non"},"non",null,{"$f":"+Barème!$B$153","v":"oui"},{"$f":"+Barème!$B$154","v":"non"},"non",null,{"$f":"+Barème!$B$153","v":"oui"},{"$f":"+Barème!$B$154","v":"non"},"non",null,{"$f":"+Barème!$B$153","v":"oui"},{"$f":"+Barème!$B$154","v":"non"},"non",null,{"$f":"+Barème!$B$153","v":"oui"},{"$f":"+Barème!$B$154","v":"non"},"non",null,{"$f":"+Barème!$B$153","v":"oui"},{"$f":"+Barème!$B$154","v":"non"},"non",null,{"$f":"+Barème!$B$153","v":"oui"},{"$f":"+Barème!$B$154","v":"non"},"non",null,{"$f":"+Barème!$B$153","v":"oui"},{"$f":"+Barème!$B$154","v":"non"},"non",null,{"$f":"+Barème!$B$153","v":"oui"},{"$f":"+Barème!$B$154","v":"non"},"non"]
["oui"]
["oui",null,"Réponse selon oui ou non",null,null,null,null,null,{"$f":"+IF(I163=G163,0,IF(I163=H163,1,0))","v":1},null,null,null,{"$f":"+IF(M163=K163,0,IF(M163=L163,1,0))","v":0},null,null,null,{"$f":"+IF(Q163=O163,0,IF(Q163=P163,1,0))","v":1},null,null,null,{"$f":"+IF(U163=S163,0,IF(U163=T163,1,0))","v":1},null,null,null,{"$f":"+IF(Y163=W163,0,IF(Y163=X163,1,0))","v":1},null,null,null,{"$f":"+IF(AC163=AA163,0,IF(AC163=AB163,1,0))","v":1},null,null,null,{"$f":"+IF(AG163=AE163,0,IF(AG163=AF163,1,0))","v":1},null,null,null,{"$f":"+IF(AK163=AI163,0,IF(AK163=AJ163,1,0))","v":1},null,null,null,{"$f":"+IF(AO163=AM163,0,IF(AO163=AN163,1,0))","v":1},null,null,null,{"$f":"+IF(AS163=AQ163,0,IF(AS163=AR163,1,0))","v":1},null,null,null,{"$f":"+IF(AW163=AU163,0,IF(AW163=AV163,1,0))","v":1},null,null,null,{"$f":"+IF(BA163=AY163,0,IF(BA163=AZ163,1,0))","v":1},null,null,null,{"$f":"+IF(BE163=BC163,0,IF(BE163=BD163,1,0))","v":0},null,{"$f":"+IF(BG163=BE163,0,IF(BG163=BF163,1,0))","v":0}]
["non",null,"Ajustement pour le seuil d'occupation ",null,null,null,null,null,{"$f":"IF(I$163=G163,\"L'ajustement ne s'applique pas à votre situation\",+\"Ajustement lorsque le taux est inférieur à \"&G162*100&\" %\")","v":"Ajustement lorsque le taux est inférieur à 90 %"},null,null,null,{"$f":"IF(M$163=K163,\"L'ajustement ne s'applique pas à votre situation\",+\"Ajustement lorsque le taux est inférieur à \"&K162*100&\" %\")","v":"L'ajustement ne s'applique pas à votre situation"},null,null,null,{"$f":"IF(Q$163=O163,\"L'ajustement ne s'applique pas à votre situation\",+\"Ajustement lorsque le taux est inférieur à \"&O162*100&\" %\")","v":"Ajustement lorsque le taux est inférieur à 90 %"},null,null,null,{"$f":"IF(U$163=S163,\"L'ajustement ne s'applique pas à votre situation\",+\"Ajustement lorsque le taux est inférieur à \"&S162*100&\" %\")","v":"Ajustement lorsque le taux est inférieur à 90 %"},null,null,null,{"$f":"IF(Y$163=W163,\"L'ajustement ne s'applique pas à votre situation\",+\"Ajustement lorsque le taux est inférieur à \"&W162*100&\" %\")","v":"Ajustement lorsque le taux est inférieur à 90 %"},null,null,null,{"$f":"IF(AC$163=AA163,\"L'ajustement ne s'applique pas à votre situation\",+\"Ajustement lorsque le taux est inférieur à \"&AA162*100&\" %\")","v":"Ajustement lorsque le taux est inférieur à 90 %"},null,null,null,{"$f":"IF(AG$163=AE163,\"L'ajustement ne s'applique pas à votre situation\",+\"Ajustement lorsque le taux est inférieur à \"&AE162*100&\" %\")","v":"Ajustement lorsque le taux est inférieur à 90 %"},null,null,null,{"$f":"IF(AK$163=AI163,\"L'ajustement ne s'applique pas à votre situation\",+\"Ajustement lorsque le taux est inférieur à \"&AI162*100&\" %\")","v":"Ajustement lorsque le taux est inférieur à 90 %"},null,null,null,{"$f":"IF(AO$163=AM163,\"L'ajustement ne s'applique pas à votre situation\",+\"Ajustement lorsque le taux est inférieur à \"&AM162*100&\" %\")","v":"Ajustement lorsque le taux est inférieur à 90 %"},null,null,null,{"$f":"IF(AS$163=AQ163,\"L'ajustement ne s'applique pas à votre situation\",+\"Ajustement lorsque le taux est inférieur à \"&AQ162*100&\" %\")","v":"Ajustement lorsque le taux est inférieur à 90 %"},null,null,null,{"$f":"IF(AW$163=AU163,\"L'ajustement ne s'applique pas à votre situation\",+\"Ajustement lorsque le taux est inférieur à \"&AU162*100&\" %\")","v":"Ajustement lorsque le taux est inférieur à 90 %"},null,null,null,{"$f":"IF(BA$163=AY163,\"L'ajustement ne s'applique pas à votre situation\",+\"Ajustement lorsque le taux est inférieur à \"&AY162*100&\"%\")","v":"Ajustement lorsque le taux est inférieur à 90%"},null,"calcul par installation"]
["non",null,null,null,null,null,null,null,{"$f":"IF(I39=0,0,ROUND((IF((I57-G$162)<0,ROUND((I159+I121)*(I57-G$162),0),0))*I165,0))","v":0},null,null,null,{"$f":"IF(M39=0,0,ROUND((IF((M57-K$162)<0,ROUND((M159+M121)*(M57-K$162),0),0))*M165,0))","v":0},null,null,null,{"$f":"IF(Q39=0,0,ROUND((IF((Q57-O$162)<0,ROUND((Q159+Q121)*(Q57-O$162),0),0))*Q165,0))","v":0},null,null,null,{"$f":"IF(U39=0,0,ROUND((IF((U57-S$162)<0,ROUND((U159+U121)*(U57-S$162),0),0))*U165,0))","v":0},null,null,null,{"$f":"IF(Y39=0,0,ROUND((IF((Y57-W$162)<0,ROUND((Y159+Y121)*(Y57-W$162),0),0))*Y165,0))","v":0},null,null,null,{"$f":"IF(AC39=0,0,ROUND((IF((AC57-AA$162)<0,ROUND((AC159+AC121)*(AC57-AA$162),0),0))*AC165,0))","v":0},null,null,null,{"$f":"IF(AG39=0,0,ROUND((IF((AG57-AE$162)<0,ROUND((AG159+AG121)*(AG57-AE$162),0),0))*AG165,0))","v":0},null,null,null,{"$f":"IF(AK39=0,0,ROUND((IF((AK57-AI$162)<0,ROUND((AK159+AK121)*(AK57-AI$162),0),0))*AK165,0))","v":0},null,null,null,{"$f":"IF(AO39=0,0,ROUND((IF((AO57-AM$162)<0,ROUND((AO159+AO121)*(AO57-AM$162),0),0))*AO165,0))","v":0},null,null,null,{"$f":"IF(AS39=0,0,ROUND((IF((AS57-AQ$162)<0,ROUND((AS159+AS121)*(AS57-AQ$162),0),0))*AS165,0))","v":0},null,null,null,{"$f":"IF(AW39=0,0,ROUND((IF((AW57-AU$162)<0,ROUND((AW159+AW121)*(AW57-AU$162),0),0))*AW165,0))","v":0},null,null,null,{"$f":"IF(BA39=0,0,ROUND((IF((BA57-AY$162)<0,ROUND((BA159+BA121)*(BA57-AY$162),0),0))*BA165,0))","v":0},null,"calcul par installation"]
["non",null,"Ajustement pour le seuil de présence",null,null,null,null,null,{"$f":"IF(I$163=G163,\"L'ajustement ne s'applique pas à votre situation\",+\"Ajustement lorsque le taux est inférieur à \"&H162*100&\" %\")","v":"Ajustement lorsque le taux est inférieur à 70 %"},null,null,null,{"$f":"IF(M$163=K163,\"L'ajustement ne s'applique pas à votre situation\",+\"Ajustement lorsque le taux est inférieur à \"&L162*100&\" %\")","v":"L'ajustement ne s'applique pas à votre situation"},null,null,null,{"$f":"IF(Q$163=O163,\"L'ajustement ne s'applique pas à votre situation\",+\"Ajustement lorsque le taux est inférieur à \"&P162*100&\" %\")","v":"Ajustement lorsque le taux est inférieur à 70 %"},null,null,null,{"$f":"IF(U$163=S163,\"L'ajustement ne s'applique pas à votre situation\",+\"Ajustement lorsque le taux est inférieur à \"&T162*100&\" %\")","v":"Ajustement lorsque le taux est inférieur à 70 %"},null,null,null,{"$f":"IF(Y$163=W163,\"L'ajustement ne s'applique pas à votre situation\",+\"Ajustement lorsque le taux est inférieur à \"&X162*100&\" %\")","v":"Ajustement lorsque le taux est inférieur à 70 %"},null,null,null,{"$f":"IF(AC$163=AA163,\"L'ajustement ne s'applique pas à votre situation\",+\"Ajustement lorsque le taux est inférieur à \"&AB162*100&\" %\")","v":"Ajustement lorsque le taux est inférieur à 70 %"},null,null,null,{"$f":"IF(AG$163=AE163,\"L'ajustement ne s'applique pas à votre situation\",+\"Ajustement lorsque le taux est inférieur à \"&AF162*100&\" %\")","v":"Ajustement lorsque le taux est inférieur à 70 %"},null,null,null,{"$f":"IF(AK$163=AI163,\"L'ajustement ne s'applique pas à votre situation\",+\"Ajustement lorsque le taux est inférieur à \"&AJ162*100&\" %\")","v":"Ajustement lorsque le taux est inférieur à 70 %"},null,null,null,{"$f":"IF(AO$163=AM163,\"L'ajustement ne s'applique pas à votre situation\",+\"Ajustement lorsque le taux est inférieur à \"&AN162*100&\" %\")","v":"Ajustement lorsque le taux est inférieur à 70 %"},null,null,null,{"$f":"IF(AS$163=AQ163,\"L'ajustement ne s'applique pas à votre situation\",+\"Ajustement lorsque le taux est inférieur à \"&AR162*100&\" %\")","v":"Ajustement lorsque le taux est inférieur à 70 %"},null,null,null,{"$f":"IF(AW$163=AU163,\"L'ajustement ne s'applique pas à votre situation\",+\"Ajustement lorsque le taux est inférieur à \"&AV162*100&\" %\")","v":"Ajustement lorsque le taux est inférieur à 70 %"},null,null,null,{"$f":"IF(BA$163=AY163,\"L'ajustement ne s'applique pas à votre situation\",+\"Ajustement lorsque le taux est inférieur à \"&AZ162*100&\" %\")","v":"Ajustement lorsque le taux est inférieur à 70 %"},null,"calcul par installation"]
["non",null,null,null,null,null,"Prop. Applicable (présence)",{"$f":"INDEX(Barème!$B$5:$XFD$9234,_xlfn.XMATCH('Calcul-Subv-CPE'!G169,Barème!$B$5:$B$9234),_xlfn.XMATCH($E$17,Barème!$B$4:$XFD$4))","v":0.5},{"$f":"IF(I39=0,0,ROUND((IF((I62-H$162)<0,ROUND(I105*H$169*(I62-H$162),0),0))*I165,0))","v":0},null,"Prop. Applicable (présence)",{"$f":"INDEX(Barème!$B$5:$XFD$9234,_xlfn.XMATCH('Calcul-Subv-CPE'!K169,Barème!$B$5:$B$9234),_xlfn.XMATCH($E$17,Barème!$B$4:$XFD$4))","v":0.5},{"$f":"IF(M39=0,0,ROUND((IF((M62-L$162)<0,ROUND(M105*L$169*(M62-L$162),0),0))*M165,0))","v":0},null,"Prop. Applicable (présence)",{"$f":"INDEX(Barème!$B$5:$XFD$9234,_xlfn.XMATCH('Calcul-Subv-CPE'!O169,Barème!$B$5:$B$9234),_xlfn.XMATCH($E$17,Barème!$B$4:$XFD$4))","v":0.5},{"$f":"IF(Q39=0,0,ROUND((IF((Q62-P$162)<0,ROUND(Q105*P$169*(Q62-P$162),0),0))*Q165,0))","v":0},null,"Prop. Applicable (présence)",{"$f":"INDEX(Barème!$B$5:$XFD$9234,_xlfn.XMATCH('Calcul-Subv-CPE'!S169,Barème!$B$5:$B$9234),_xlfn.XMATCH($E$17,Barème!$B$4:$XFD$4))","v":0.5},{"$f":"IF(U39=0,0,ROUND((IF((U62-T$162)<0,ROUND(U105*T$169*(U62-T$162),0),0))*U165,0))","v":0},null,"Prop. Applicable (présence)",{"$f":"INDEX(Barème!$B$5:$XFD$9234,_xlfn.XMATCH('Calcul-Subv-CPE'!W169,Barème!$B$5:$B$9234),_xlfn.XMATCH($E$17,Barème!$B$4:$XFD$4))","v":0.5},{"$f":"IF(Y39=0,0,ROUND((IF((Y62-X$162)<0,ROUND(Y105*X$169*(Y62-X$162),0),0))*Y165,0))","v":0},null,"Prop. Applicable (présence)",{"$f":"INDEX(Barème!$B$5:$XFD$9234,_xlfn.XMATCH('Calcul-Subv-CPE'!AA169,Barème!$B$5:$B$9234),_xlfn.XMATCH($E$17,Barème!$B$4:$XFD$4))","v":0.5},{"$f":"IF(AC39=0,0,ROUND((IF((AC62-AB$162)<0,ROUND(AC105*AB$169*(AC62-AB$162),0),0))*AC165,0))","v":0},null,"Prop. Applicable (présence)",{"$f":"INDEX(Barème!$B$5:$XFD$9234,_xlfn.XMATCH('Calcul-Subv-CPE'!AE169,Barème!$B$5:$B$9234),_xlfn.XMATCH($E$17,Barème!$B$4:$XFD$4))","v":0.5},{"$f":"IF(AG39=0,0,ROUND((IF((AG62-AF$162)<0,ROUND(AG105*AF$169*(AG62-AF$162),0),0))*AG165,0))","v":0},null,"Prop. Applicable (présence)",{"$f":"INDEX(Barème!$B$5:$XFD$9234,_xlfn.XMATCH('Calcul-Subv-CPE'!AI169,Barème!$B$5:$B$9234),_xlfn.XMATCH($E$17,Barème!$B$4:$XFD$4))","v":0.5},{"$f":"IF(AK39=0,0,ROUND((IF((AK62-AJ$162)<0,ROUND(AK105*AJ$169*(AK62-AJ$162),0),0))*AK165,0))","v":0},null,"Prop. Applicable (présence)",{"$f":"INDEX(Barème!$B$5:$XFD$9234,_xlfn.XMATCH('Calcul-Subv-CPE'!AM169,Barème!$B$5:$B$9234),_xlfn.XMATCH($E$17,Barème!$B$4:$XFD$4))","v":0.5},{"$f":"IF(AO39=0,0,ROUND((IF((AO62-AN$162)<0,ROUND(AO105*AN$169*(AO62-AN$162),0),0))*AO165,0))","v":0},null,"Prop. Applicable (présence)",{"$f":"INDEX(Barème!$B$5:$XFD$9234,_xlfn.XMATCH('Calcul-Subv-CPE'!AQ169,Barème!$B$5:$B$9234),_xlfn.XMATCH($E$17,Barème!$B$4:$XFD$4))","v":0.5},{"$f":"IF(AS39=0,0,ROUND((IF((AS62-AR$162)<0,ROUND(AS105*AR$169*(AS62-AR$162),0),0))*AS165,0))","v":0},null,"Prop. Applicable (présence)",{"$f":"INDEX(Barème!$B$5:$XFD$9234,_xlfn.XMATCH('Calcul-Subv-CPE'!AU169,Barème!$B$5:$B$9234),_xlfn.XMATCH($E$17,Barème!$B$4:$XFD$4))","v":0.5},{"$f":"IF(AW39=0,0,ROUND((IF((AW62-AV$162)<0,ROUND(AW105*AV$169*(AW62-AV$162),0),0))*AW165,0))","v":0},null,"Prop. Applicable (présence)",{"$f":"INDEX(Barème!$B$5:$XFD$9234,_xlfn.XMATCH('Calcul-Subv-CPE'!AY169,Barème!$B$5:$B$9234),_xlfn.XMATCH($E$17,Barème!$B$4:$XFD$4))","v":0.5},{"$f":"IF(BA39=0,0,ROUND((IF((BA62-AZ$162)<0,ROUND(BA105*AZ$169*(BA62-AZ$162),0),0))*BA165,0))","v":0},null,"Prop. Applicable (présence)"]
["non"]
["non",null,"Total – Optimisation des services",null,null,null,null,null,{"$f":"ROUND(I167+I169,0)","v":0},null,null,null,{"$f":"ROUND(M167+M169,0)","v":0},null,null,null,{"$f":"ROUND(Q167+Q169,0)","v":0},null,null,null,{"$f":"ROUND(U167+U169,0)","v":0},null,null,null,{"$f":"ROUND(Y167+Y169,0)","v":0},null,null,null,{"$f":"ROUND(AC167+AC169,0)","v":0},null,null,null,{"$f":"ROUND(AG167+AG169,0)","v":0},null,null,null,{"$f":"ROUND(AK167+AK169,0)","v":0},null,null,null,{"$f":"ROUND(AO167+AO169,0)","v":0},null,null,null,{"$f":"ROUND(AS167+AS169,0)","v":0},null,null,null,{"$f":"ROUND(AW167+AW169,0)","v":0},null,null,null,{"$f":"ROUND(BA167+BA169,0)","v":0},null,null,null,null,null,{"$f":"+IF(BE171<>0,+BE171,+I171+M171+Q171+U171+Y171+AC171+AG171+AK171+AO171+AS171+AW171+BA171)","v":0}]
["oui"]
["oui",null,"Total avant contribution réduite",null,null,null,null,null,{"$f":"I105+I111+I121+I159+I171","v":0},null,null,null,{"$f":"M105+M111+M121+M159+M171","v":0},null,null,null,{"$f":"Q105+Q111+Q121+Q159+Q171","v":0},null,null,null,{"$f":"U105+U111+U121+U159+U171","v":0},null,null,null,{"$f":"Y105+Y111+Y121+Y159+Y171","v":0},null,null,null,{"$f":"AC105+AC111+AC121+AC159+AC171","v":0},null,null,null,{"$f":"AG105+AG111+AG121+AG159+AG171","v":0},null,null,null,{"$f":"AK105+AK111+AK121+AK159+AK171","v":0},null,null,null,{"$f":"AO105+AO111+AO121+AO159+AO171","v":0},null,null,null,{"$f":"AS105+AS111+AS121+AS159+AS171","v":0},null,null,null,{"$f":"AW105+AW111+AW121+AW159+AW171","v":0},null,null,null,{"$f":"BA105+BA111+BA121+BA159+BA171","v":0},null,null,null,null,null,{"$f":"BG105+BG111+BG121+BG159+BG171","v":0}]
["non",null,null,null,null,null,"La formule pourrait mettre vraie date au lieu de 75%-25%",null,null,null,"La formule pourrait mettre vraie date au lieu de 75%-25%",null,null,null,"La formule pourrait mettre vraie date au lieu de 75%-25%",null,null,null,"La formule pourrait mettre vraie date au lieu de 75%-25%",null,null,null,"La formule pourrait mettre vraie date au lieu de 75%-25%",null,null,null,"La formule pourrait mettre vraie date au lieu de 75%-25%",null,null,null,"La formule pourrait mettre vraie date au lieu de 75%-25%",null,null,null,"La formule pourrait mettre vraie date au lieu de 75%-25%",null,null,null,"La formule pourrait mettre vraie date au lieu de 75%-25%",null,null,null,"La formule pourrait mettre vraie date au lieu de 75%-25%",null,null,null,"La formule pourrait mettre vraie date au lieu de 75%-25%",null,null,null,"La formule pourrait mettre vraie date au lieu de 75%-25%",null,null,null,"La formule pourrait mettre vraie date au lieu de 75%-25%"]
["oui",null,"Contribution réduite",null,null,null,"1er avril au 31 décembre","1er janvier au 31 mars ",null,null,"1er avril au 31 décembre","1er janvier au 31 mars ",null,null,"1er avril au 31 décembre","1er janvier au 31 mars ",null,null,"1er avril au 31 décembre","1er janvier au 31 mars ",null,null,"1er avril au 31 décembre","1er janvier au 31 mars ",null,null,"1er avril au 31 décembre","1er janvier au 31 mars ",null,null,"1er avril au 31 décembre","1er janvier au 31 mars ",null,null,"1er avril au 31 décembre","1er janvier au 31 mars ",null,null,"1er avril au 31 décembre","1er janvier au 31 mars ",null,null,"1er avril au 31 décembre","1er janvier au 31 mars ",null,null,"1er avril au 31 décembre","1er janvier au 31 mars ",null,null,"1er avril au 31 décembre","1er janvier au 31 mars ",null,null,"1er avril au 31 décembre","1er janvier au 31 mars "]
["oui",null,null,null,null,null,{"$f":"INDEX(Barème!$B$5:$XFD$9234,_xlfn.XMATCH('Calcul-Subv-CPE'!G175,Barème!$B$5:$B$9234),_xlfn.XMATCH($E$17,Barème!$B$4:$XFD$4))","v":8.85},{"$f":"INDEX(Barème!$B$5:$XFD$9234,_xlfn.XMATCH('Calcul-Subv-CPE'!H175,Barème!$B$5:$B$9234),_xlfn.XMATCH($E$17,Barème!$B$4:$XFD$4))","v":9.1},null,null,{"$f":"INDEX(Barème!$B$5:$XFD$9234,_xlfn.XMATCH('Calcul-Subv-CPE'!K175,Barème!$B$5:$B$9234),_xlfn.XMATCH($E$17,Barème!$B$4:$XFD$4))","v":8.85},{"$f":"INDEX(Barème!$B$5:$XFD$9234,_xlfn.XMATCH('Calcul-Subv-CPE'!L175,Barème!$B$5:$B$9234),_xlfn.XMATCH($E$17,Barème!$B$4:$XFD$4))","v":9.1},null,null,{"$f":"INDEX(Barème!$B$5:$XFD$9234,_xlfn.XMATCH('Calcul-Subv-CPE'!O175,Barème!$B$5:$B$9234),_xlfn.XMATCH($E$17,Barème!$B$4:$XFD$4))","v":8.85},{"$f":"INDEX(Barème!$B$5:$XFD$9234,_xlfn.XMATCH('Calcul-Subv-CPE'!P175,Barème!$B$5:$B$9234),_xlfn.XMATCH($E$17,Barème!$B$4:$XFD$4))","v":9.1},null,null,{"$f":"INDEX(Barème!$B$5:$XFD$9234,_xlfn.XMATCH('Calcul-Subv-CPE'!S175,Barème!$B$5:$B$9234),_xlfn.XMATCH($E$17,Barème!$B$4:$XFD$4))","v":8.85},{"$f":"INDEX(Barème!$B$5:$XFD$9234,_xlfn.XMATCH('Calcul-Subv-CPE'!T175,Barème!$B$5:$B$9234),_xlfn.XMATCH($E$17,Barème!$B$4:$XFD$4))","v":9.1},null,null,{"$f":"INDEX(Barème!$B$5:$XFD$9234,_xlfn.XMATCH('Calcul-Subv-CPE'!W175,Barème!$B$5:$B$9234),_xlfn.XMATCH($E$17,Barème!$B$4:$XFD$4))","v":8.85},{"$f":"INDEX(Barème!$B$5:$XFD$9234,_xlfn.XMATCH('Calcul-Subv-CPE'!X175,Barème!$B$5:$B$9234),_xlfn.XMATCH($E$17,Barème!$B$4:$XFD$4))","v":9.1},null,null,{"$f":"INDEX(Barème!$B$5:$XFD$9234,_xlfn.XMATCH('Calcul-Subv-CPE'!AA175,Barème!$B$5:$B$9234),_xlfn.XMATCH($E$17,Barème!$B$4:$XFD$4))","v":8.85},{"$f":"INDEX(Barème!$B$5:$XFD$9234,_xlfn.XMATCH('Calcul-Subv-CPE'!AB175,Barème!$B$5:$B$9234),_xlfn.XMATCH($E$17,Barème!$B$4:$XFD$4))","v":9.1},null,null,{"$f":"INDEX(Barème!$B$5:$XFD$9234,_xlfn.XMATCH('Calcul-Subv-CPE'!AE175,Barème!$B$5:$B$9234),_xlfn.XMATCH($E$17,Barème!$B$4:$XFD$4))","v":8.85},{"$f":"INDEX(Barème!$B$5:$XFD$9234,_xlfn.XMATCH('Calcul-Subv-CPE'!AF175,Barème!$B$5:$B$9234),_xlfn.XMATCH($E$17,Barème!$B$4:$XFD$4))","v":9.1},null,null,{"$f":"INDEX(Barème!$B$5:$XFD$9234,_xlfn.XMATCH('Calcul-Subv-CPE'!AI175,Barème!$B$5:$B$9234),_xlfn.XMATCH($E$17,Barème!$B$4:$XFD$4))","v":8.85},{"$f":"INDEX(Barème!$B$5:$XFD$9234,_xlfn.XMATCH('Calcul-Subv-CPE'!AJ175,Barème!$B$5:$B$9234),_xlfn.XMATCH($E$17,Barème!$B$4:$XFD$4))","v":9.1},null,null,{"$f":"INDEX(Barème!$B$5:$XFD$9234,_xlfn.XMATCH('Calcul-Subv-CPE'!AM175,Barème!$B$5:$B$9234),_xlfn.XMATCH($E$17,Barème!$B$4:$XFD$4))","v":8.85},{"$f":"INDEX(Barème!$B$5:$XFD$9234,_xlfn.XMATCH('Calcul-Subv-CPE'!AN175,Barème!$B$5:$B$9234),_xlfn.XMATCH($E$17,Barème!$B$4:$XFD$4))","v":9.1},null,null,{"$f":"INDEX(Barème!$B$5:$XFD$9234,_xlfn.XMATCH('Calcul-Subv-CPE'!AQ175,Barème!$B$5:$B$9234),_xlfn.XMATCH($E$17,Barème!$B$4:$XFD$4))","v":8.85},{"$f":"INDEX(Barème!$B$5:$XFD$9234,_xlfn.XMATCH('Calcul-Subv-CPE'!AR175,Barème!$B$5:$B$9234),_xlfn.XMATCH($E$17,Barème!$B$4:$XFD$4))","v":9.1},null,null,{"$f":"INDEX(Barème!$B$5:$XFD$9234,_xlfn.XMATCH('Calcul-Subv-CPE'!AU175,Barème!$B$5:$B$9234),_xlfn.XMATCH($E$17,Barème!$B$4:$XFD$4))","v":8.85},{"$f":"INDEX(Barème!$B$5:$XFD$9234,_xlfn.XMATCH('Calcul-Subv-CPE'!AV175,Barème!$B$5:$B$9234),_xlfn.XMATCH($E$17,Barème!$B$4:$XFD$4))","v":9.1},null,null,{"$f":"INDEX(Barème!$B$5:$XFD$9234,_xlfn.XMATCH('Calcul-Subv-CPE'!AY175,Barème!$B$5:$B$9234),_xlfn.XMATCH($E$17,Barème!$B$4:$XFD$4))","v":8.85},{"$f":"INDEX(Barème!$B$5:$XFD$9234,_xlfn.XMATCH('Calcul-Subv-CPE'!AZ175,Barème!$B$5:$B$9234),_xlfn.XMATCH($E$17,Barème!$B$4:$XFD$4))","v":9.1},null,null,{"$f":"INDEX(Barème!$B$5:$XFD$9234,_xlfn.XMATCH('Calcul-Subv-CPE'!BC175,Barème!$B$5:$B$9234),_xlfn.XMATCH($E$17,Barème!$B$4:$XFD$4))","v":8.85},{"$f":"INDEX(Barème!$B$5:$XFD$9234,_xlfn.XMATCH('Calcul-Subv-CPE'!BD175,Barème!$B$5:$B$9234),_xlfn.XMATCH($E$17,Barème!$B$4:$XFD$4))","v":9.1}]
["non",null,"Total – Contribution réduite",null,null,null,null,null,{"$f":"-ROUND((G$176*0.75+H$176*0.25)*I39,0)","v":0},null,null,null,{"$f":"-ROUND((K$176*0.75+L$176*0.25)*M39,0)","v":0},null,null,null,{"$f":"-ROUND((O$176*0.75+P$176*0.25)*Q39,0)","v":0},null,null,null,{"$f":"-ROUND((S$176*0.75+T$176*0.25)*U39,0)","v":0},null,null,null,{"$f":"-ROUND((W$176*0.75+X$176*0.25)*Y39,0)","v":0},null,null,null,{"$f":"-ROUND((AA$176*0.75+AB$176*0.25)*AC39,0)","v":0},null,null,null,{"$f":"-ROUND((AE$176*0.75+AF$176*0.25)*AG39,0)","v":0},null,null,null,{"$f":"-ROUND((AI$176*0.75+AJ$176*0.25)*AK39,0)","v":0},null,null,null,{"$f":"-ROUND((AM$176*0.75+AN$176*0.25)*AO39,0)","v":0},null,null,null,{"$f":"-ROUND((AQ$176*0.75+AR$176*0.25)*AS39,0)","v":0},null,null,null,{"$f":"-ROUND((AU$176*0.75+AV$176*0.25)*AW39,0)","v":0},null,null,null,{"$f":"-ROUND((AY$176*0.75+AZ$176*0.25)*BA39,0)","v":0},null,null,null,null,null,{"$f":"+IF(BE177<>0,+BE177,+I177+M177+Q177+U177+Y177+AC177+AG177+AK177+AO177+AS177+AW177+BA177)","v":0}]
["oui"]
["non"]
["non",null,"Total de l'allocation de base",null,null,null,null,null,{"$f":"I173+I177","v":0},null,null,null,{"$f":"M173+M177","v":0},null,null,null,{"$f":"Q173+Q177","v":0},null,null,null,{"$f":"U173+U177","v":0},null,null,null,{"$f":"Y173+Y177","v":0},null,null,null,{"$f":"AC173+AC177","v":0},null,null,null,{"$f":"AG173+AG177","v":0},null,null,null,{"$f":"AK173+AK177","v":0},null,null,null,{"$f":"AO173+AO177","v":0},null,null,null,{"$f":"AS173+AS177","v":0},null,null,null,{"$f":"AW173+AW177","v":0},null,null,null,{"$f":"BA173+BA177","v":0},null,null,null,null,null,{"$f":"BG173+BG177","v":0}]
["non"]
["oui"]
["non",null,"Allocations supplémentaires"]
["oui"]
["non",null,"Allocation pour l'intégration en service de garde (AISG)"]
["oui",null,null,null,null,null,"Inscription AISG - Volet A - CPE","AISG ( récurrent) -  Volet B - CPE",null,null,"Inscription AISG - Volet A - CPE","AISG ( récurrent) -  Volet B - CPE",null,null,"Inscription AISG - Volet A - CPE","AISG ( récurrent) -  Volet B - CPE",null,null,"Inscription AISG - Volet A - CPE","AISG ( récurrent) -  Volet B - CPE",null,null,"Inscription AISG - Volet A - CPE","AISG ( récurrent) -  Volet B - CPE",null,null,"Inscription AISG - Volet A - CPE","AISG ( récurrent) -  Volet B - CPE",null,null,"Inscription AISG - Volet A - CPE","AISG ( récurrent) -  Volet B - CPE",null,null,"Inscription AISG - Volet A - CPE","AISG ( récurrent) -  Volet B - CPE",null,null,"Inscription AISG - Volet A - CPE","AISG ( récurrent) -  Volet B - CPE",null,null,"Inscription AISG - Volet A - CPE","AISG ( récurrent) -  Volet B - CPE",null,null,"Inscription AISG - Volet A - CPE","AISG ( récurrent) -  Volet B - CPE",null,null,"Inscription AISG - Volet A - CPE","AISG ( récurrent) -  Volet B - CPE"]
["oui",null,null,null,null,null,{"$f":"INDEX(Barème!$B$5:$XFD$9234,_xlfn.XMATCH('Calcul-Subv-CPE'!G186,Barème!$B$5:$B$9234),_xlfn.XMATCH($E$17,Barème!$B$4:$XFD$4))","v":2200},{"$f":"INDEX(Barème!$B$5:$XFD$9234,_xlfn.XMATCH('Calcul-Subv-CPE'!H186,Barème!$B$5:$B$9234),_xlfn.XMATCH($E$17,Barème!$B$4:$XFD$4))","v":50.77},null,null,{"$f":"INDEX(Barème!$B$5:$XFD$9234,_xlfn.XMATCH('Calcul-Subv-CPE'!K186,Barème!$B$5:$B$9234),_xlfn.XMATCH($E$17,Barème!$B$4:$XFD$4))","v":2200},{"$f":"INDEX(Barème!$B$5:$XFD$9234,_xlfn.XMATCH('Calcul-Subv-CPE'!L186,Barème!$B$5:$B$9234),_xlfn.XMATCH($E$17,Barème!$B$4:$XFD$4))","v":50.77},null,null,{"$f":"INDEX(Barème!$B$5:$XFD$9234,_xlfn.XMATCH('Calcul-Subv-CPE'!O186,Barème!$B$5:$B$9234),_xlfn.XMATCH($E$17,Barème!$B$4:$XFD$4))","v":2200},{"$f":"INDEX(Barème!$B$5:$XFD$9234,_xlfn.XMATCH('Calcul-Subv-CPE'!P186,Barème!$B$5:$B$9234),_xlfn.XMATCH($E$17,Barème!$B$4:$XFD$4))","v":50.77},null,null,{"$f":"INDEX(Barème!$B$5:$XFD$9234,_xlfn.XMATCH('Calcul-Subv-CPE'!S186,Barème!$B$5:$B$9234),_xlfn.XMATCH($E$17,Barème!$B$4:$XFD$4))","v":2200},{"$f":"INDEX(Barème!$B$5:$XFD$9234,_xlfn.XMATCH('Calcul-Subv-CPE'!T186,Barème!$B$5:$B$9234),_xlfn.XMATCH($E$17,Barème!$B$4:$XFD$4))","v":50.77},null,null,{"$f":"INDEX(Barème!$B$5:$XFD$9234,_xlfn.XMATCH('Calcul-Subv-CPE'!W186,Barème!$B$5:$B$9234),_xlfn.XMATCH($E$17,Barème!$B$4:$XFD$4))","v":2200},{"$f":"INDEX(Barème!$B$5:$XFD$9234,_xlfn.XMATCH('Calcul-Subv-CPE'!X186,Barème!$B$5:$B$9234),_xlfn.XMATCH($E$17,Barème!$B$4:$XFD$4))","v":50.77},null,null,{"$f":"INDEX(Barème!$B$5:$XFD$9234,_xlfn.XMATCH('Calcul-Subv-CPE'!AA186,Barème!$B$5:$B$9234),_xlfn.XMATCH($E$17,Barème!$B$4:$XFD$4))","v":2200},{"$f":"INDEX(Barème!$B$5:$XFD$9234,_xlfn.XMATCH('Calcul-Subv-CPE'!AB186,Barème!$B$5:$B$9234),_xlfn.XMATCH($E$17,Barème!$B$4:$XFD$4))","v":50.77},null,null,{"$f":"INDEX(Barème!$B$5:$XFD$9234,_xlfn.XMATCH('Calcul-Subv-CPE'!AE186,Barème!$B$5:$B$9234),_xlfn.XMATCH($E$17,Barème!$B$4:$XFD$4))","v":2200},{"$f":"INDEX(Barème!$B$5:$XFD$9234,_xlfn.XMATCH('Calcul-Subv-CPE'!AF186,Barème!$B$5:$B$9234),_xlfn.XMATCH($E$17,Barème!$B$4:$XFD$4))","v":50.77},null,null,{"$f":"INDEX(Barème!$B$5:$XFD$9234,_xlfn.XMATCH('Calcul-Subv-CPE'!AI186,Barème!$B$5:$B$9234),_xlfn.XMATCH($E$17,Barème!$B$4:$XFD$4))","v":2200},{"$f":"INDEX(Barème!$B$5:$XFD$9234,_xlfn.XMATCH('Calcul-Subv-CPE'!AJ186,Barème!$B$5:$B$9234),_xlfn.XMATCH($E$17,Barème!$B$4:$XFD$4))","v":50.77},null,null,{"$f":"INDEX(Barème!$B$5:$XFD$9234,_xlfn.XMATCH('Calcul-Subv-CPE'!AM186,Barème!$B$5:$B$9234),_xlfn.XMATCH($E$17,Barème!$B$4:$XFD$4))","v":2200},{"$f":"INDEX(Barème!$B$5:$XFD$9234,_xlfn.XMATCH('Calcul-Subv-CPE'!AN186,Barème!$B$5:$B$9234),_xlfn.XMATCH($E$17,Barème!$B$4:$XFD$4))","v":50.77},null,null,{"$f":"INDEX(Barème!$B$5:$XFD$9234,_xlfn.XMATCH('Calcul-Subv-CPE'!AQ186,Barème!$B$5:$B$9234),_xlfn.XMATCH($E$17,Barème!$B$4:$XFD$4))","v":2200},{"$f":"INDEX(Barème!$B$5:$XFD$9234,_xlfn.XMATCH('Calcul-Subv-CPE'!AR186,Barème!$B$5:$B$9234),_xlfn.XMATCH($E$17,Barème!$B$4:$XFD$4))","v":50.77},null,null,{"$f":"INDEX(Barème!$B$5:$XFD$9234,_xlfn.XMATCH('Calcul-Subv-CPE'!AU186,Barème!$B$5:$B$9234),_xlfn.XMATCH($E$17,Barème!$B$4:$XFD$4))","v":2200},{"$f":"INDEX(Barème!$B$5:$XFD$9234,_xlfn.XMATCH('Calcul-Subv-CPE'!AV186,Barème!$B$5:$B$9234),_xlfn.XMATCH($E$17,Barème!$B$4:$XFD$4))","v":50.77},null,null,{"$f":"INDEX(Barème!$B$5:$XFD$9234,_xlfn.XMATCH('Calcul-Subv-CPE'!AY186,Barème!$B$5:$B$9234),_xlfn.XMATCH($E$17,Barème!$B$4:$XFD$4))","v":2200},{"$f":"INDEX(Barème!$B$5:$XFD$9234,_xlfn.XMATCH('Calcul-Subv-CPE'!AZ186,Barème!$B$5:$B$9234),_xlfn.XMATCH($E$17,Barème!$B$4:$XFD$4))","v":50.77}]
["oui",null,"Nombre d'enfants AISG inscrits ayant déjà obtenu le montant forfaitaire",null,null,null,"Non requis pour calcul",null,0,null,"Non requis pour calcul",null,0,null,"Non requis pour calcul",null,0,null,"Non requis pour calcul",null,0,null,"Non requis pour calcul",null,0,null,"Non requis pour calcul",null,0,null,"Non requis pour calcul",null,0,null,"Non requis pour calcul",null,0,null,"Non requis pour calcul",null,0,null,"Non requis pour calcul",null,0,null,"Non requis pour calcul",null,0,null,"Non requis pour calcul",null,0,null,null,null,null,null,0]
["non"]
["non",null,"Nombre d'enfants enregistrés pour la première fois à l'AISG depuis le 1er avril",null,{"$f":"+\"Permet de calculer le montant forfaitaire unique de \"&+LEFT(G187,1)&\" \"&RIGHT(G187,3)&\" $ lors d'une nouvelle admissibilité\"","v":"Permet de calculer le montant forfaitaire unique de 2 200 $ lors d'une nouvelle admissibilité"},null,null,null,null,null,null,null,null,null,null,null,null,null,null,null,null,null,null,null,null,null,null,null,null,null,null,null,null,null,null,null,null,null,null,null,null,null,null,null,null,null,null,null,null,null,null,null,null,null,null,null,null,null,{"$f":"+IF(BE190<>0,+BE190,+I190+M190+Q190+U190+Y190+AC190+AG190+AK190+AO190+AS190+AW190+BA190)","v":0}]
["non"]
["oui",null,"Montant forfaitaire (auparavant nommé Volet A)",null,null,null,null,null,{"$f":"ROUND(G187*I190,2)","v":0},null,null,null,{"$f":"ROUND(K187*M190,2)","v":0},null,null,null,{"$f":"ROUND(O187*Q190,2)","v":0},null,null,null,{"$f":"ROUND(S187*U190,2)","v":0},null,null,null,{"$f":"ROUND(W187*Y190,2)","v":0},null,null,null,{"$f":"ROUND(AA187*AC190,2)","v":0},null,null,null,{"$f":"ROUND(AE187*AG190,2)","v":0},null,null,null,{"$f":"ROUND(AI187*AK190,2)","v":0},null,null,null,{"$f":"ROUND(AM187*AO190,2)","v":0},null,null,null,{"$f":"ROUND(AQ187*AS190,2)","v":0},null,null,null,{"$f":"ROUND(AU187*AW190,2)","v":0},null,null,null,{"$f":"ROUND(AY187*BA190,2)","v":0},null,null,null,null,null,{"$f":"ROUND(BE187*BG190,2)","v":0}]
["non",null,"Jours d'occupation de tous les enfants admissibles à l'AISG",null,null,null,null,null,null,null,null,null,null,null,null,null,null,null,null,null,null,null,null,null,null,null,null,null,null,null,null,null,null,null,null,null,null,null,null,null,null,null,null,null,null,null,null,null,null,null,null,null,null,null,null,null,null,null,{"$f":"+IF(BE193<>0,+BE193,+I193+M193+Q193+U193+Y193+AC193+AG193+AK193+AO193+AS193+AW193+BA193)","v":0}]
["oui",null,"Taux de présence AISG",null,null,null,"Hypothèse, OK avec OB le 11 fév. 2025",null,{"$f":"IF(I$39=0,0,ROUND(+I$51/I$39,4))","v":0},null,"Hypothèse, OK avec OB le 11 fév. 2025",null,{"$f":"IF(M$39=0,0,ROUND(+M$51/M$39,4))","v":0},null,"Hypothèse, OK avec OB le 11 fév. 2025",null,{"$f":"IF(Q$39=0,0,ROUND(+Q$51/Q$39,4))","v":0},null,"Hypothèse, OK avec OB le 11 fév. 2025",null,{"$f":"IF(U$39=0,0,ROUND(+U$51/U$39,4))","v":0},null,"Hypothèse, OK avec OB le 11 fév. 2025",null,{"$f":"IF(Y$39=0,0,ROUND(+Y$51/Y$39,4))","v":0},null,"Hypothèse, OK avec OB le 11 fév. 2025",null,{"$f":"IF(AC$39=0,0,ROUND(+AC$51/AC$39,4))","v":0},null,"Hypothèse, OK avec OB le 11 fév. 2025",null,{"$f":"IF(AG$39=0,0,ROUND(+AG$51/AG$39,4))","v":0},null,"Hypothèse, OK avec OB le 11 fév. 2025",null,{"$f":"IF(AK$39=0,0,ROUND(+AK$51/AK$39,4))","v":0},null,"Hypothèse, OK avec OB le 11 fév. 2025",null,{"$f":"IF(AO$39=0,0,ROUND(+AO$51/AO$39,4))","v":0},null,"Hypothèse, OK avec OB le 11 fév. 2025",null,{"$f":"IF(AS$39=0,0,ROUND(+AS$51/AS$39,4))","v":0},null,"Hypothèse, OK avec OB le 11 fév. 2025",null,{"$f":"IF(AW$39=0,0,ROUND(+AW$51/AW$39,4))","v":0},null,"Hypothèse, OK avec OB le 11 fév. 2025",null,{"$f":"IF(BA$39=0,0,ROUND(+BA$51/BA$39,4))","v":0}]
["oui",null,"Jours de présence des enfants admissibles à l'AISG",null,null,null,null,null,{"$f":"+ROUND(I193*I194,1)","v":0},null,null,null,{"$f":"+ROUND(M193*M194,1)","v":0},null,null,null,{"$f":"+ROUND(Q193*Q194,1)","v":0},null,null,null,{"$f":"+ROUND(U193*U194,1)","v":0},null,null,null,{"$f":"+ROUND(Y193*Y194,1)","v":0},null,null,null,{"$f":"+ROUND(AC193*AC194,1)","v":0},null,null,null,{"$f":"+ROUND(AG193*AG194,1)","v":0},null,null,null,{"$f":"+ROUND(AK193*AK194,1)","v":0},null,null,null,{"$f":"+ROUND(AO193*AO194,1)","v":0},null,null,null,{"$f":"+ROUND(AS193*AS194,1)","v":0},null,null,null,{"$f":"+ROUND(AW193*AW194,1)","v":0},null,null,null,{"$f":"+ROUND(BA193*BA194,1)","v":0},null,null,null,null,null,{"$f":"+BG193","v":0}]
["oui",null,"Montant récurrent (auparavant nommé Volet B)",null,null,null,null,null,{"$f":"ROUND(H$187*I193,0)","v":0},null,null,null,{"$f":"ROUND(L$187*M193,0)","v":0},null,null,null,{"$f":"ROUND(P$187*Q193,0)","v":0},null,null,null,{"$f":"ROUND(T$187*U193,0)","v":0},null,null,null,{"$f":"ROUND(X$187*Y193,0)","v":0},null,null,null,{"$f":"ROUND(AB$187*AC193,0)","v":0},null,null,null,{"$f":"ROUND(AF$187*AG193,0)","v":0},null,null,null,{"$f":"ROUND(AJ$187*AK193,0)","v":0},null,null,null,{"$f":"ROUND(AN$187*AO193,0)","v":0},null,null,null,{"$f":"ROUND(AR$187*AS193,0)","v":0},null,null,null,{"$f":"ROUND(AV$187*AW193,0)","v":0},null,null,null,{"$f":"ROUND(AZ$187*BA193,0)","v":0},null,null,null,null,null,{"$f":"ROUND(BF$187*BG193,0)","v":0}]
["oui"]
["non",null,"Allocation – Intégration en service de garde (AISG)",null,null,null,null,null,{"$f":"I196+I192","v":0},null,null,null,{"$f":"M196+M192","v":0},null,null,null,{"$f":"Q196+Q192","v":0},null,null,null,{"$f":"U196+U192","v":0},null,null,null,{"$f":"Y196+Y192","v":0},null,null,null,{"$f":"AC196+AC192","v":0},null,null,null,{"$f":"AG196+AG192","v":0},null,null,null,{"$f":"AK196+AK192","v":0},null,null,null,{"$f":"AO196+AO192","v":0},null,null,null,{"$f":"AS196+AS192","v":0},null,null,null,{"$f":"AW196+AW192","v":0},null,null,null,{"$f":"BA196+BA192","v":0},null,null,null,null,null,{"$f":"+IF(BE198<>0,+BE198,+I198+M198+Q198+U198+Y198+AC198+AG198+AK198+AO198+AS198+AW198+BA198)","v":0}]
["non"]
["oui",null,"Allocation Protocole CPE-CISSS/CIUSSS",null,null,null,"0-17 mois (protocole) - CPE","18 mois et plus (protocole) - CPE",null,null,"0-17 mois (protocole) - CPE","18 mois et plus (protocole) - CPE",null,null,"0-17 mois (protocole) - CPE","18 mois et plus (protocole) - CPE",null,null,"0-17 mois (protocole) - CPE","18 mois et plus (protocole) - CPE",null,null,"0-17 mois (protocole) - CPE","18 mois et plus (protocole) - CPE",null,null,"0-17 mois (protocole) - CPE","18 mois et plus (protocole) - CPE",null,null,"0-17 mois (protocole) - CPE","18 mois et plus (protocole) - CPE",null,null,"0-17 mois (protocole) - CPE","18 mois et plus (protocole) - CPE",null,null,"0-17 mois (protocole) - CPE","18 mois et plus (protocole) - CPE",null,null,"0-17 mois (protocole) - CPE","18 mois et plus (protocole) - CPE",null,null,"0-17 mois (protocole) - CPE","18 mois et plus (protocole) - CPE",null,null,"0-17 mois (protocole) - CPE","18 mois et plus (protocole) - CPE"]
["oui",null,null,null,null,null,{"$f":"INDEX(Barème!$B$5:$XFD$9234,_xlfn.XMATCH('Calcul-Subv-CPE'!G200,Barème!$B$5:$B$9234),_xlfn.XMATCH($E$17,Barème!$B$4:$XFD$4))","v":75.540000000000006},{"$f":"INDEX(Barème!$B$5:$XFD$9234,_xlfn.XMATCH('Calcul-Subv-CPE'!H200,Barème!$B$5:$B$9234),_xlfn.XMATCH($E$17,Barème!$B$4:$XFD$4))","v":50.77},null,null,{"$f":"INDEX(Barème!$B$5:$XFD$9234,_xlfn.XMATCH('Calcul-Subv-CPE'!K200,Barème!$B$5:$B$9234),_xlfn.XMATCH($E$17,Barème!$B$4:$XFD$4))","v":75.540000000000006},{"$f":"INDEX(Barème!$B$5:$XFD$9234,_xlfn.XMATCH('Calcul-Subv-CPE'!L200,Barème!$B$5:$B$9234),_xlfn.XMATCH($E$17,Barème!$B$4:$XFD$4))","v":50.77},null,null,{"$f":"INDEX(Barème!$B$5:$XFD$9234,_xlfn.XMATCH('Calcul-Subv-CPE'!O200,Barème!$B$5:$B$9234),_xlfn.XMATCH($E$17,Barème!$B$4:$XFD$4))","v":75.540000000000006},{"$f":"INDEX(Barème!$B$5:$XFD$9234,_xlfn.XMATCH('Calcul-Subv-CPE'!P200,Barème!$B$5:$B$9234),_xlfn.XMATCH($E$17,Barème!$B$4:$XFD$4))","v":50.77},null,null,{"$f":"INDEX(Barème!$B$5:$XFD$9234,_xlfn.XMATCH('Calcul-Subv-CPE'!S200,Barème!$B$5:$B$9234),_xlfn.XMATCH($E$17,Barème!$B$4:$XFD$4))","v":75.540000000000006},{"$f":"INDEX(Barème!$B$5:$XFD$9234,_xlfn.XMATCH('Calcul-Subv-CPE'!T200,Barème!$B$5:$B$9234),_xlfn.XMATCH($E$17,Barème!$B$4:$XFD$4))","v":50.77},null,null,{"$f":"INDEX(Barème!$B$5:$XFD$9234,_xlfn.XMATCH('Calcul-Subv-CPE'!W200,Barème!$B$5:$B$9234),_xlfn.XMATCH($E$17,Barème!$B$4:$XFD$4))","v":75.540000000000006},{"$f":"INDEX(Barème!$B$5:$XFD$9234,_xlfn.XMATCH('Calcul-Subv-CPE'!X200,Barème!$B$5:$B$9234),_xlfn.XMATCH($E$17,Barème!$B$4:$XFD$4))","v":50.77},null,null,{"$f":"INDEX(Barème!$B$5:$XFD$9234,_xlfn.XMATCH('Calcul-Subv-CPE'!AA200,Barème!$B$5:$B$9234),_xlfn.XMATCH($E$17,Barème!$B$4:$XFD$4))","v":75.540000000000006},{"$f":"INDEX(Barème!$B$5:$XFD$9234,_xlfn.XMATCH('Calcul-Subv-CPE'!AB200,Barème!$B$5:$B$9234),_xlfn.XMATCH($E$17,Barème!$B$4:$XFD$4))","v":50.77},null,null,{"$f":"INDEX(Barème!$B$5:$XFD$9234,_xlfn.XMATCH('Calcul-Subv-CPE'!AE200,Barème!$B$5:$B$9234),_xlfn.XMATCH($E$17,Barème!$B$4:$XFD$4))","v":75.540000000000006},{"$f":"INDEX(Barème!$B$5:$XFD$9234,_xlfn.XMATCH('Calcul-Subv-CPE'!AF200,Barème!$B$5:$B$9234),_xlfn.XMATCH($E$17,Barème!$B$4:$XFD$4))","v":50.77},null,null,{"$f":"INDEX(Barème!$B$5:$XFD$9234,_xlfn.XMATCH('Calcul-Subv-CPE'!AI200,Barème!$B$5:$B$9234),_xlfn.XMATCH($E$17,Barème!$B$4:$XFD$4))","v":75.540000000000006},{"$f":"INDEX(Barème!$B$5:$XFD$9234,_xlfn.XMATCH('Calcul-Subv-CPE'!AJ200,Barème!$B$5:$B$9234),_xlfn.XMATCH($E$17,Barème!$B$4:$XFD$4))","v":50.77},null,null,{"$f":"INDEX(Barème!$B$5:$XFD$9234,_xlfn.XMATCH('Calcul-Subv-CPE'!AM200,Barème!$B$5:$B$9234),_xlfn.XMATCH($E$17,Barème!$B$4:$XFD$4))","v":75.540000000000006},{"$f":"INDEX(Barème!$B$5:$XFD$9234,_xlfn.XMATCH('Calcul-Subv-CPE'!AN200,Barème!$B$5:$B$9234),_xlfn.XMATCH($E$17,Barème!$B$4:$XFD$4))","v":50.77},null,null,{"$f":"INDEX(Barème!$B$5:$XFD$9234,_xlfn.XMATCH('Calcul-Subv-CPE'!AQ200,Barème!$B$5:$B$9234),_xlfn.XMATCH($E$17,Barème!$B$4:$XFD$4))","v":75.540000000000006},{"$f":"INDEX(Barème!$B$5:$XFD$9234,_xlfn.XMATCH('Calcul-Subv-CPE'!AR200,Barème!$B$5:$B$9234),_xlfn.XMATCH($E$17,Barème!$B$4:$XFD$4))","v":50.77},null,null,{"$f":"INDEX(Barème!$B$5:$XFD$9234,_xlfn.XMATCH('Calcul-Subv-CPE'!AU200,Barème!$B$5:$B$9234),_xlfn.XMATCH($E$17,Barème!$B$4:$XFD$4))","v":75.540000000000006},{"$f":"INDEX(Barème!$B$5:$XFD$9234,_xlfn.XMATCH('Calcul-Subv-CPE'!AV200,Barème!$B$5:$B$9234),_xlfn.XMATCH($E$17,Barème!$B$4:$XFD$4))","v":50.77},null,null,{"$f":"INDEX(Barème!$B$5:$XFD$9234,_xlfn.XMATCH('Calcul-Subv-CPE'!AY200,Barème!$B$5:$B$9234),_xlfn.XMATCH($E$17,Barème!$B$4:$XFD$4))","v":75.540000000000006},{"$f":"INDEX(Barème!$B$5:$XFD$9234,_xlfn.XMATCH('Calcul-Subv-CPE'!AZ200,Barème!$B$5:$B$9234),_xlfn.XMATCH($E$17,Barème!$B$4:$XFD$4))","v":50.77}]
["oui",null,null,null,null,null,"Seuil du taux d'occupation (min)","Max de places annualisées",null,null,"Seuil du taux d'occupation (min)","Max de places annualisées",null,null,"Seuil du taux d'occupation (min)","Max de places annualisées",null,null,"Seuil du taux d'occupation (min)","Max de places annualisées",null,null,"Seuil du taux d'occupation (min)","Max de places annualisées",null,null,"Seuil du taux d'occupation (min)","Max de places annualisées",null,null,"Seuil du taux d'occupation (min)","Max de places annualisées",null,null,"Seuil du taux d'occupation (min)","Max de places annualisées",null,null,"Seuil du taux d'occupation (min)","Max de places annualisées",null,null,"Seuil du taux d'occupation (min)","Max de places annualisées",null,null,"Seuil du taux d'occupation (min)","Max de places annualisées",null,null,"Seuil du taux d'occupation (min)","Max de places annualisées"]
["oui",null,null,null,null,null,{"$f":"INDEX(Barème!$B$5:$XFD$9234,_xlfn.XMATCH('Calcul-Subv-CPE'!G202,Barème!$B$5:$B$9234),_xlfn.XMATCH($E$17,Barème!$B$4:$XFD$4))","v":0.9},{"$f":"INDEX(Barème!$B$5:$XFD$9234,_xlfn.XMATCH('Calcul-Subv-CPE'!H202,Barème!$B$5:$B$9234),_xlfn.XMATCH($E$17,Barème!$B$4:$XFD$4))","v":0.05},null,null,{"$f":"INDEX(Barème!$B$5:$XFD$9234,_xlfn.XMATCH('Calcul-Subv-CPE'!K202,Barème!$B$5:$B$9234),_xlfn.XMATCH($E$17,Barème!$B$4:$XFD$4))","v":0.9},{"$f":"INDEX(Barème!$B$5:$XFD$9234,_xlfn.XMATCH('Calcul-Subv-CPE'!L202,Barème!$B$5:$B$9234),_xlfn.XMATCH($E$17,Barème!$B$4:$XFD$4))","v":0.05},null,null,{"$f":"INDEX(Barème!$B$5:$XFD$9234,_xlfn.XMATCH('Calcul-Subv-CPE'!O202,Barème!$B$5:$B$9234),_xlfn.XMATCH($E$17,Barème!$B$4:$XFD$4))","v":0.9},{"$f":"INDEX(Barème!$B$5:$XFD$9234,_xlfn.XMATCH('Calcul-Subv-CPE'!P202,Barème!$B$5:$B$9234),_xlfn.XMATCH($E$17,Barème!$B$4:$XFD$4))","v":0.05},null,null,{"$f":"INDEX(Barème!$B$5:$XFD$9234,_xlfn.XMATCH('Calcul-Subv-CPE'!S202,Barème!$B$5:$B$9234),_xlfn.XMATCH($E$17,Barème!$B$4:$XFD$4))","v":0.9},{"$f":"INDEX(Barème!$B$5:$XFD$9234,_xlfn.XMATCH('Calcul-Subv-CPE'!T202,Barème!$B$5:$B$9234),_xlfn.XMATCH($E$17,Barème!$B$4:$XFD$4))","v":0.05},null,null,{"$f":"INDEX(Barème!$B$5:$XFD$9234,_xlfn.XMATCH('Calcul-Subv-CPE'!W202,Barème!$B$5:$B$9234),_xlfn.XMATCH($E$17,Barème!$B$4:$XFD$4))","v":0.9},{"$f":"INDEX(Barème!$B$5:$XFD$9234,_xlfn.XMATCH('Calcul-Subv-CPE'!X202,Barème!$B$5:$B$9234),_xlfn.XMATCH($E$17,Barème!$B$4:$XFD$4))","v":0.05},null,null,{"$f":"INDEX(Barème!$B$5:$XFD$9234,_xlfn.XMATCH('Calcul-Subv-CPE'!AA202,Barème!$B$5:$B$9234),_xlfn.XMATCH($E$17,Barème!$B$4:$XFD$4))","v":0.9},{"$f":"INDEX(Barème!$B$5:$XFD$9234,_xlfn.XMATCH('Calcul-Subv-CPE'!AB202,Barème!$B$5:$B$9234),_xlfn.XMATCH($E$17,Barème!$B$4:$XFD$4))","v":0.05},null,null,{"$f":"INDEX(Barème!$B$5:$XFD$9234,_xlfn.XMATCH('Calcul-Subv-CPE'!AE202,Barème!$B$5:$B$9234),_xlfn.XMATCH($E$17,Barème!$B$4:$XFD$4))","v":0.9},{"$f":"INDEX(Barème!$B$5:$XFD$9234,_xlfn.XMATCH('Calcul-Subv-CPE'!AF202,Barème!$B$5:$B$9234),_xlfn.XMATCH($E$17,Barème!$B$4:$XFD$4))","v":0.05},null,null,{"$f":"INDEX(Barème!$B$5:$XFD$9234,_xlfn.XMATCH('Calcul-Subv-CPE'!AI202,Barème!$B$5:$B$9234),_xlfn.XMATCH($E$17,Barème!$B$4:$XFD$4))","v":0.9},{"$f":"INDEX(Barème!$B$5:$XFD$9234,_xlfn.XMATCH('Calcul-Subv-CPE'!AJ202,Barème!$B$5:$B$9234),_xlfn.XMATCH($E$17,Barème!$B$4:$XFD$4))","v":0.05},null,null,{"$f":"INDEX(Barème!$B$5:$XFD$9234,_xlfn.XMATCH('Calcul-Subv-CPE'!AM202,Barème!$B$5:$B$9234),_xlfn.XMATCH($E$17,Barème!$B$4:$XFD$4))","v":0.9},{"$f":"INDEX(Barème!$B$5:$XFD$9234,_xlfn.XMATCH('Calcul-Subv-CPE'!AN202,Barème!$B$5:$B$9234),_xlfn.XMATCH($E$17,Barème!$B$4:$XFD$4))","v":0.05},null,null,{"$f":"INDEX(Barème!$B$5:$XFD$9234,_xlfn.XMATCH('Calcul-Subv-CPE'!AQ202,Barème!$B$5:$B$9234),_xlfn.XMATCH($E$17,Barème!$B$4:$XFD$4))","v":0.9},{"$f":"INDEX(Barème!$B$5:$XFD$9234,_xlfn.XMATCH('Calcul-Subv-CPE'!AR202,Barème!$B$5:$B$9234),_xlfn.XMATCH($E$17,Barème!$B$4:$XFD$4))","v":0.05},null,null,{"$f":"INDEX(Barème!$B$5:$XFD$9234,_xlfn.XMATCH('Calcul-Subv-CPE'!AU202,Barème!$B$5:$B$9234),_xlfn.XMATCH($E$17,Barème!$B$4:$XFD$4))","v":0.9},{"$f":"INDEX(Barème!$B$5:$XFD$9234,_xlfn.XMATCH('Calcul-Subv-CPE'!AV202,Barème!$B$5:$B$9234),_xlfn.XMATCH($E$17,Barème!$B$4:$XFD$4))","v":0.05},null,null,{"$f":"INDEX(Barème!$B$5:$XFD$9234,_xlfn.XMATCH('Calcul-Subv-CPE'!AY202,Barème!$B$5:$B$9234),_xlfn.XMATCH($E$17,Barème!$B$4:$XFD$4))","v":0.9},{"$f":"INDEX(Barème!$B$5:$XFD$9234,_xlfn.XMATCH('Calcul-Subv-CPE'!AZ202,Barème!$B$5:$B$9234),_xlfn.XMATCH($E$17,Barème!$B$4:$XFD$4))","v":0.05}]
["non",null,"Allocation compensatoire liée au protocole CISSS/ CIUSSS"]
["non",null,"Uniquement si vous avez l'information concernant votre promesse de subvention, sinon inscrivez 0. "]
["non",null,{"$f":"+\"Pour être admissible, le taux d'occuppation doit être au-delà du seuil de \"&G203*100&\" %.\"","v":"Pour être admissible, le taux d'occuppation doit être au-delà du seuil de 90 %."}]
["oui",null,"Nombre de places réservées 0-17 mois",null,null,null,"Sera fait plus tard",null,null,null,"Sera fait plus tard",null,null,null,"Sera fait plus tard",null,null,null,"Sera fait plus tard",null,null,null,"Sera fait plus tard",null,null,null,"Sera fait plus tard",null,null,null,"Sera fait plus tard",null,null,null,"Sera fait plus tard",null,null,null,"Sera fait plus tard",null,null,null,"Sera fait plus tard",null,null,null,"Sera fait plus tard",null,null,null,"Sera fait plus tard",null,null,null,null,null,null,null,{"$f":"+IF(BE207<>0,+BE207,+I207+M207+Q207+U207+Y207+AC207+AG207+AK207+AO207+AS207+AW207+BA207)","v":0}]
["oui"]
["oui",null,"Nombre de places réservées 18 mois et plus",null,null,null,"Sera fait plus tard",null,null,null,"Sera fait plus tard",null,null,null,"Sera fait plus tard",null,null,null,"Sera fait plus tard",null,null,null,"Sera fait plus tard",null,null,null,"Sera fait plus tard",null,null,null,"Sera fait plus tard",null,null,null,"Sera fait plus tard",null,null,null,"Sera fait plus tard",null,null,null,"Sera fait plus tard",null,null,null,"Sera fait plus tard",null,null,null,"Sera fait plus tard",null,null,null,null,null,null,null,{"$f":"+IF(BE209<>0,+BE209,+I209+M209+Q209+U209+Y209+AC209+AG209+AK209+AO209+AS209+AW209+BA209)","v":0}]
["oui"]
["non",null,"Jours réservés protocole 0 à 17 mois",null,null,null,null,null,null,null,null,null,null,null,null,null,null,null,null,null,null,null,null,null,null,null,null,null,null,null,null,null,null,null,null,null,null,null,null,null,null,null,null,null,null,null,null,null,null,null,null,null,null,null,null,null,null,null,{"$f":"+IF(BE211<>0,+BE211,+I211+M211+Q211+U211+Y211+AC211+AG211+AK211+AO211+AS211+AW211+BA211)","v":0}]
["non"]
["non",null,"Jours réservés occupés protocole 0 à 17 mois",null,null,null,null,null,null,null,null,null,null,null,null,null,null,null,null,null,null,null,null,null,null,null,null,null,null,null,null,null,null,null,null,null,null,null,null,null,null,null,null,null,null,null,null,null,null,null,null,null,null,null,null,null,null,null,{"$f":"+IF(BE213<>0,+BE213,+I213+M213+Q213+U213+Y213+AC213+AG213+AK213+AO213+AS213+AW213+BA213)","v":0}]
["oui",null,"Jours réservés non occupés 0-17 mois",null,null,null,"Erreur","mot Indiqué si occupé > réservé",{"$f":"IF(I211-I213>=0,I211-I213,G214)","v":0},null,"Erreur","mot Indiqué si occupé > réservé",{"$f":"IF(M211-M213>=0,M211-M213,K214)","v":0},null,"Erreur","mot Indiqué si occupé > réservé",{"$f":"IF(Q211-Q213>=0,Q211-Q213,O214)","v":0},null,"Erreur","mot Indiqué si occupé > réservé",{"$f":"IF(U211-U213>=0,U211-U213,S214)","v":0},null,"Erreur","mot Indiqué si occupé > réservé",{"$f":"IF(Y211-Y213>=0,Y211-Y213,W214)","v":0},null,"Erreur","mot Indiqué si occupé > réservé",{"$f":"IF(AC211-AC213>=0,AC211-AC213,AA214)","v":0},null,"Erreur","mot Indiqué si occupé > réservé",{"$f":"IF(AG211-AG213>=0,AG211-AG213,AE214)","v":0},null,"Erreur","mot Indiqué si occupé > réservé",{"$f":"IF(AK211-AK213>=0,AK211-AK213,AI214)","v":0},null,"Erreur","mot Indiqué si occupé > réservé",{"$f":"IF(AO211-AO213>=0,AO211-AO213,AM214)","v":0},null,"Erreur","mot Indiqué si occupé > réservé",{"$f":"IF(AS211-AS213>=0,AS211-AS213,AQ214)","v":0},null,"Erreur","mot Indiqué si occupé > réservé",{"$f":"IF(AW211-AW213>=0,AW211-AW213,AU214)","v":0},null,"Erreur","mot Indiqué si occupé > réservé",{"$f":"IF(BA211-BA213>=0,BA211-BA213,AY214)","v":0}]
["non"]
["non",null,"Jours réservés protocole 18 mois et plus",null,null,null,null,null,null,null,null,null,null,null,null,null,null,null,null,null,null,null,null,null,null,null,null,null,null,null,null,null,null,null,null,null,null,null,null,null,null,null,null,null,null,null,null,null,null,null,null,null,null,null,null,null,null,null,{"$f":"+IF(BE216<>0,+BE216,+I216+M216+Q216+U216+Y216+AC216+AG216+AK216+AO216+AS216+AW216+BA216)","v":0}]
["non"]
["non",null,"Jours réservés occupés protocole 18 mois et plus",null,null,null,null,null,null,null,null,null,null,null,null,null,null,null,null,null,null,null,null,null,null,null,null,null,null,null,null,null,null,null,null,null,null,null,null,null,null,null,null,null,null,null,null,null,null,null,null,null,null,null,null,null,null,null,{"$f":"+IF(BE218<>0,+BE218,+I218+M218+Q218+U218+Y218+AC218+AG218+AK218+AO218+AS218+AW218+BA218)","v":0}]
["non"]
["oui",null,"Jours réservés non occupés - 18 mois et plus",null,null,null,"Erreur","mot Indiqué si occupé > réservé",{"$f":"IF(I216-I218>=0,I216-I218,G220)","v":0},null,"Erreur","mot Indiqué si occupé > réservé",{"$f":"IF(M216-M218>=0,M216-M218,K220)","v":0},null,"Erreur","mot Indiqué si occupé > réservé",{"$f":"IF(Q216-Q218>=0,Q216-Q218,O220)","v":0},null,"Erreur","mot Indiqué si occupé > réservé",{"$f":"IF(U216-U218>=0,U216-U218,S220)","v":0},null,"Erreur","mot Indiqué si occupé > réservé",{"$f":"IF(Y216-Y218>=0,Y216-Y218,W220)","v":0},null,"Erreur","mot Indiqué si occupé > réservé",{"$f":"IF(AC216-AC218>=0,AC216-AC218,AA220)","v":0},null,"Erreur","mot Indiqué si occupé > réservé",{"$f":"IF(AG216-AG218>=0,AG216-AG218,AE220)","v":0},null,"Erreur","mot Indiqué si occupé > réservé",{"$f":"IF(AK216-AK218>=0,AK216-AK218,AI220)","v":0},null,"Erreur","mot Indiqué si occupé > réservé",{"$f":"IF(AO216-AO218>=0,AO216-AO218,AM220)","v":0},null,"Erreur","mot Indiqué si occupé > réservé",{"$f":"IF(AS216-AS218>=0,AS216-AS218,AQ220)","v":0},null,"Erreur","mot Indiqué si occupé > réservé",{"$f":"IF(AW216-AW218>=0,AW216-AW218,AU220)","v":0},null,"Erreur","mot Indiqué si occupé > réservé",{"$f":"IF(BA216-BA218>=0,BA216-BA218,AY220)","v":0}]
["oui",null,"Allocation Protocole Gard-CISSS/CIUSSS",null,null,null,null,null,{"$f":"IF(I39=0,0,IF(I214=G214,0,IF(I220=G220,0,IF(I57>=G$203,(I214*G$201+I220*H$201),0))))","v":0},null,null,null,{"$f":"IF(M39=0,0,IF(M214=K214,0,IF(M220=K220,0,IF(M57>=K$203,(M214*K$201+M220*L$201),0))))","v":0},null,null,null,{"$f":"IF(Q39=0,0,IF(Q214=O214,0,IF(Q220=O220,0,IF(Q57>=O$203,(Q214*O$201+Q220*P$201),0))))","v":0},null,null,null,{"$f":"IF(U39=0,0,IF(U214=S214,0,IF(U220=S220,0,IF(U57>=S$203,(U214*S$201+U220*T$201),0))))","v":0},null,null,null,{"$f":"IF(Y39=0,0,IF(Y214=W214,0,IF(Y220=W220,0,IF(Y57>=W$203,(Y214*W$201+Y220*X$201),0))))","v":0},null,null,null,{"$f":"IF(AC39=0,0,IF(AC214=AA214,0,IF(AC220=AA220,0,IF(AC57>=AA$203,(AC214*AA$201+AC220*AB$201),0))))","v":0},null,null,null,{"$f":"IF(AG39=0,0,IF(AG214=AE214,0,IF(AG220=AE220,0,IF(AG57>=AE$203,(AG214*AE$201+AG220*AF$201),0))))","v":0},null,null,null,{"$f":"IF(AK39=0,0,IF(AK214=AI214,0,IF(AK220=AI220,0,IF(AK57>=AI$203,(AK214*AI$201+AK220*AJ$201),0))))","v":0},null,null,null,{"$f":"IF(AO39=0,0,IF(AO214=AM214,0,IF(AO220=AM220,0,IF(AO57>=AM$203,(AO214*AM$201+AO220*AN$201),0))))","v":0},null,null,null,{"$f":"IF(AS39=0,0,IF(AS214=AQ214,0,IF(AS220=AQ220,0,IF(AS57>=AQ$203,(AS214*AQ$201+AS220*AR$201),0))))","v":0},null,null,null,{"$f":"IF(AW39=0,0,IF(AW214=AU214,0,IF(AW220=AU220,0,IF(AW57>=AU$203,(AW214*AU$201+AW220*AV$201),0))))","v":0},null,null,null,{"$f":"IF(BA39=0,0,IF(BA214=AY214,0,IF(BA220=AY220,0,IF(BA57>=AY$203,(BA214*AY$201+BA220*AZ$201),0))))","v":0}]
["oui",null,"Application de la restriction du max de places annualisées",null,null,null,"Sera fait plus tard",null,null,null,"Sera fait plus tard",null,null,null,"Sera fait plus tard",null,null,null,"Sera fait plus tard",null,null,null,"Sera fait plus tard",null,null,null,"Sera fait plus tard",null,null,null,"Sera fait plus tard",null,null,null,"Sera fait plus tard",null,null,null,"Sera fait plus tard",null,null,null,"Sera fait plus tard",null,null,null,"Sera fait plus tard",null,null,null,"Sera fait plus tard"]
["non",null,"Allocation compensatoire liée au protocole CISSS/ CIUSSS",null,null,null,null,null,{"$f":"ROUND(I221+I222,0)","v":0},null,null,null,{"$f":"ROUND(M221+M222,0)","v":0},null,null,null,{"$f":"ROUND(Q221+Q222,0)","v":0},null,null,null,{"$f":"ROUND(U221+U222,0)","v":0},null,null,null,{"$f":"ROUND(Y221+Y222,0)","v":0},null,null,null,{"$f":"ROUND(AC221+AC222,0)","v":0},null,null,null,{"$f":"ROUND(AG221+AG222,0)","v":0},null,null,null,{"$f":"ROUND(AK221+AK222,0)","v":0},null,null,null,{"$f":"ROUND(AO221+AO222,0)","v":0},null,null,null,{"$f":"ROUND(AS221+AS222,0)","v":0},null,null,null,{"$f":"ROUND(AW221+AW222,0)","v":0},null,null,null,{"$f":"ROUND(BA221+BA222,0)","v":0},null,null,null,null,null,{"$f":"+IF(BE223<>0,+BE223,+I223+M223+Q223+U223+Y223+AC223+AG223+AK223+AO223+AS223+AW223+BA223)","v":0}]
["non"]
["non",null,"Allocation pour l'exemption de la contribution réduite (ECP)",null,null,null,"1er avril au 31 décembre","1er janvier au 31 mars ",null,null,"1er avril au 31 décembre","1er janvier au 31 mars ",null,null,"1er avril au 31 décembre","1er janvier au 31 mars ",null,null,"1er avril au 31 décembre","1er janvier au 31 mars ",null,null,"1er avril au 31 décembre","1er janvier au 31 mars ",null,null,"1er avril au 31 décembre","1er janvier au 31 mars ",null,null,"1er avril au 31 décembre","1er janvier au 31 mars ",null,null,"1er avril au 31 décembre","1er janvier au 31 mars ",null,null,"1er avril au 31 décembre","1er janvier au 31 mars ",null,null,"1er avril au 31 décembre","1er janvier au 31 mars ",null,null,"1er avril au 31 décembre","1er janvier au 31 mars ",null,null,"1er avril au 31 décembre","1er janvier au 31 mars "]
["non",null,"Jours d'occupation des enfants admissibles à l'ECP",null,null,null,{"$f":"INDEX(Barème!$B$5:$XFD$9234,_xlfn.XMATCH('Calcul-Subv-CPE'!G225,Barème!$B$5:$B$9234),_xlfn.XMATCH($E$17,Barème!$B$4:$XFD$4))","v":8.85},{"$f":"INDEX(Barème!$B$5:$XFD$9234,_xlfn.XMATCH('Calcul-Subv-CPE'!H225,Barème!$B$5:$B$9234),_xlfn.XMATCH($E$17,Barème!$B$4:$XFD$4))","v":9.1},null,null,{"$f":"INDEX(Barème!$B$5:$XFD$9234,_xlfn.XMATCH('Calcul-Subv-CPE'!K225,Barème!$B$5:$B$9234),_xlfn.XMATCH($E$17,Barème!$B$4:$XFD$4))","v":8.85},{"$f":"INDEX(Barème!$B$5:$XFD$9234,_xlfn.XMATCH('Calcul-Subv-CPE'!L225,Barème!$B$5:$B$9234),_xlfn.XMATCH($E$17,Barème!$B$4:$XFD$4))","v":9.1},null,null,{"$f":"INDEX(Barème!$B$5:$XFD$9234,_xlfn.XMATCH('Calcul-Subv-CPE'!O225,Barème!$B$5:$B$9234),_xlfn.XMATCH($E$17,Barème!$B$4:$XFD$4))","v":8.85},{"$f":"INDEX(Barème!$B$5:$XFD$9234,_xlfn.XMATCH('Calcul-Subv-CPE'!P225,Barème!$B$5:$B$9234),_xlfn.XMATCH($E$17,Barème!$B$4:$XFD$4))","v":9.1},null,null,{"$f":"INDEX(Barème!$B$5:$XFD$9234,_xlfn.XMATCH('Calcul-Subv-CPE'!S225,Barème!$B$5:$B$9234),_xlfn.XMATCH($E$17,Barème!$B$4:$XFD$4))","v":8.85},{"$f":"INDEX(Barème!$B$5:$XFD$9234,_xlfn.XMATCH('Calcul-Subv-CPE'!T225,Barème!$B$5:$B$9234),_xlfn.XMATCH($E$17,Barème!$B$4:$XFD$4))","v":9.1},null,null,{"$f":"INDEX(Barème!$B$5:$XFD$9234,_xlfn.XMATCH('Calcul-Subv-CPE'!W225,Barème!$B$5:$B$9234),_xlfn.XMATCH($E$17,Barème!$B$4:$XFD$4))","v":8.85},{"$f":"INDEX(Barème!$B$5:$XFD$9234,_xlfn.XMATCH('Calcul-Subv-CPE'!X225,Barème!$B$5:$B$9234),_xlfn.XMATCH($E$17,Barème!$B$4:$XFD$4))","v":9.1},null,null,{"$f":"INDEX(Barème!$B$5:$XFD$9234,_xlfn.XMATCH('Calcul-Subv-CPE'!AA225,Barème!$B$5:$B$9234),_xlfn.XMATCH($E$17,Barème!$B$4:$XFD$4))","v":8.85},{"$f":"INDEX(Barème!$B$5:$XFD$9234,_xlfn.XMATCH('Calcul-Subv-CPE'!AB225,Barème!$B$5:$B$9234),_xlfn.XMATCH($E$17,Barème!$B$4:$XFD$4))","v":9.1},null,null,{"$f":"INDEX(Barème!$B$5:$XFD$9234,_xlfn.XMATCH('Calcul-Subv-CPE'!AE225,Barème!$B$5:$B$9234),_xlfn.XMATCH($E$17,Barème!$B$4:$XFD$4))","v":8.85},{"$f":"INDEX(Barème!$B$5:$XFD$9234,_xlfn.XMATCH('Calcul-Subv-CPE'!AF225,Barème!$B$5:$B$9234),_xlfn.XMATCH($E$17,Barème!$B$4:$XFD$4))","v":9.1},null,null,{"$f":"INDEX(Barème!$B$5:$XFD$9234,_xlfn.XMATCH('Calcul-Subv-CPE'!AI225,Barème!$B$5:$B$9234),_xlfn.XMATCH($E$17,Barème!$B$4:$XFD$4))","v":8.85},{"$f":"INDEX(Barème!$B$5:$XFD$9234,_xlfn.XMATCH('Calcul-Subv-CPE'!AJ225,Barème!$B$5:$B$9234),_xlfn.XMATCH($E$17,Barème!$B$4:$XFD$4))","v":9.1},null,null,{"$f":"INDEX(Barème!$B$5:$XFD$9234,_xlfn.XMATCH('Calcul-Subv-CPE'!AM225,Barème!$B$5:$B$9234),_xlfn.XMATCH($E$17,Barème!$B$4:$XFD$4))","v":8.85},{"$f":"INDEX(Barème!$B$5:$XFD$9234,_xlfn.XMATCH('Calcul-Subv-CPE'!AN225,Barème!$B$5:$B$9234),_xlfn.XMATCH($E$17,Barème!$B$4:$XFD$4))","v":9.1},null,null,{"$f":"INDEX(Barème!$B$5:$XFD$9234,_xlfn.XMATCH('Calcul-Subv-CPE'!AQ225,Barème!$B$5:$B$9234),_xlfn.XMATCH($E$17,Barème!$B$4:$XFD$4))","v":8.85},{"$f":"INDEX(Barème!$B$5:$XFD$9234,_xlfn.XMATCH('Calcul-Subv-CPE'!AR225,Barème!$B$5:$B$9234),_xlfn.XMATCH($E$17,Barème!$B$4:$XFD$4))","v":9.1},null,null,{"$f":"INDEX(Barème!$B$5:$XFD$9234,_xlfn.XMATCH('Calcul-Subv-CPE'!AU225,Barème!$B$5:$B$9234),_xlfn.XMATCH($E$17,Barème!$B$4:$XFD$4))","v":8.85},{"$f":"INDEX(Barème!$B$5:$XFD$9234,_xlfn.XMATCH('Calcul-Subv-CPE'!AV225,Barème!$B$5:$B$9234),_xlfn.XMATCH($E$17,Barème!$B$4:$XFD$4))","v":9.1},null,null,{"$f":"INDEX(Barème!$B$5:$XFD$9234,_xlfn.XMATCH('Calcul-Subv-CPE'!AY225,Barème!$B$5:$B$9234),_xlfn.XMATCH($E$17,Barème!$B$4:$XFD$4))","v":8.85},{"$f":"INDEX(Barème!$B$5:$XFD$9234,_xlfn.XMATCH('Calcul-Subv-CPE'!AZ225,Barème!$B$5:$B$9234),_xlfn.XMATCH($E$17,Barème!$B$4:$XFD$4))","v":9.1},null,null,null,null,null,null,{"$f":"+IF(BE226<>0,+BE226,+I226+M226+Q226+U226+Y226+AC226+AG226+AK226+AO226+AS226+AW226+BA226)","v":0}]
["non",null,"Allocation – ECP",null,null,null,null,null,{"$f":"ROUND((G226*0.75+H226*0.25)*I226,0)","v":0},null,null,null,{"$f":"ROUND((K226*0.75+L226*0.25)*M226,0)","v":0},null,null,null,{"$f":"ROUND((O226*0.75+P226*0.25)*Q226,0)","v":0},null,null,null,{"$f":"ROUND((S226*0.75+T226*0.25)*U226,0)","v":0},null,null,null,{"$f":"ROUND((W226*0.75+X226*0.25)*Y226,0)","v":0},null,null,null,{"$f":"ROUND((AA226*0.75+AB226*0.25)*AC226,0)","v":0},null,null,null,{"$f":"ROUND((AE226*0.75+AF226*0.25)*AG226,0)","v":0},null,null,null,{"$f":"ROUND((AI226*0.75+AJ226*0.25)*AK226,0)","v":0},null,null,null,{"$f":"ROUND((AM226*0.75+AN226*0.25)*AO226,0)","v":0},null,null,null,{"$f":"ROUND((AQ226*0.75+AR226*0.25)*AS226,0)","v":0},null,null,null,{"$f":"ROUND((AU226*0.75+AV226*0.25)*AW226,0)","v":0},null,null,null,{"$f":"ROUND((AY226*0.75+AZ226*0.25)*BA226,0)","v":0},null,null,null,null,null,{"$f":"+IF(BE227<>0,+BE227,+I227+M227+Q227+U227+Y227+AC227+AG227+AK227+AO227+AS227+AW227+BA227)","v":0}]
["non"]
["non",null,"Allocation pour l'accueil d'enfants issus d'un milieu défavorisé",null,null,null,null,null,null,null,null,null,null,null,null,null,null,null,null,null,null,null,null,null,null,null,null,null,null,null,null,null,null,null,null,null,null,null,null,null,null,null,null,null,null,null,null,null,null,null,null,null,null,null,null,null,null,null,{"$f":"+IF(BE229<>0,+BE229,+I229+M229+Q229+U229+Y229+AC229+AG229+AK229+AO229+AS229+AW229+BA229)","v":0}]
["oui",null,"Jours d'occupation des enfants en ECP",null,null,null,"Seuil de ECP (Min)","Norme de base",{"$f":"I226","v":0},null,"Seuil de ECP (Min)","Norme de base",{"$f":"M226","v":0},null,"Seuil de ECP (Min)","Norme de base",{"$f":"Q226","v":0},null,"Seuil de ECP (Min)","Norme de base",{"$f":"U226","v":0},null,"Seuil de ECP (Min)","Norme de base",{"$f":"Y226","v":0},null,"Seuil de ECP (Min)","Norme de base",{"$f":"AC226","v":0},null,"Seuil de ECP (Min)","Norme de base",{"$f":"AG226","v":0},null,"Seuil de ECP (Min)","Norme de base",{"$f":"AK226","v":0},null,"Seuil de ECP (Min)","Norme de base",{"$f":"AO226","v":0},null,"Seuil de ECP (Min)","Norme de base",{"$f":"AS226","v":0},null,"Seuil de ECP (Min)","Norme de base",{"$f":"AW226","v":0},null,"Seuil de ECP (Min)","Norme de base",{"$f":"BA226","v":0},null,null,null,null,null,{"$f":"BG226","v":0}]
["oui",null,"Proportion des jours ECP",null,null,null,{"$f":"INDEX(Barème!$B$5:$XFD$9234,_xlfn.XMATCH('Calcul-Subv-CPE'!G230,Barème!$B$5:$B$9234),_xlfn.XMATCH($E$17,Barème!$B$4:$XFD$4))","v":0.08},{"$f":"INDEX(Barème!$B$5:$XFD$9234,_xlfn.XMATCH('Calcul-Subv-CPE'!H230,Barème!$B$5:$B$9234),_xlfn.XMATCH($E$17,Barème!$B$4:$XFD$4))","v":0.03},{"$f":"IF(G$231<=I230/I39,I230/I39,0)","v":{"$error":"#DIV/0!"}},null,{"$f":"INDEX(Barème!$B$5:$XFD$9234,_xlfn.XMATCH('Calcul-Subv-CPE'!K230,Barème!$B$5:$B$9234),_xlfn.XMATCH($E$17,Barème!$B$4:$XFD$4))","v":0.08},{"$f":"INDEX(Barème!$B$5:$XFD$9234,_xlfn.XMATCH('Calcul-Subv-CPE'!L230,Barème!$B$5:$B$9234),_xlfn.XMATCH($E$17,Barème!$B$4:$XFD$4))","v":0.03},{"$f":"IF(K$231<=M230/M39,M230/M39,0)","v":{"$error":"#DIV/0!"}},null,{"$f":"INDEX(Barème!$B$5:$XFD$9234,_xlfn.XMATCH('Calcul-Subv-CPE'!O230,Barème!$B$5:$B$9234),_xlfn.XMATCH($E$17,Barème!$B$4:$XFD$4))","v":0.08},{"$f":"INDEX(Barème!$B$5:$XFD$9234,_xlfn.XMATCH('Calcul-Subv-CPE'!P230,Barème!$B$5:$B$9234),_xlfn.XMATCH($E$17,Barème!$B$4:$XFD$4))","v":0.03},{"$f":"IF(O$231<=Q230/Q39,Q230/Q39,0)","v":{"$error":"#DIV/0!"}},null,{"$f":"INDEX(Barème!$B$5:$XFD$9234,_xlfn.XMATCH('Calcul-Subv-CPE'!S230,Barème!$B$5:$B$9234),_xlfn.XMATCH($E$17,Barème!$B$4:$XFD$4))","v":0.08},{"$f":"INDEX(Barème!$B$5:$XFD$9234,_xlfn.XMATCH('Calcul-Subv-CPE'!T230,Barème!$B$5:$B$9234),_xlfn.XMATCH($E$17,Barème!$B$4:$XFD$4))","v":0.03},{"$f":"IF(S$231<=U230/U39,U230/U39,0)","v":{"$error":"#DIV/0!"}},null,{"$f":"INDEX(Barème!$B$5:$XFD$9234,_xlfn.XMATCH('Calcul-Subv-CPE'!W230,Barème!$B$5:$B$9234),_xlfn.XMATCH($E$17,Barème!$B$4:$XFD$4))","v":0.08},{"$f":"INDEX(Barème!$B$5:$XFD$9234,_xlfn.XMATCH('Calcul-Subv-CPE'!X230,Barème!$B$5:$B$9234),_xlfn.XMATCH($E$17,Barème!$B$4:$XFD$4))","v":0.03},{"$f":"IF(W$231<=Y230/Y39,Y230/Y39,0)","v":{"$error":"#DIV/0!"}},null,{"$f":"INDEX(Barème!$B$5:$XFD$9234,_xlfn.XMATCH('Calcul-Subv-CPE'!AA230,Barème!$B$5:$B$9234),_xlfn.XMATCH($E$17,Barème!$B$4:$XFD$4))","v":0.08},{"$f":"INDEX(Barème!$B$5:$XFD$9234,_xlfn.XMATCH('Calcul-Subv-CPE'!AB230,Barème!$B$5:$B$9234),_xlfn.XMATCH($E$17,Barème!$B$4:$XFD$4))","v":0.03},{"$f":"IF(AA$231<=AC230/AC39,AC230/AC39,0)","v":{"$error":"#DIV/0!"}},null,{"$f":"INDEX(Barème!$B$5:$XFD$9234,_xlfn.XMATCH('Calcul-Subv-CPE'!AE230,Barème!$B$5:$B$9234),_xlfn.XMATCH($E$17,Barème!$B$4:$XFD$4))","v":0.08},{"$f":"INDEX(Barème!$B$5:$XFD$9234,_xlfn.XMATCH('Calcul-Subv-CPE'!AF230,Barème!$B$5:$B$9234),_xlfn.XMATCH($E$17,Barème!$B$4:$XFD$4))","v":0.03},{"$f":"IF(AE$231<=AG230/AG39,AG230/AG39,0)","v":{"$error":"#DIV/0!"}},null,{"$f":"INDEX(Barème!$B$5:$XFD$9234,_xlfn.XMATCH('Calcul-Subv-CPE'!AI230,Barème!$B$5:$B$9234),_xlfn.XMATCH($E$17,Barème!$B$4:$XFD$4))","v":0.08},{"$f":"INDEX(Barème!$B$5:$XFD$9234,_xlfn.XMATCH('Calcul-Subv-CPE'!AJ230,Barème!$B$5:$B$9234),_xlfn.XMATCH($E$17,Barème!$B$4:$XFD$4))","v":0.03},{"$f":"IF(AI$231<=AK230/AK39,AK230/AK39,0)","v":{"$error":"#DIV/0!"}},null,{"$f":"INDEX(Barème!$B$5:$XFD$9234,_xlfn.XMATCH('Calcul-Subv-CPE'!AM230,Barème!$B$5:$B$9234),_xlfn.XMATCH($E$17,Barème!$B$4:$XFD$4))","v":0.08},{"$f":"INDEX(Barème!$B$5:$XFD$9234,_xlfn.XMATCH('Calcul-Subv-CPE'!AN230,Barème!$B$5:$B$9234),_xlfn.XMATCH($E$17,Barème!$B$4:$XFD$4))","v":0.03},{"$f":"IF(AM$231<=AO230/AO39,AO230/AO39,0)","v":{"$error":"#DIV/0!"}},null,{"$f":"INDEX(Barème!$B$5:$XFD$9234,_xlfn.XMATCH('Calcul-Subv-CPE'!AQ230,Barème!$B$5:$B$9234),_xlfn.XMATCH($E$17,Barème!$B$4:$XFD$4))","v":0.08},{"$f":"INDEX(Barème!$B$5:$XFD$9234,_xlfn.XMATCH('Calcul-Subv-CPE'!AR230,Barème!$B$5:$B$9234),_xlfn.XMATCH($E$17,Barème!$B$4:$XFD$4))","v":0.03},{"$f":"IF(AQ$231<=AS230/AS39,AS230/AS39,0)","v":{"$error":"#DIV/0!"}},null,{"$f":"INDEX(Barème!$B$5:$XFD$9234,_xlfn.XMATCH('Calcul-Subv-CPE'!AU230,Barème!$B$5:$B$9234),_xlfn.XMATCH($E$17,Barème!$B$4:$XFD$4))","v":0.08},{"$f":"INDEX(Barème!$B$5:$XFD$9234,_xlfn.XMATCH('Calcul-Subv-CPE'!AV230,Barème!$B$5:$B$9234),_xlfn.XMATCH($E$17,Barème!$B$4:$XFD$4))","v":0.03},{"$f":"IF(AU$231<=AW230/AW39,AW230/AW39,0)","v":{"$error":"#DIV/0!"}},null,{"$f":"INDEX(Barème!$B$5:$XFD$9234,_xlfn.XMATCH('Calcul-Subv-CPE'!AY230,Barème!$B$5:$B$9234),_xlfn.XMATCH($E$17,Barème!$B$4:$XFD$4))","v":0.08},{"$f":"INDEX(Barème!$B$5:$XFD$9234,_xlfn.XMATCH('Calcul-Subv-CPE'!AZ230,Barème!$B$5:$B$9234),_xlfn.XMATCH($E$17,Barème!$B$4:$XFD$4))","v":0.03},{"$f":"IF(AY$231<=BA230/BA39,BA230/BA39,0)","v":{"$error":"#DIV/0!"}},null,null,null,null,null,{"$f":"IF(BE$231<=BG230/BG39,BG230/BG39,0)","v":{"$error":"#DIV/0!"}}]
["oui",null,"Allocation ECP ",null,null,null,"Seuil de ECP (Max)","Norme additionnelle",{"$f":"ROUND(IF(MIN(I231,G$233)>=G$231,ROUND(H$231*I173+H$233*(MIN(I231,G$233)-G$231)*I173*100,0),0),0)","v":{"$error":"#DIV/0!"}},null,"Seuil de ECP (Max)","Norme additionnelle",{"$f":"ROUND(IF(MIN(M231,K$233)>=K$231,ROUND(L$231*M173+L$233*(MIN(M231,K$233)-K$231)*M173*100,0),0),0)","v":{"$error":"#DIV/0!"}},null,"Seuil de ECP (Max)","Norme additionnelle",{"$f":"ROUND(IF(MIN(Q231,O$233)>=O$231,ROUND(P$231*Q173+P$233*(MIN(Q231,O$233)-O$231)*Q173*100,0),0),0)","v":{"$error":"#DIV/0!"}},null,"Seuil de ECP (Max)","Norme additionnelle",{"$f":"ROUND(IF(MIN(U231,S$233)>=S$231,ROUND(T$231*U173+T$233*(MIN(U231,S$233)-S$231)*U173*100,0),0),0)","v":{"$error":"#DIV/0!"}},null,"Seuil de ECP (Max)","Norme additionnelle",{"$f":"ROUND(IF(MIN(Y231,W$233)>=W$231,ROUND(X$231*Y173+X$233*(MIN(Y231,W$233)-W$231)*Y173*100,0),0),0)","v":{"$error":"#DIV/0!"}},null,"Seuil de ECP (Max)","Norme additionnelle",{"$f":"ROUND(IF(MIN(AC231,AA$233)>=AA$231,ROUND(AB$231*AC173+AB$233*(MIN(AC231,AA$233)-AA$231)*AC173*100,0),0),0)","v":{"$error":"#DIV/0!"}},null,"Seuil de ECP (Max)","Norme additionnelle",{"$f":"ROUND(IF(MIN(AG231,AE$233)>=AE$231,ROUND(AF$231*AG173+AF$233*(MIN(AG231,AE$233)-AE$231)*AG173*100,0),0),0)","v":{"$error":"#DIV/0!"}},null,"Seuil de ECP (Max)","Norme additionnelle",{"$f":"ROUND(IF(MIN(AK231,AI$233)>=AI$231,ROUND(AJ$231*AK173+AJ$233*(MIN(AK231,AI$233)-AI$231)*AK173*100,0),0),0)","v":{"$error":"#DIV/0!"}},null,"Seuil de ECP (Max)","Norme additionnelle",{"$f":"ROUND(IF(MIN(AO231,AM$233)>=AM$231,ROUND(AN$231*AO173+AN$233*(MIN(AO231,AM$233)-AM$231)*AO173*100,0),0),0)","v":{"$error":"#DIV/0!"}},null,"Seuil de ECP (Max)","Norme additionnelle",{"$f":"ROUND(IF(MIN(AS231,AQ$233)>=AQ$231,ROUND(AR$231*AS173+AR$233*(MIN(AS231,AQ$233)-AQ$231)*AS173*100,0),0),0)","v":{"$error":"#DIV/0!"}},null,"Seuil de ECP (Max)","Norme additionnelle",{"$f":"ROUND(IF(MIN(AW231,AU$233)>=AU$231,ROUND(AV$231*AW173+AV$233*(MIN(AW231,AU$233)-AU$231)*AW173*100,0),0),0)","v":{"$error":"#DIV/0!"}},null,"Seuil de ECP (Max)","Norme additionnelle",{"$f":"ROUND(IF(MIN(BA231,AY$233)>=AY$231,ROUND(AZ$231*BA173+AZ$233*(MIN(BA231,AY$233)-AY$231)*BA173*100,0),0),0)","v":{"$error":"#DIV/0!"}},null,null,null,null,null,{"$f":"ROUND(IF(MIN(BG231,BE$233)>=BE$231,ROUND(BF$231*BG173+BF$233*(MIN(BG231,BE$233)-BE$231)*BG173*100,0),0),0)","v":{"$error":"#DIV/0!"}}]
["oui",null,null,null,null,null,{"$f":"INDEX(Barème!$B$5:$XFD$9234,_xlfn.XMATCH('Calcul-Subv-CPE'!G232,Barème!$B$5:$B$9234),_xlfn.XMATCH($E$17,Barème!$B$4:$XFD$4))","v":0.25},{"$f":"INDEX(Barème!$B$5:$XFD$9234,_xlfn.XMATCH('Calcul-Subv-CPE'!H232,Barème!$B$5:$B$9234),_xlfn.XMATCH($E$17,Barème!$B$4:$XFD$4))","v":5.0000000000000001E-3},null,null,{"$f":"INDEX(Barème!$B$5:$XFD$9234,_xlfn.XMATCH('Calcul-Subv-CPE'!K232,Barème!$B$5:$B$9234),_xlfn.XMATCH($E$17,Barème!$B$4:$XFD$4))","v":0.25},{"$f":"INDEX(Barème!$B$5:$XFD$9234,_xlfn.XMATCH('Calcul-Subv-CPE'!L232,Barème!$B$5:$B$9234),_xlfn.XMATCH($E$17,Barème!$B$4:$XFD$4))","v":5.0000000000000001E-3},null,null,{"$f":"INDEX(Barème!$B$5:$XFD$9234,_xlfn.XMATCH('Calcul-Subv-CPE'!O232,Barème!$B$5:$B$9234),_xlfn.XMATCH($E$17,Barème!$B$4:$XFD$4))","v":0.25},{"$f":"INDEX(Barème!$B$5:$XFD$9234,_xlfn.XMATCH('Calcul-Subv-CPE'!P232,Barème!$B$5:$B$9234),_xlfn.XMATCH($E$17,Barème!$B$4:$XFD$4))","v":5.0000000000000001E-3},null,null,{"$f":"INDEX(Barème!$B$5:$XFD$9234,_xlfn.XMATCH('Calcul-Subv-CPE'!S232,Barème!$B$5:$B$9234),_xlfn.XMATCH($E$17,Barème!$B$4:$XFD$4))","v":0.25},{"$f":"INDEX(Barème!$B$5:$XFD$9234,_xlfn.XMATCH('Calcul-Subv-CPE'!T232,Barème!$B$5:$B$9234),_xlfn.XMATCH($E$17,Barème!$B$4:$XFD$4))","v":5.0000000000000001E-3},null,null,{"$f":"INDEX(Barème!$B$5:$XFD$9234,_xlfn.XMATCH('Calcul-Subv-CPE'!W232,Barème!$B$5:$B$9234),_xlfn.XMATCH($E$17,Barème!$B$4:$XFD$4))","v":0.25},{"$f":"INDEX(Barème!$B$5:$XFD$9234,_xlfn.XMATCH('Calcul-Subv-CPE'!X232,Barème!$B$5:$B$9234),_xlfn.XMATCH($E$17,Barème!$B$4:$XFD$4))","v":5.0000000000000001E-3},null,null,{"$f":"INDEX(Barème!$B$5:$XFD$9234,_xlfn.XMATCH('Calcul-Subv-CPE'!AA232,Barème!$B$5:$B$9234),_xlfn.XMATCH($E$17,Barème!$B$4:$XFD$4))","v":0.25},{"$f":"INDEX(Barème!$B$5:$XFD$9234,_xlfn.XMATCH('Calcul-Subv-CPE'!AB232,Barème!$B$5:$B$9234),_xlfn.XMATCH($E$17,Barème!$B$4:$XFD$4))","v":5.0000000000000001E-3},null,null,{"$f":"INDEX(Barème!$B$5:$XFD$9234,_xlfn.XMATCH('Calcul-Subv-CPE'!AE232,Barème!$B$5:$B$9234),_xlfn.XMATCH($E$17,Barème!$B$4:$XFD$4))","v":0.25},{"$f":"INDEX(Barème!$B$5:$XFD$9234,_xlfn.XMATCH('Calcul-Subv-CPE'!AF232,Barème!$B$5:$B$9234),_xlfn.XMATCH($E$17,Barème!$B$4:$XFD$4))","v":5.0000000000000001E-3},null,null,{"$f":"INDEX(Barème!$B$5:$XFD$9234,_xlfn.XMATCH('Calcul-Subv-CPE'!AI232,Barème!$B$5:$B$9234),_xlfn.XMATCH($E$17,Barème!$B$4:$XFD$4))","v":0.25},{"$f":"INDEX(Barème!$B$5:$XFD$9234,_xlfn.XMATCH('Calcul-Subv-CPE'!AJ232,Barème!$B$5:$B$9234),_xlfn.XMATCH($E$17,Barème!$B$4:$XFD$4))","v":5.0000000000000001E-3},null,null,{"$f":"INDEX(Barème!$B$5:$XFD$9234,_xlfn.XMATCH('Calcul-Subv-CPE'!AM232,Barème!$B$5:$B$9234),_xlfn.XMATCH($E$17,Barème!$B$4:$XFD$4))","v":0.25},{"$f":"INDEX(Barème!$B$5:$XFD$9234,_xlfn.XMATCH('Calcul-Subv-CPE'!AN232,Barème!$B$5:$B$9234),_xlfn.XMATCH($E$17,Barème!$B$4:$XFD$4))","v":5.0000000000000001E-3},null,null,{"$f":"INDEX(Barème!$B$5:$XFD$9234,_xlfn.XMATCH('Calcul-Subv-CPE'!AQ232,Barème!$B$5:$B$9234),_xlfn.XMATCH($E$17,Barème!$B$4:$XFD$4))","v":0.25},{"$f":"INDEX(Barème!$B$5:$XFD$9234,_xlfn.XMATCH('Calcul-Subv-CPE'!AR232,Barème!$B$5:$B$9234),_xlfn.XMATCH($E$17,Barème!$B$4:$XFD$4))","v":5.0000000000000001E-3},null,null,{"$f":"INDEX(Barème!$B$5:$XFD$9234,_xlfn.XMATCH('Calcul-Subv-CPE'!AU232,Barème!$B$5:$B$9234),_xlfn.XMATCH($E$17,Barème!$B$4:$XFD$4))","v":0.25},{"$f":"INDEX(Barème!$B$5:$XFD$9234,_xlfn.XMATCH('Calcul-Subv-CPE'!AV232,Barème!$B$5:$B$9234),_xlfn.XMATCH($E$17,Barème!$B$4:$XFD$4))","v":5.0000000000000001E-3},null,null,{"$f":"INDEX(Barème!$B$5:$XFD$9234,_xlfn.XMATCH('Calcul-Subv-CPE'!AY232,Barème!$B$5:$B$9234),_xlfn.XMATCH($E$17,Barème!$B$4:$XFD$4))","v":0.25},{"$f":"INDEX(Barème!$B$5:$XFD$9234,_xlfn.XMATCH('Calcul-Subv-CPE'!AZ232,Barème!$B$5:$B$9234),_xlfn.XMATCH($E$17,Barème!$B$4:$XFD$4))","v":5.0000000000000001E-3}]
["oui",null,"Taux de présence ECP",null,null,null,"Hypothèse, OK avec OB le 11 fév. 2025",null,{"$f":"IF(I$39=0,0,ROUND(+I$51/I$39,4))","v":0},null,"Hypothèse, OK avec OB le 11 fév. 2025",null,{"$f":"IF(M$39=0,0,ROUND(+M$51/M$39,4))","v":0},null,"Hypothèse, OK avec OB le 11 fév. 2025",null,{"$f":"IF(Q$39=0,0,ROUND(+Q$51/Q$39,4))","v":0},null,"Hypothèse, OK avec OB le 11 fév. 2025",null,{"$f":"IF(U$39=0,0,ROUND(+U$51/U$39,4))","v":0},null,"Hypothèse, OK avec OB le 11 fév. 2025",null,{"$f":"IF(Y$39=0,0,ROUND(+Y$51/Y$39,4))","v":0},null,"Hypothèse, OK avec OB le 11 fév. 2025",null,{"$f":"IF(AC$39=0,0,ROUND(+AC$51/AC$39,4))","v":0},null,"Hypothèse, OK avec OB le 11 fév. 2025",null,{"$f":"IF(AG$39=0,0,ROUND(+AG$51/AG$39,4))","v":0},null,"Hypothèse, OK avec OB le 11 fév. 2025",null,{"$f":"IF(AK$39=0,0,ROUND(+AK$51/AK$39,4))","v":0},null,"Hypothèse, OK avec OB le 11 fév. 2025",null,{"$f":"IF(AO$39=0,0,ROUND(+AO$51/AO$39,4))","v":0},null,"Hypothèse, OK avec OB le 11 fév. 2025",null,{"$f":"IF(AS$39=0,0,ROUND(+AS$51/AS$39,4))","v":0},null,"Hypothèse, OK avec OB le 11 fév. 2025",null,{"$f":"IF(AW$39=0,0,ROUND(+AW$51/AW$39,4))","v":0},null,"Hypothèse, OK avec OB le 11 fév. 2025",null,{"$f":"IF(BA$39=0,0,ROUND(+BA$51/BA$39,4))","v":0},null,null,null,null,null,1]
["oui",null,"Jours de présence ECP",null,null,null,null,null,{"$f":"+ROUND(I234*I230,1)","v":0},null,null,null,{"$f":"+ROUND(M234*M230,1)","v":0},null,null,null,{"$f":"+ROUND(Q234*Q230,1)","v":0},null,null,null,{"$f":"+ROUND(U234*U230,1)","v":0},null,null,null,{"$f":"+ROUND(Y234*Y230,1)","v":0},null,null,null,{"$f":"+ROUND(AC234*AC230,1)","v":0},null,null,null,{"$f":"+ROUND(AG234*AG230,1)","v":0},null,null,null,{"$f":"+ROUND(AK234*AK230,1)","v":0},null,null,null,{"$f":"+ROUND(AO234*AO230,1)","v":0},null,null,null,{"$f":"+ROUND(AS234*AS230,1)","v":0},null,null,null,{"$f":"+ROUND(AW234*AW230,1)","v":0},null,null,null,{"$f":"+ROUND(BA234*BA230,1)","v":0},null,null,null,null,null,{"$f":"BG234*BG230","v":0}]
["non",null,"Allocation – Milieu défavorisé",null,{"$f":"+\"Pour être admissible, il faut être au-delà du seuil de \"&G231*100&\" %.\"","v":"Pour être admissible, il faut être au-delà du seuil de 8 %."},null,null,null,{"$f":"IF(I39=0,0,IF(I232=0,0,ROUND(I232-I171,0)))","v":0},null,null,null,{"$f":"IF(M39=0,0,IF(M232=0,0,ROUND(M232-M171,0)))","v":0},null,null,null,{"$f":"IF(Q39=0,0,IF(Q232=0,0,ROUND(Q232-Q171,0)))","v":0},null,null,null,{"$f":"IF(U39=0,0,IF(U232=0,0,ROUND(U232-U171,0)))","v":0},null,null,null,{"$f":"IF(Y39=0,0,IF(Y232=0,0,ROUND(Y232-Y171,0)))","v":0},null,null,null,{"$f":"IF(AC39=0,0,IF(AC232=0,0,ROUND(AC232-AC171,0)))","v":0},null,null,null,{"$f":"IF(AG39=0,0,IF(AG232=0,0,ROUND(AG232-AG171,0)))","v":0},null,null,null,{"$f":"IF(AK39=0,0,IF(AK232=0,0,ROUND(AK232-AK171,0)))","v":0},null,null,null,{"$f":"IF(AO39=0,0,IF(AO232=0,0,ROUND(AO232-AO171,0)))","v":0},null,null,null,{"$f":"IF(AS39=0,0,IF(AS232=0,0,ROUND(AS232-AS171,0)))","v":0},null,null,null,{"$f":"IF(AW39=0,0,IF(AW232=0,0,ROUND(AW232-AW171,0)))","v":0},null,null,null,{"$f":"IF(BA39=0,0,IF(BA232=0,0,ROUND(BA232-BA171,0)))","v":0},null,null,null,null,null,{"$f":"+IF(BE236<>0,+BE236,+I236+M236+Q236+U236+Y236+AC236+AG236+AK236+AO236+AS236+AW236+BA236)","v":0}]
["non"]
["non",null,"Allocation pour la garde à horaires non usuels (GHNU)"]
["non",null,"Jours d'occupation des enfants en GHNU",null,null,null,"Proportion appliquée",null,null,null,"Proportion appliquée",null,null,null,"Proportion appliquée",null,null,null,"Proportion appliquée",null,null,null,"Proportion appliquée",null,null,null,"Proportion appliquée",null,null,null,"Proportion appliquée",null,null,null,"Proportion appliquée",null,null,null,"Proportion appliquée",null,null,null,"Proportion appliquée",null,null,null,"Proportion appliquée",null,null,null,"Proportion appliquée",null,null,null,null,null,null,null,{"$f":"+IF(BE239<>0,+BE239,+I239+M239+Q239+U239+Y239+AC239+AG239+AK239+AO239+AS239+AW239+BA239)","v":0}]
["oui",null,"Taux présence des enfants GHNU",null,null,null,{"$f":"INDEX(Barème!$B$5:$XFD$9234,_xlfn.XMATCH('Calcul-Subv-CPE'!G239,Barème!$B$5:$B$9234),_xlfn.XMATCH($E$17,Barème!$B$4:$XFD$4))","v":0.5},null,{"$f":"IF(I$39=0,0,ROUND(+I$51/I$39,4))","v":0},null,{"$f":"INDEX(Barème!$B$5:$XFD$9234,_xlfn.XMATCH('Calcul-Subv-CPE'!K239,Barème!$B$5:$B$9234),_xlfn.XMATCH($E$17,Barème!$B$4:$XFD$4))","v":0.5},null,{"$f":"IF(M$39=0,0,ROUND(+M$51/M$39,4))","v":0},null,{"$f":"INDEX(Barème!$B$5:$XFD$9234,_xlfn.XMATCH('Calcul-Subv-CPE'!O239,Barème!$B$5:$B$9234),_xlfn.XMATCH($E$17,Barème!$B$4:$XFD$4))","v":0.5},null,{"$f":"IF(Q$39=0,0,ROUND(+Q$51/Q$39,4))","v":0},null,{"$f":"INDEX(Barème!$B$5:$XFD$9234,_xlfn.XMATCH('Calcul-Subv-CPE'!S239,Barème!$B$5:$B$9234),_xlfn.XMATCH($E$17,Barème!$B$4:$XFD$4))","v":0.5},null,{"$f":"IF(U$39=0,0,ROUND(+U$51/U$39,4))","v":0},null,{"$f":"INDEX(Barème!$B$5:$XFD$9234,_xlfn.XMATCH('Calcul-Subv-CPE'!W239,Barème!$B$5:$B$9234),_xlfn.XMATCH($E$17,Barème!$B$4:$XFD$4))","v":0.5},null,{"$f":"IF(Y$39=0,0,ROUND(+Y$51/Y$39,4))","v":0},null,{"$f":"INDEX(Barème!$B$5:$XFD$9234,_xlfn.XMATCH('Calcul-Subv-CPE'!AA239,Barème!$B$5:$B$9234),_xlfn.XMATCH($E$17,Barème!$B$4:$XFD$4))","v":0.5},null,{"$f":"IF(AC$39=0,0,ROUND(+AC$51/AC$39,4))","v":0},null,{"$f":"INDEX(Barème!$B$5:$XFD$9234,_xlfn.XMATCH('Calcul-Subv-CPE'!AE239,Barème!$B$5:$B$9234),_xlfn.XMATCH($E$17,Barème!$B$4:$XFD$4))","v":0.5},null,{"$f":"IF(AG$39=0,0,ROUND(+AG$51/AG$39,4))","v":0},null,{"$f":"INDEX(Barème!$B$5:$XFD$9234,_xlfn.XMATCH('Calcul-Subv-CPE'!AI239,Barème!$B$5:$B$9234),_xlfn.XMATCH($E$17,Barème!$B$4:$XFD$4))","v":0.5},null,{"$f":"IF(AK$39=0,0,ROUND(+AK$51/AK$39,4))","v":0},null,{"$f":"INDEX(Barème!$B$5:$XFD$9234,_xlfn.XMATCH('Calcul-Subv-CPE'!AM239,Barème!$B$5:$B$9234),_xlfn.XMATCH($E$17,Barème!$B$4:$XFD$4))","v":0.5},null,{"$f":"IF(AO$39=0,0,ROUND(+AO$51/AO$39,4))","v":0},null,{"$f":"INDEX(Barème!$B$5:$XFD$9234,_xlfn.XMATCH('Calcul-Subv-CPE'!AQ239,Barème!$B$5:$B$9234),_xlfn.XMATCH($E$17,Barème!$B$4:$XFD$4))","v":0.5},null,{"$f":"IF(AS$39=0,0,ROUND(+AS$51/AS$39,4))","v":0},null,{"$f":"INDEX(Barème!$B$5:$XFD$9234,_xlfn.XMATCH('Calcul-Subv-CPE'!AU239,Barème!$B$5:$B$9234),_xlfn.XMATCH($E$17,Barème!$B$4:$XFD$4))","v":0.5},null,{"$f":"IF(AW$39=0,0,ROUND(+AW$51/AW$39,4))","v":0},null,{"$f":"INDEX(Barème!$B$5:$XFD$9234,_xlfn.XMATCH('Calcul-Subv-CPE'!AY239,Barème!$B$5:$B$9234),_xlfn.XMATCH($E$17,Barème!$B$4:$XFD$4))","v":0.5},null,{"$f":"IF(BA$39=0,0,ROUND(+BA$51/BA$39,4))","v":0},null,null,null,null,null,1]
["oui",null,"Jours de présence des enfants en GHNU",null,null,null,"Hypothèse, OK avec OB le 11 fév. 2025",null,{"$f":"+ROUND(I240*I239,1)","v":0},null,"avec le nombre de places de la promesse, n'a plus besoin de %",null,{"$f":"+ROUND(M240*M239,1)","v":0},null,"avec le nombre de places de la promesse, n'a plus besoin de %",null,{"$f":"+ROUND(Q240*Q239,1)","v":0},null,"Hypothèse, OK avec OB le 11 fév. 2025",null,{"$f":"+ROUND(U240*U239,1)","v":0},null,"Hypothèse, OK avec OB le 11 fév. 2025",null,{"$f":"+ROUND(Y240*Y239,1)","v":0},null,"Hypothèse, OK avec OB le 11 fév. 2025",null,{"$f":"+ROUND(AC240*AC239,1)","v":0},null,"Hypothèse, OK avec OB le 11 fév. 2025",null,{"$f":"+ROUND(AG240*AG239,1)","v":0},null,"Hypothèse, OK avec OB le 11 fév. 2025",null,{"$f":"+ROUND(AK240*AK239,1)","v":0},null,"Hypothèse, OK avec OB le 11 fév. 2025",null,{"$f":"+ROUND(AO240*AO239,1)","v":0},null,"Hypothèse, OK avec OB le 11 fév. 2025",null,{"$f":"+ROUND(AS240*AS239,1)","v":0},null,"Hypothèse, OK avec OB le 11 fév. 2025",null,{"$f":"+ROUND(AW240*AW239,1)","v":0},null,"Hypothèse, OK avec OB le 11 fév. 2025",null,{"$f":"+ROUND(BA240*BA239,1)","v":0},null,null,null,null,null,{"$f":"BG240*BG239","v":0}]
["oui"]
["non",null,"Allocation – GHNU",null,null,null,null,null,{"$f":"IF(I39=0,0,ROUND(G$240*I239/I39*I105,0))","v":0},null,null,null,{"$f":"IF(M39=0,0,ROUND(K$240*M239/M39*M105,0))","v":0},null,null,null,{"$f":"IF(Q39=0,0,ROUND(O$240*Q239/Q39*Q105,0))","v":0},null,null,null,{"$f":"IF(U39=0,0,ROUND(S$240*U239/U39*U105,0))","v":0},null,null,null,{"$f":"IF(Y39=0,0,ROUND(W$240*Y239/Y39*Y105,0))","v":0},null,null,null,{"$f":"IF(AC39=0,0,ROUND(AA$240*AC239/AC39*AC105,0))","v":0},null,null,null,{"$f":"IF(AG39=0,0,ROUND(AE$240*AG239/AG39*AG105,0))","v":0},null,null,null,{"$f":"IF(AK39=0,0,ROUND(AI$240*AK239/AK39*AK105,0))","v":0},null,null,null,{"$f":"IF(AO39=0,0,ROUND(AM$240*AO239/AO39*AO105,0))","v":0},null,null,null,{"$f":"IF(AS39=0,0,ROUND(AQ$240*AS239/AS39*AS105,0))","v":0},null,null,null,{"$f":"IF(AW39=0,0,ROUND(AU$240*AW239/AW39*AW105,0))","v":0},null,null,null,{"$f":"IF(BA39=0,0,ROUND(AY$240*BA239/BA39*BA105,0))","v":0},null,null,null,null,null,{"$f":"+IF(BE243<>0,+BE243,+I243+M243+Q243+U243+Y243+AC243+AG243+AK243+AO243+AS243+AW243+BA243)","v":0}]
["oui"]
["oui",null,"Allocation pour petite installation (32 places et moins)"]
["oui",null,"Petite installation (32 places et moins)",null,null,null,"Barème volet A - petite installation","Barème volet B - petite installation",null,null,"Barème volet A - petite installation","Barème volet B - petite installation",null,null,"Barème volet A - petite installation","Barème volet B - petite installation",null,null,"Barème volet A - petite installation","Barème volet B - petite installation",null,null,"Barème volet A - petite installation","Barème volet B - petite installation",null,null,"Barème volet A - petite installation","Barème volet B - petite installation",null,null,"Barème volet A - petite installation","Barème volet B - petite installation",null,null,"Barème volet A - petite installation","Barème volet B - petite installation",null,null,"Barème volet A - petite installation","Barème volet B - petite installation",null,null,"Barème volet A - petite installation","Barème volet B - petite installation",null,null,"Barème volet A - petite installation","Barème volet B - petite installation",null,null,"Barème volet A - petite installation","Barème volet B - petite installation"]
["oui",null,"Volet A",null,null,null,{"$f":"INDEX(Barème!$B$5:$XFD$9234,_xlfn.XMATCH('Calcul-Subv-CPE'!G246,Barème!$B$5:$B$9234),_xlfn.XMATCH($E$17,Barème!$B$4:$XFD$4))","v":0.05},{"$f":"INDEX(Barème!$B$5:$XFD$9234,_xlfn.XMATCH('Calcul-Subv-CPE'!H246,Barème!$B$5:$B$9234),_xlfn.XMATCH($E$17,Barème!$B$4:$XFD$4))","v":2358.1999999999998},{"$f":"IF(I$28<G$248,ROUND(G$247*I105,0),0)","v":0},null,{"$f":"INDEX(Barème!$B$5:$XFD$9234,_xlfn.XMATCH('Calcul-Subv-CPE'!K246,Barème!$B$5:$B$9234),_xlfn.XMATCH($E$17,Barème!$B$4:$XFD$4))","v":0.05},{"$f":"INDEX(Barème!$B$5:$XFD$9234,_xlfn.XMATCH('Calcul-Subv-CPE'!L246,Barème!$B$5:$B$9234),_xlfn.XMATCH($E$17,Barème!$B$4:$XFD$4))","v":2358.1999999999998},{"$f":"IF(M$28<K$248,ROUND(K$247*M105,0),0)","v":0},null,{"$f":"INDEX(Barème!$B$5:$XFD$9234,_xlfn.XMATCH('Calcul-Subv-CPE'!O246,Barème!$B$5:$B$9234),_xlfn.XMATCH($E$17,Barème!$B$4:$XFD$4))","v":0.05},{"$f":"INDEX(Barème!$B$5:$XFD$9234,_xlfn.XMATCH('Calcul-Subv-CPE'!P246,Barème!$B$5:$B$9234),_xlfn.XMATCH($E$17,Barème!$B$4:$XFD$4))","v":2358.1999999999998},{"$f":"IF(Q$28<O$248,ROUND(O$247*Q105,0),0)","v":0},null,{"$f":"INDEX(Barème!$B$5:$XFD$9234,_xlfn.XMATCH('Calcul-Subv-CPE'!S246,Barème!$B$5:$B$9234),_xlfn.XMATCH($E$17,Barème!$B$4:$XFD$4))","v":0.05},{"$f":"INDEX(Barème!$B$5:$XFD$9234,_xlfn.XMATCH('Calcul-Subv-CPE'!T246,Barème!$B$5:$B$9234),_xlfn.XMATCH($E$17,Barème!$B$4:$XFD$4))","v":2358.1999999999998},{"$f":"IF(U$28<S$248,ROUND(S$247*U105,0),0)","v":0},null,{"$f":"INDEX(Barème!$B$5:$XFD$9234,_xlfn.XMATCH('Calcul-Subv-CPE'!W246,Barème!$B$5:$B$9234),_xlfn.XMATCH($E$17,Barème!$B$4:$XFD$4))","v":0.05},{"$f":"INDEX(Barème!$B$5:$XFD$9234,_xlfn.XMATCH('Calcul-Subv-CPE'!X246,Barème!$B$5:$B$9234),_xlfn.XMATCH($E$17,Barème!$B$4:$XFD$4))","v":2358.1999999999998},{"$f":"IF(Y$28<W$248,ROUND(W$247*Y105,0),0)","v":0},null,{"$f":"INDEX(Barème!$B$5:$XFD$9234,_xlfn.XMATCH('Calcul-Subv-CPE'!AA246,Barème!$B$5:$B$9234),_xlfn.XMATCH($E$17,Barème!$B$4:$XFD$4))","v":0.05},{"$f":"INDEX(Barème!$B$5:$XFD$9234,_xlfn.XMATCH('Calcul-Subv-CPE'!AB246,Barème!$B$5:$B$9234),_xlfn.XMATCH($E$17,Barème!$B$4:$XFD$4))","v":2358.1999999999998},{"$f":"IF(AC$28<AA$248,ROUND(AA$247*AC105,0),0)","v":0},null,{"$f":"INDEX(Barème!$B$5:$XFD$9234,_xlfn.XMATCH('Calcul-Subv-CPE'!AE246,Barème!$B$5:$B$9234),_xlfn.XMATCH($E$17,Barème!$B$4:$XFD$4))","v":0.05},{"$f":"INDEX(Barème!$B$5:$XFD$9234,_xlfn.XMATCH('Calcul-Subv-CPE'!AF246,Barème!$B$5:$B$9234),_xlfn.XMATCH($E$17,Barème!$B$4:$XFD$4))","v":2358.1999999999998},{"$f":"IF(AG$28<AE$248,ROUND(AE$247*AG105,0),0)","v":0},null,{"$f":"INDEX(Barème!$B$5:$XFD$9234,_xlfn.XMATCH('Calcul-Subv-CPE'!AI246,Barème!$B$5:$B$9234),_xlfn.XMATCH($E$17,Barème!$B$4:$XFD$4))","v":0.05},{"$f":"INDEX(Barème!$B$5:$XFD$9234,_xlfn.XMATCH('Calcul-Subv-CPE'!AJ246,Barème!$B$5:$B$9234),_xlfn.XMATCH($E$17,Barème!$B$4:$XFD$4))","v":2358.1999999999998},{"$f":"IF(AK$28<AI$248,ROUND(AI$247*AK105,0),0)","v":0},null,{"$f":"INDEX(Barème!$B$5:$XFD$9234,_xlfn.XMATCH('Calcul-Subv-CPE'!AM246,Barème!$B$5:$B$9234),_xlfn.XMATCH($E$17,Barème!$B$4:$XFD$4))","v":0.05},{"$f":"INDEX(Barème!$B$5:$XFD$9234,_xlfn.XMATCH('Calcul-Subv-CPE'!AN246,Barème!$B$5:$B$9234),_xlfn.XMATCH($E$17,Barème!$B$4:$XFD$4))","v":2358.1999999999998},{"$f":"IF(AO$28<AM$248,ROUND(AM$247*AO105,0),0)","v":0},null,{"$f":"INDEX(Barème!$B$5:$XFD$9234,_xlfn.XMATCH('Calcul-Subv-CPE'!AQ246,Barème!$B$5:$B$9234),_xlfn.XMATCH($E$17,Barème!$B$4:$XFD$4))","v":0.05},{"$f":"INDEX(Barème!$B$5:$XFD$9234,_xlfn.XMATCH('Calcul-Subv-CPE'!AR246,Barème!$B$5:$B$9234),_xlfn.XMATCH($E$17,Barème!$B$4:$XFD$4))","v":2358.1999999999998},{"$f":"IF(AS$28<AQ$248,ROUND(AQ$247*AS105,0),0)","v":0},null,{"$f":"INDEX(Barème!$B$5:$XFD$9234,_xlfn.XMATCH('Calcul-Subv-CPE'!AU246,Barème!$B$5:$B$9234),_xlfn.XMATCH($E$17,Barème!$B$4:$XFD$4))","v":0.05},{"$f":"INDEX(Barème!$B$5:$XFD$9234,_xlfn.XMATCH('Calcul-Subv-CPE'!AV246,Barème!$B$5:$B$9234),_xlfn.XMATCH($E$17,Barème!$B$4:$XFD$4))","v":2358.1999999999998},{"$f":"IF(AW$28<AU$248,ROUND(AU$247*AW105,0),0)","v":0},null,{"$f":"INDEX(Barème!$B$5:$XFD$9234,_xlfn.XMATCH('Calcul-Subv-CPE'!AY246,Barème!$B$5:$B$9234),_xlfn.XMATCH($E$17,Barème!$B$4:$XFD$4))","v":0.05},{"$f":"INDEX(Barème!$B$5:$XFD$9234,_xlfn.XMATCH('Calcul-Subv-CPE'!AZ246,Barème!$B$5:$B$9234),_xlfn.XMATCH($E$17,Barème!$B$4:$XFD$4))","v":2358.1999999999998},{"$f":"IF(BA$28<AY$248,ROUND(AY$247*BA105,0),0)","v":0},null,null,null,null,null,{"$f":"IF(BG$28<BE$248,BE$247*BG105,0)","v":0}]
["oui",null,"Nombre de places subventionnées",null,null,null,{"$f":"INDEX(Barème!$B$5:$XFD$9234,_xlfn.XMATCH('Calcul-Subv-CPE'!$C248,Barème!$B$5:$B$9234),_xlfn.XMATCH($E$17,Barème!$B$4:$XFD$4))","v":33},null,null,null,{"$f":"INDEX(Barème!$B$5:$XFD$9234,_xlfn.XMATCH('Calcul-Subv-CPE'!$C248,Barème!$B$5:$B$9234),_xlfn.XMATCH($E$17,Barème!$B$4:$XFD$4))","v":33},null,null,null,{"$f":"INDEX(Barème!$B$5:$XFD$9234,_xlfn.XMATCH('Calcul-Subv-CPE'!$C248,Barème!$B$5:$B$9234),_xlfn.XMATCH($E$17,Barème!$B$4:$XFD$4))","v":33},null,null,null,{"$f":"INDEX(Barème!$B$5:$XFD$9234,_xlfn.XMATCH('Calcul-Subv-CPE'!$C248,Barème!$B$5:$B$9234),_xlfn.XMATCH($E$17,Barème!$B$4:$XFD$4))","v":33},null,null,null,{"$f":"INDEX(Barème!$B$5:$XFD$9234,_xlfn.XMATCH('Calcul-Subv-CPE'!$C248,Barème!$B$5:$B$9234),_xlfn.XMATCH($E$17,Barème!$B$4:$XFD$4))","v":33},null,null,null,{"$f":"INDEX(Barème!$B$5:$XFD$9234,_xlfn.XMATCH('Calcul-Subv-CPE'!$C248,Barème!$B$5:$B$9234),_xlfn.XMATCH($E$17,Barème!$B$4:$XFD$4))","v":33},null,null,null,{"$f":"INDEX(Barème!$B$5:$XFD$9234,_xlfn.XMATCH('Calcul-Subv-CPE'!$C248,Barème!$B$5:$B$9234),_xlfn.XMATCH($E$17,Barème!$B$4:$XFD$4))","v":33},null,null,null,{"$f":"INDEX(Barème!$B$5:$XFD$9234,_xlfn.XMATCH('Calcul-Subv-CPE'!$C248,Barème!$B$5:$B$9234),_xlfn.XMATCH($E$17,Barème!$B$4:$XFD$4))","v":33},null,null,null,{"$f":"INDEX(Barème!$B$5:$XFD$9234,_xlfn.XMATCH('Calcul-Subv-CPE'!$C248,Barème!$B$5:$B$9234),_xlfn.XMATCH($E$17,Barème!$B$4:$XFD$4))","v":33},null,null,null,{"$f":"INDEX(Barème!$B$5:$XFD$9234,_xlfn.XMATCH('Calcul-Subv-CPE'!$C248,Barème!$B$5:$B$9234),_xlfn.XMATCH($E$17,Barème!$B$4:$XFD$4))","v":33},null,null,null,{"$f":"INDEX(Barème!$B$5:$XFD$9234,_xlfn.XMATCH('Calcul-Subv-CPE'!$C248,Barème!$B$5:$B$9234),_xlfn.XMATCH($E$17,Barème!$B$4:$XFD$4))","v":33},null,null,null,{"$f":"INDEX(Barème!$B$5:$XFD$9234,_xlfn.XMATCH('Calcul-Subv-CPE'!$C248,Barème!$B$5:$B$9234),_xlfn.XMATCH($E$17,Barème!$B$4:$XFD$4))","v":33}]
["oui",null,"Volet B",null,null,null,null,null,{"$f":"IF(I$28=0,0,IF(I28<G$248,+ROUND(H$247*I31*(G$248-I28),0),0))","v":0},null,null,null,{"$f":"IF(M$28=0,0,IF(M28<K$248,+ROUND(L$247*M31*(K$248-M28),0),0))","v":0},null,null,null,{"$f":"IF(Q$28=0,0,IF(Q28<O$248,+ROUND(P$247*Q31*(O$248-Q28),0),0))","v":0},null,null,null,{"$f":"IF(U$28=0,0,IF(U28<S$248,+ROUND(T$247*U31*(S$248-U28),0),0))","v":0},null,null,null,{"$f":"IF(Y$28=0,0,IF(Y28<W$248,+ROUND(X$247*Y31*(W$248-Y28),0),0))","v":0},null,null,null,{"$f":"IF(AC$28=0,0,IF(AC28<AA$248,+ROUND(AB$247*AC31*(AA$248-AC28),0),0))","v":0},null,null,null,{"$f":"IF(AG$28=0,0,IF(AG28<AE$248,+ROUND(AF$247*AG31*(AE$248-AG28),0),0))","v":0},null,null,null,{"$f":"IF(AK$28=0,0,IF(AK28<AI$248,+ROUND(AJ$247*AK31*(AI$248-AK28),0),0))","v":0},null,null,null,{"$f":"IF(AO$28=0,0,IF(AO28<AM$248,+ROUND(AN$247*AO31*(AM$248-AO28),0),0))","v":0},null,null,null,{"$f":"IF(AS$28=0,0,IF(AS28<AQ$248,+ROUND(AR$247*AS31*(AQ$248-AS28),0),0))","v":0},null,null,null,{"$f":"IF(AW$28=0,0,IF(AW28<AU$248,+ROUND(AV$247*AW31*(AU$248-AW28),0),0))","v":0},null,null,null,{"$f":"IF(BA$28=0,0,IF(BA28<AY$248,+ROUND(AZ$247*BA31*(AY$248-BA28),0),0))","v":0},null,null,null,null,null,{"$f":"IF(BG$28=0,0,IF(BG28<BE$248,+ROUND(BF$247*BG31*(BE$248-BG28),0),0))","v":0}]
["non"]
["non",null,"Allocation – Petite installation",null,null,null,null,null,{"$f":"ROUND(I247+I249,0)","v":0},null,null,null,{"$f":"ROUND(M247+M249,0)","v":0},null,null,null,{"$f":"ROUND(Q247+Q249,0)","v":0},null,null,null,{"$f":"ROUND(U247+U249,0)","v":0},null,null,null,{"$f":"ROUND(Y247+Y249,0)","v":0},null,null,null,{"$f":"ROUND(AC247+AC249,0)","v":0},null,null,null,{"$f":"ROUND(AG247+AG249,0)","v":0},null,null,null,{"$f":"ROUND(AK247+AK249,0)","v":0},null,null,null,{"$f":"ROUND(AO247+AO249,0)","v":0},null,null,null,{"$f":"ROUND(AS247+AS249,0)","v":0},null,null,null,{"$f":"ROUND(AW247+AW249,0)","v":0},null,null,null,{"$f":"ROUND(BA247+BA249,0)","v":0},null,null,null,null,null,{"$f":"+IF(BE251<>0,+BE251,+I251+M251+Q251+U251+Y251+AC251+AG251+AK251+AO251+AS251+AW251+BA251)","v":0}]
["non"]
["non",null,"Allocation pour l'accueil d'enfants à temps partiel"]
["non",null,"Jours d'occupation des enfants accueillis à temps partiel",null,null,null,"Barème (CPE)",{"$f":"INDEX(Barème!$B$5:$XFD$9234,_xlfn.XMATCH('Calcul-Subv-CPE'!G254,Barème!$B$5:$B$9234),_xlfn.XMATCH($E$17,Barème!$B$4:$XFD$4))","v":3.72},null,null,"Barème (CPE)",{"$f":"INDEX(Barème!$B$5:$XFD$9234,_xlfn.XMATCH('Calcul-Subv-CPE'!K254,Barème!$B$5:$B$9234),_xlfn.XMATCH($E$17,Barème!$B$4:$XFD$4))","v":3.72},null,null,"Barème (CPE)",{"$f":"INDEX(Barème!$B$5:$XFD$9234,_xlfn.XMATCH('Calcul-Subv-CPE'!O254,Barème!$B$5:$B$9234),_xlfn.XMATCH($E$17,Barème!$B$4:$XFD$4))","v":3.72},null,null,"Barème (CPE)",{"$f":"INDEX(Barème!$B$5:$XFD$9234,_xlfn.XMATCH('Calcul-Subv-CPE'!S254,Barème!$B$5:$B$9234),_xlfn.XMATCH($E$17,Barème!$B$4:$XFD$4))","v":3.72},null,null,"Barème (CPE)",{"$f":"INDEX(Barème!$B$5:$XFD$9234,_xlfn.XMATCH('Calcul-Subv-CPE'!W254,Barème!$B$5:$B$9234),_xlfn.XMATCH($E$17,Barème!$B$4:$XFD$4))","v":3.72},null,null,"Barème (CPE)",{"$f":"INDEX(Barème!$B$5:$XFD$9234,_xlfn.XMATCH('Calcul-Subv-CPE'!AA254,Barème!$B$5:$B$9234),_xlfn.XMATCH($E$17,Barème!$B$4:$XFD$4))","v":3.72},null,null,"Barème (CPE)",{"$f":"INDEX(Barème!$B$5:$XFD$9234,_xlfn.XMATCH('Calcul-Subv-CPE'!AE254,Barème!$B$5:$B$9234),_xlfn.XMATCH($E$17,Barème!$B$4:$XFD$4))","v":3.72},null,null,"Barème (CPE)",{"$f":"INDEX(Barème!$B$5:$XFD$9234,_xlfn.XMATCH('Calcul-Subv-CPE'!AI254,Barème!$B$5:$B$9234),_xlfn.XMATCH($E$17,Barème!$B$4:$XFD$4))","v":3.72},null,null,"Barème (CPE)",{"$f":"INDEX(Barème!$B$5:$XFD$9234,_xlfn.XMATCH('Calcul-Subv-CPE'!AM254,Barème!$B$5:$B$9234),_xlfn.XMATCH($E$17,Barème!$B$4:$XFD$4))","v":3.72},null,null,"Barème (CPE)",{"$f":"INDEX(Barème!$B$5:$XFD$9234,_xlfn.XMATCH('Calcul-Subv-CPE'!AQ254,Barème!$B$5:$B$9234),_xlfn.XMATCH($E$17,Barème!$B$4:$XFD$4))","v":3.72},null,null,"Barème (CPE)",{"$f":"INDEX(Barème!$B$5:$XFD$9234,_xlfn.XMATCH('Calcul-Subv-CPE'!AU254,Barème!$B$5:$B$9234),_xlfn.XMATCH($E$17,Barème!$B$4:$XFD$4))","v":3.72},null,null,"Barème (CPE)",{"$f":"INDEX(Barème!$B$5:$XFD$9234,_xlfn.XMATCH('Calcul-Subv-CPE'!AY254,Barème!$B$5:$B$9234),_xlfn.XMATCH($E$17,Barème!$B$4:$XFD$4))","v":3.72},null,null,null,null,null,null,{"$f":"+IF(BE254<>0,+BE254,+I254+M254+Q254+U254+Y254+AC254+AG254+AK254+AO254+AS254+AW254+BA254)","v":0}]
["non",null,"Allocation – Temps partiel",null,null,null,null,null,{"$f":"ROUND(H$254*I254,0)","v":0},null,null,null,{"$f":"ROUND(L$254*M254,0)","v":0},null,null,null,{"$f":"ROUND(P$254*Q254,0)","v":0},null,null,null,{"$f":"ROUND(T$254*U254,0)","v":0},null,null,null,{"$f":"ROUND(X$254*Y254,0)","v":0},null,null,null,{"$f":"ROUND(AB$254*AC254,0)","v":0},null,null,null,{"$f":"ROUND(AF$254*AG254,0)","v":0},null,null,null,{"$f":"ROUND(AJ$254*AK254,0)","v":0},null,null,null,{"$f":"ROUND(AN$254*AO254,0)","v":0},null,null,null,{"$f":"ROUND(AR$254*AS254,0)","v":0},null,null,null,{"$f":"ROUND(AV$254*AW254,0)","v":0},null,null,null,{"$f":"ROUND(AZ$254*BA254,0)","v":0},null,null,null,null,null,{"$f":"+IF(BE255<>0,+BE255,+I255+M255+Q255+U255+Y255+AC255+AG255+AK255+AO255+AS255+AW255+BA255)","v":0}]
["non"]
["non",null,"Total des allocations supplémentaires retenues",null,null,null,null,null,{"$f":"I198+I223+I227+I236+I243+I251+I255","v":0},null,null,null,{"$f":"M198+M223+M227+M236+M243+M251+M255","v":0},null,null,null,{"$f":"Q198+Q223+Q227+Q236+Q243+Q251+Q255","v":0},null,null,null,{"$f":"U198+U223+U227+U236+U243+U251+U255","v":0},null,null,null,{"$f":"Y198+Y223+Y227+Y236+Y243+Y251+Y255","v":0},null,null,null,{"$f":"AC198+AC223+AC227+AC236+AC243+AC251+AC255","v":0},null,null,null,{"$f":"AG198+AG223+AG227+AG236+AG243+AG251+AG255","v":0},null,null,null,{"$f":"AK198+AK223+AK227+AK236+AK243+AK251+AK255","v":0},null,null,null,{"$f":"AO198+AO223+AO227+AO236+AO243+AO251+AO255","v":0},null,null,null,{"$f":"AS198+AS223+AS227+AS236+AS243+AS251+AS255","v":0},null,null,null,{"$f":"AW198+AW223+AW227+AW236+AW243+AW251+AW255","v":0},null,null,null,{"$f":"BA198+BA223+BA227+BA236+BA243+BA251+BA255","v":0},null,null,null,{"$f":"BE198+BE223+BE227+BE236+BE243+BE251+BE255","v":0},null,{"$f":"BG198+BG223+BG227+BG236+BG243+BG251+BG255","v":0}]
["non"]
["non",null,"Total de l'allocation de base et des allocations supplémentaires",null,null,null,null,null,{"$f":"I180+I257","v":0},null,null,null,{"$f":"M180+M257","v":0},null,null,null,{"$f":"Q180+Q257","v":0},null,null,null,{"$f":"U180+U257","v":0},null,null,null,{"$f":"Y180+Y257","v":0},null,null,null,{"$f":"AC180+AC257","v":0},null,null,null,{"$f":"AG180+AG257","v":0},null,null,null,{"$f":"AK180+AK257","v":0},null,null,null,{"$f":"AO180+AO257","v":0},null,null,null,{"$f":"AS180+AS257","v":0},null,null,null,{"$f":"AW180+AW257","v":0},null,null,null,{"$f":"BA180+BA257","v":0},null,null,null,null,null,{"$f":"BG180+BG257","v":0}]
["non"]
["non",null,"Allocations spécifiques"]
["non",null,"Allocation spécifique 1 ",null,null,null,null,null,null,null,null,null,null,null,null,null,null,null,null,null,null,null,null,null,null,null,null,null,null,null,null,null,null,null,null,null,null,null,null,null,null,null,null,null,null,null,null,null,null,null,null,null,null,null,null,null,null,null,{"$f":"+IF(BE262<>0,+BE262,+I262+M262+Q262+U262+Y262+AC262+AG262+AK262+AO262+AS262+AW262+BA262)","v":0}]
["non",null,"Allocation spécifique 2",null,null,null,null,null,null,null,null,null,null,null,null,null,null,null,null,null,null,null,null,null,null,null,null,null,null,null,null,null,null,null,null,null,null,null,null,null,null,null,null,null,null,null,null,null,null,null,null,null,null,null,null,null,null,null,0]
["non",null,"Allocation spécifique 3",null,null,null,null,null,null,null,null,null,null,null,null,null,null,null,null,null,null,null,null,null,null,null,null,null,null,null,null,null,null,null,null,null,null,null,null,null,null,null,null,null,null,null,null,null,null,null,null,null,null,null,null,null,null,null,0]
["non",null,"Allocation spécifique 4",null,null,null,null,null,null,null,null,null,null,null,null,null,null,null,null,null,null,null,null,null,null,null,null,null,null,null,null,null,null,null,null,null,null,null,null,null,null,null,null,null,null,null,null,null,null,null,null,null,null,null,null,null,null,null,0]
["non",null,"Total des allocations spécifiques",null,null,null,null,null,{"$f":"I262+I263+I264+I265","v":0},null,null,null,{"$f":"M262+M263+M264+M265","v":0},null,null,null,{"$f":"Q262+Q263+Q264+Q265","v":0},null,null,null,{"$f":"U262+U263+U264+U265","v":0},null,null,null,{"$f":"Y262+Y263+Y264+Y265","v":0},null,null,null,{"$f":"AC262+AC263+AC264+AC265","v":0},null,null,null,{"$f":"AG262+AG263+AG264+AG265","v":0},null,null,null,{"$f":"AK262+AK263+AK264+AK265","v":0},null,null,null,{"$f":"AO262+AO263+AO264+AO265","v":0},null,null,null,{"$f":"AS262+AS263+AS264+AS265","v":0},null,null,null,{"$f":"AW262+AW263+AW264+AW265","v":0},null,null,null,{"$f":"BA262+BA263+BA264+BA265","v":0},null,null,null,{"$f":"BE262+BE263+BE264+BE265","v":0},null,{"$f":"BG262+BG263+BG264+BG265","v":0}]
["non"]
["non",null,"Total de la subvention de fonctionnement",null,null,null,null,null,{"$f":"I259+I266","v":0},null,null,null,{"$f":"M259+M266","v":0},null,null,null,{"$f":"Q259+Q266","v":0},null,null,null,{"$f":"U259+U266","v":0},null,null,null,{"$f":"Y259+Y266","v":0},null,null,null,{"$f":"AC259+AC266","v":0},null,null,null,{"$f":"AG259+AG266","v":0},null,null,null,{"$f":"AK259+AK266","v":0},null,null,null,{"$f":"AO259+AO266","v":0},null,null,null,{"$f":"AS259+AS266","v":0},null,null,null,{"$f":"AW259+AW266","v":0},null,null,null,{"$f":"BA259+BA266","v":0},null,null,null,{"$f":"BE259+BE266","v":0},null,{"$f":"BG259+BG266","v":0}]

{"sheet":"Divisions régionales","index":2,"n_rows":2,"n_cols":1,"rows_kept":2,"cut":false,"hidden":false,"merged":[]}
[]
["Divisions régionales"]